Workbook

Sheet Main
B10: 2022-01-11
B12: Sheet No. | C12: Template Name | D12: Summary
B13: 1 | C13: Future Intra | D13: For Intraday trading in F&O segment
B14: 2 | C14: Cash Intra | D14: For Intraday trading in cash market segment
B15: 3 | C15: Mid-cap Intra | D15: For Intraday trading in Mid-cap stocks
B16: 4 | C16: Bulk Deals | D16: Reveals Bulk Deals carried on NSE & BSE
B17: 5 | C17: Call Tracker
K27: `

Sheet Future Intra
M5: Back to Main Page
A6: FOR INTRA DAY TRADING | L6: =Main!B10 -> 2022-01-11
A9: Sr.no | B9: Sector | C9: Scrip | D9: Expiry Date | E9: CLOSE RATE | F9: Pivot Point | G9: Supports | J9: Resistances
E10: Point | F10: Point | G10: S1 | H10: S2 | I10: S3 | J10: R1 | K10: R2 | L10: R3 | M10: HIGH | N10: LOW | O10: OI | P10: % Change in OI
A11: 1 | B11: Index | C11: BANKNIFTY | D11: 2022-01-27 | E11: 38468.35 | F11: 38329.50 | G11: 38139.00 | H11: 37809.65 | I11: 37619.15 | J11: 38658.85 | K11: 38849.35 | L11: 39178.70 | M11: 38520 | N11: 38000.15 | O11: 2604450 | P11: 7.80%
A12: 2 | B12: Index | C12: NIFTY | D12: 2022-01-27 | E12: 18048.20 | F12: 18003.90 | G12: 17949.50 | H12: 17850.80 | I12: 17796.40 | J12: 18102.60 | K12: 18157.00 | L12: 18255.70 | M12: 18058.3 | N12: 17905.2 | O12: 11819300 | P12: 2.90%
A13: 3 | B13: Index | C13: FINNIFTY | D13: 2022-01-25 | E13: 18555.50 | F13: 18504.42 | G13: 18418.93 | H13: 18282.37 | I13: 18196.88 | J13: 18640.98 | K13: 18726.47 | L13: 18863.03 | M13: 18589.9 | N13: 18367.85 | O13: 2680 | P13: 45.65%
A14: 4 | B14: Chemical | C14: AARTIIND | D14: 2022-01-27 | E14: 1086.25 | F14: 1068.63 | G14: 1047.47 | H14: 1008.68 | I14: 987.52 | J14: 1107.42 | K14: 1128.58 | L14: 1167.37 | M14: 1089.8 | N14: 1029.85 | O14: 2335800 | P14: -4.45%
A15: 5 | B15: Pharma | C15: ABBOTINDIA | D15: 2022-01-27 | E15: 18405.80 | F15: 18461.95 | G15: 18324.90 | H15: 18244.00 | I15: 18106.95 | J15: 18542.85 | K15: 18679.90 | L15: 18760.80 | M15: 18599 | N15: 18381.05 | O15: 35375 | P15: 4.66%
A16: 6 | B16: Others | C16: ABCAPITAL | D16: 2022-01-27 | E16: 133.10 | F16: 133.48 | G16: 131.97 | H16: 130.83 | I16: 129.32 | J16: 134.62 | K16: 136.13 | L16: 137.27 | M16: 135 | N16: 132.35 | O16: 12456400 | P16: 2.87%
A17: 7 | B17: Textile | C17: ABFRL | D17: 2022-01-27 | E17: 294.10 | F17: 295.37 | G17: 291.88 | H17: 289.67 | I17: 286.18 | J17: 297.58 | K17: 301.07 | L17: 303.28 | M17: 298.85 | N17: 293.15 | O17: 11284000 | P17: 0.09%
A18: 8 | B18: Cement | C18: ACC | D18: 2022-01-27 | E18: 2330.60 | F18: 2317.10 | G18: 2299.20 | H18: 2267.80 | I18: 2249.90 | J18: 2348.50 | K18: 2366.40 | L18: 2397.80 | M18: 2335 | N18: 2285.7 | O18: 2816750 | P18: 3.62%
A19: 9 | B19: Others | C19: ADANIENT | D19: 2022-01-27 | E19: 1760.65 | F19: 1747.05 | G19: 1718.10 | H19: 1675.55 | I19: 1646.60 | J19: 1789.60 | K19: 1818.55 | L19: 1861.10 | M19: 1776 | N19: 1704.5 | O19: 21738500 | P19: 1.15%
A20: 10 | B20: Others | C20: ADANIPORTS | D20: 2022-01-27 | E20: 742.60 | F20: 741.23 | G20: 737.47 | H20: 732.33 | I20: 728.57 | J20: 746.37 | K20: 750.13 | L20: 755.27 | M20: 745 | N20: 736.1 | O20: 88357500 | P20: 0.19%
A21: 11 | B21: Pharma | C21: ALKEM | D21: 2022-01-27 | E21: 3754.50 | F21: 3724.55 | G21: 3684.15 | H21: 3613.80 | I21: 3573.40 | J21: 3794.90 | K21: 3835.30 | L21: 3905.65 | M21: 3764.95 | N21: 3654.2 | O21: 268400 | P21: -3.94%
A22: 12 | B22: Automobile | C22: AMARAJABAT | D22: 2022-01-27 | E22: 638.80 | F22: 637.48 | G22: 634.27 | H22: 629.73 | I22: 626.52 | J22: 642.02 | K22: 645.23 | L22: 649.77 | M22: 640.7 | N22: 632.95 | O22: 9167000 | P22: -0.10%
A23: 13 | B23: Cement | C23: AMBUJACEM | D23: 2022-01-27 | E23: 401.15 | F23: 401.05 | G23: 398.55 | H23: 395.95 | I23: 393.45 | J23: 403.65 | K23: 406.15 | L23: 408.75 | M23: 403.55 | N23: 398.45 | O23: 13401000 | P23: -0.67%
A24: 14 | B24: Pharma | C24: APLLTD | D24: 2022-01-27 | E24: 825.50 | F24: 821.32 | G24: 812.68 | H24: 799.87 | I24: 791.23 | J24: 834.13 | K24: 842.77 | L24: 855.58 | M24: 829.95 | N24: 808.5 | O24: 1957200 | P24: -0.89%
A25: 15 | B25: Others | C25: APOLLOHOSP | D25: 2022-01-27 | E25: 5081.60 | F25: 5056.37 | G25: 5005.23 | H25: 4928.87 | I25: 4877.73 | J25: 5132.73 | K25: 5183.87 | L25: 5260.23 | M25: 5107.5 | N25: 4980 | O25: 2277250 | P25: -0.07%
A26: 16 | B26: Automobile | C26: APOLLOTYRE | D26: 2022-01-27 | E26: 233.35 | F26: 233.32 | G26: 231.58 | H26: 229.82 | I26: 228.08 | J26: 235.08 | K26: 236.82 | L26: 238.58 | M26: 235.05 | N26: 231.55 | O26: 10757500 | P26: 0.51%
A27: 17 | B27: Automobile | C27: ASHOKLEY | D27: 2022-01-27 | E27: 134.90 | F27: 134.37 | G27: 133.33 | H27: 131.77 | I27: 130.73 | J27: 135.93 | K27: 136.97 | L27: 138.53 | M27: 135.4 | N27: 132.8 | O27: 35374500 | P27: 3.24%
A28: 18 | B28: FMCG | C28: ASIANPAINT | D28: 2022-01-27 | E28: 3559.35 | F28: 3562.20 | G28: 3529.15 | H28: 3498.95 | I28: 3465.90 | J28: 3592.40 | K28: 3625.45 | L28: 3655.65 | M28: 3595.25 | N28: 3532 | O28: 3404100 | P28: -0.03%
A29: 19 | B29: Others | C29: ASTRAL | D29: 2022-01-27 | E29: 2465.60 | F29: 2463.33 | G29: 2441.67 | H29: 2417.73 | I29: 2396.07 | J29: 2487.27 | K29: 2508.93 | L29: 2532.87 | M29: 2485 | N29: 2439.4 | O29: 887975 | P29: 4.57%
A30: 20 | B30: Others | C30: ATUL | D30: 2022-01-27 | E30: 9569.85 | F30: 9495.80 | G30: 9367.60 | H30: 9165.35 | I30: 9037.15 | J30: 9698.05 | K30: 9826.25 | L30: 10028.50 | M30: 9624 | N30: 9293.55 | O30: 65700 | P30: 8.01%
A31: 21 | B31: Banking | C31: AUBANK | D31: 2022-01-27 | E31: 1236.45 | F31: 1236.83 | G31: 1224.17 | H31: 1211.88 | I31: 1199.22 | J31: 1249.12 | K31: 1261.78 | L31: 1274.07 | M31: 1249.5 | N31: 1224.55 | O31: 3885000 | P31: -4.56%
A32: 22 | B32: Pharma | C32: AUROPHARMA | D32: 2022-01-27 | E32: 740.15 | F32: 732.02 | G32: 720.53 | H32: 700.92 | I32: 689.43 | J32: 751.63 | K32: 763.12 | L32: 782.73 | M32: 743.5 | N32: 712.4 | O32: 14629500 | P32: 0.66%
A33: 23 | B33: Banking | C33: AXISBANK | D33: 2022-01-27 | E33: 743.85 | F33: 741.22 | G33: 737.03 | H33: 730.22 | I33: 726.03 | J33: 748.03 | K33: 752.22 | L33: 759.03 | M33: 745.4 | N33: 734.4 | O33: 44575200 | P33: -3.29%
A34: 24 | B34: Automobile | C34: BAJAJ-AUTO | D34: 2022-01-27 | E34: 3442.55 | F34: 3437.48 | G34: 3417.07 | H34: 3391.58 | I34: 3371.17 | J34: 3462.97 | K34: 3483.38 | L34: 3508.87 | M34: 3457.9 | N34: 3412 | O34: 3219750 | P34: -1.78%
A35: 25 | B35: Finance | C35: BAJAJFINSV | D35: 2022-01-27 | E35: 17870.75 | F35: 17919.35 | G35: 17774.25 | H35: 17677.75 | I35: 17532.65 | J35: 18015.85 | K35: 18160.95 | L35: 18257.45 | M35: 18064.45 | N35: 17822.85 | O35: 590950 | P35: 1.40%
A36: 26 | B36: Finance | C36: BAJFINANCE | D36: 2022-01-27 | E36: 7744.25 | F36: 7737.90 | G36: 7690.95 | H36: 7637.65 | I36: 7590.70 | J36: 7791.20 | K36: 7838.15 | L36: 7891.45 | M36: 7784.85 | N36: 7684.6 | O36: 3652500 | P36: -1.58%
A37: 27 | B37: Automobile | C37: BALKRISIND | D37: 2022-01-27 | E37: 2409.65 | F37: 2399.18 | G37: 2384.82 | H37: 2359.98 | I37: 2345.62 | J37: 2424.02 | K37: 2438.38 | L37: 2463.22 | M37: 2413.55 | N37: 2374.35 | O37: 1316800 | P37: -1.13%
A38: 28 | B38: Others | C38: BALRAMCHIN | D38: 2022-01-27 | E38: 421.50 | F38: 421.18 | G38: 411.82 | H38: 402.13 | I38: 392.77 | J38: 430.87 | K38: 440.23 | L38: 449.92 | M38: 430.55 | N38: 411.5 | O38: 4755200 | P38: 1.23%
A39: 29 | B39: Banking | C39: BANDHANBNK | D39: 2022-01-27 | E39: 275.00 | F39: 274.18 | G39: 271.47 | H39: 267.93 | I39: 265.22 | J39: 277.72 | K39: 280.43 | L39: 283.97 | M39: 276.9 | N39: 270.65 | O39: 29865600 | P39: 0.15%
A40: 30 | B40: Banking | C40: BANKBARODA | D40: 2022-01-27 | E40: 92.30 | F40: 91.02 | G40: 89.38 | H40: 86.47 | I40: 84.83 | J40: 93.93 | K40: 95.57 | L40: 98.48 | M40: 92.65 | N40: 88.1 | O40: 141137100 | P40: -4.00%
A41: 31 | B41: FMCG | C41: BATAINDIA | D41: 2022-01-27 | E41: 1920.40 | F41: 1910.45 | G41: 1886.95 | H41: 1853.50 | I41: 1830.00 | J41: 1943.90 | K41: 1967.40 | L41: 2000.85 | M41: 1933.95 | N41: 1877 | O41: 1647250 | P41: 0.71%
A42: 32 | B42: Capital_Goods | C42: BEL | D42: 2022-01-27 | E42: 211.90 | F42: 210.92 | G42: 209.63 | H42: 207.37 | I42: 206.08 | J42: 213.18 | K42: 214.47 | L42: 216.73 | M42: 212.2 | N42: 208.65 | O42: 25954000 | P42: 2.28%
A43: 33 | B43: FMCG | C43: BERGEPAINT | D43: 2022-01-27 | E43: 787.90 | F43: 791.10 | G43: 782.25 | H43: 776.60 | I43: 767.75 | J43: 796.75 | K43: 805.60 | L43: 811.25 | M43: 799.95 | N43: 785.45 | O43: 5104000 | P43: 0.11%
A44: 34 | B44: Automobile | C44: BHARATFORG | D44: 2022-01-27 | E44: 768.55 | F44: 763.92 | G44: 757.58 | H44: 746.62 | I44: 740.28 | J44: 774.88 | K44: 781.22 | L44: 792.18 | M44: 770.25 | N44: 752.95 | O44: 7377000 | P44: -0.74%
A45: 35 | B45: Telecom | C45: BHARTIARTL | D45: 2022-01-27 | E45: 708.25 | F45: 709.50 | G45: 704.85 | H45: 701.45 | I45: 696.80 | J45: 712.90 | K45: 717.55 | L45: 720.95 | M45: 714.15 | N45: 706.1 | O45: 61886800 | P45: 0.42%
A46: 36 | B46: Capital_Goods | C46: BHEL | D46: 2022-01-27 | E46: 62.95 | F46: 62.03 | G46: 60.82 | H46: 58.68 | I46: 57.47 | J46: 64.17 | K46: 65.38 | L46: 67.52 | M46: 63.25 | N46: 59.9 | O46: 126441000 | P46: 5.43%
A47: 37 | B47: Pharma | C47: BIOCON | D47: 2022-01-27 | E47: 359.80 | F47: 358.25 | G47: 355.75 | H47: 351.70 | I47: 349.20 | J47: 362.30 | K47: 364.80 | L47: 368.85 | M47: 360.75 | N47: 354.2 | O47: 18977300 | P47: 0.35%
A48: 38 | B48: Automobile | C48: BOSCHLTD | D48: 2022-01-27 | E48: 17467.70 | F48: 17399.25 | G48: 17174.85 | H48: 16882.00 | I48: 16657.60 | J48: 17692.10 | K48: 17916.50 | L48: 18209.35 | M48: 17623.65 | N48: 17106.4 | O48: 161400 | P48: -3.38%
A49: 39 | B49: Oil_Gas | C49: BPCL | D49: 2022-01-27 | E49: 399.50 | F49: 399.02 | G49: 397.43 | H49: 395.37 | I49: 393.78 | J49: 401.08 | K49: 402.67 | L49: 404.73 | M49: 400.6 | N49: 396.95 | O49: 30155400 | P49: -0.26%
A50: 40 | B50: FMCG | C50: BRITANNIA | D50: 2022-01-27 | E50: 3776.10 | F50: 3764.98 | G50: 3746.02 | H50: 3715.93 | I50: 3696.97 | J50: 3795.07 | K50: 3814.03 | L50: 3844.12 | M50: 3783.95 | N50: 3734.9 | O50: 1203400 | P50: -0.27%
A51: 41 | B51: Technology | C51: BSOFT | D51: 2022-01-27 | E51: 572.75 | F51: 576.83 | G51: 567.17 | H51: 561.58 | I51: 551.92 | J51: 582.42 | K51: 592.08 | L51: 597.67 | M51: 586.5 | N51: 571.25 | O51: 5012800 | P51: -1.31%
A52: 42 | B52: Pharma | C52: CADILAHC | D52: 2022-01-27 | E52: 456.20 | F52: 456.05 | G52: 451.45 | H52: 446.70 | I52: 442.10 | J52: 460.80 | K52: 465.40 | L52: 470.15 | M52: 460.65 | N52: 451.3 | O52: 20271900 | P52: 3.32%
A53: 43 | B53: Banking | C53: CANBK | D53: 2022-01-27 | E53: 220.55 | F53: 218.68 | G53: 215.72 | H53: 210.88 | I53: 207.92 | J53: 223.52 | K53: 226.48 | L53: 231.32 | M53: 221.65 | N53: 213.85 | O53: 50398200 | P53: 0.68%
A54: 44 | B54: Finance | C54: CANFINHOME | D54: 2022-01-27 | E54: 599.15 | F54: 596.40 | G54: 588.80 | H54: 578.45 | I54: 570.85 | J54: 606.75 | K54: 614.35 | L54: 624.70 | M54: 604 | N54: 586.05 | O54: 3966300 | P54: 1.57%
A55: 45 | B55: Others | C55: CHAMBLFERT | D55: 2022-01-27 | E55: 434.80 | F55: 432.45 | G55: 428.35 | H55: 421.90 | I55: 417.80 | J55: 438.90 | K55: 443.00 | L55: 449.45 | M55: 436.55 | N55: 426 | O55: 3504000 | P55: 21.35%
A56: 46 | B56: Finance | C56: CHOLAFIN | D56: 2022-01-27 | E56: 563.50 | F56: 568.55 | G56: 557.35 | H56: 551.20 | I56: 540.00 | J56: 574.70 | K56: 585.90 | L56: 592.05 | M56: 579.75 | N56: 562.4 | O56: 6627500 | P56: 2.79%
A57: 47 | B57: Pharma | C57: CIPLA | D57: 2022-01-27 | E57: 920.70 | F57: 918.27 | G57: 914.43 | H57: 908.17 | I57: 904.33 | J57: 924.53 | K57: 928.37 | L57: 934.63 | M57: 922.1 | N57: 912 | O57: 10241400 | P57: 2.38%
A58: 48 | B58: Others | C58: COALINDIA | D58: 2022-01-27 | E58: 160.95 | F58: 159.85 | G58: 158.50 | H58: 156.05 | I58: 154.70 | J58: 162.30 | K58: 163.65 | L58: 166.10 | M58: 161.2 | N58: 157.4 | O58: 44053800 | P58: -2.17%
A59: 49 | B59: Technology | C59: COFORGE | D59: 2022-01-27 | E59: 5469.05 | F59: 5561.02 | G59: 5358.08 | H59: 5247.12 | I59: 5044.18 | J59: 5671.98 | K59: 5874.92 | L59: 5985.88 | M59: 5763.95 | N59: 5450.05 | O59: 916100 | P59: 16.82%
A60: 50 | B60: FMCG | C60: COLPAL | D60: 2022-01-27 | E60: 1470.85 | F60: 1471.52 | G60: 1464.58 | H60: 1458.32 | I60: 1451.38 | J60: 1477.78 | K60: 1484.72 | L60: 1490.98 | M60: 1478.45 | N60: 1465.25 | O60: 3210900 | P60: 1.78%
A61: 51 | B61: Others | C61: CONCOR | D61: 2022-01-27 | E61: 646.35 | F61: 644.07 | G61: 641.08 | H61: 635.82 | I61: 632.83 | J61: 649.33 | K61: 652.32 | L61: 657.58 | M61: 647.05 | N61: 638.8 | O61: 6421600 | P61: -0.07%
A62: 52 | B62: Others | C62: COROMANDEL | D62: 2022-01-27 | E62: 777.00 | F62: 779.00 | G62: 771.00 | H62: 765.00 | I62: 757.00 | J62: 785.00 | K62: 793.00 | L62: 799.00 | M62: 787 | N62: 773 | O62: 1315625 | P62: 2.63%
A63: 53 | B63: Capital_Goods | C63: CROMPTON | D63: 2022-01-27 | E63: 445.90 | F63: 446.43 | G63: 440.97 | H63: 436.03 | I63: 430.57 | J63: 451.37 | K63: 456.83 | L63: 461.77 | M63: 451.9 | N63: 441.5 | O63: 2350700 | P63: 4.40%
A64: 54 | B64: Banking | C64: CUB | D64: 2022-01-27 | E64: 146.85 | F64: 144.88 | G64: 142.17 | H64: 137.48 | I64: 134.77 | J64: 149.57 | K64: 152.28 | L64: 156.97 | M64: 147.6 | N64: 140.2 | O64: 12916600 | P64: 5.06%
A65: 55 | B65: Capital_Goods | C65: CUMMINSIND | D65: 2022-01-27 | E65: 952.45 | F65: 949.75 | G65: 941.50 | H65: 930.55 | I65: 922.30 | J65: 960.70 | K65: 968.95 | L65: 979.90 | M65: 958 | N65: 938.8 | O65: 1029600 | P65: -0.06%
A66: 56 | B66: FMCG | C66: DABUR | D66: 2022-01-27 | E66: 590.10 | F66: 589.68 | G66: 587.37 | H66: 584.63 | I66: 582.32 | J66: 592.42 | K66: 594.73 | L66: 597.47 | M66: 592 | N66: 586.95 | O66: 10063750 | P66: -0.11%
A67: 57 | B67: Cement | C67: DALBHARAT | D67: 2022-01-27 | E67: 1997.90 | F67: 1979.28 | G67: 1955.42 | H67: 1912.93 | I67: 1889.07 | J67: 2021.77 | K67: 2045.63 | L67: 2088.12 | M67: 2003.15 | N67: 1936.8 | O67: 546250 | P67: -2.67%
A68: 58 | B68: Chemical | C68: DEEPAKNTR | D68: 2022-01-27 | E68: 2604.55 | F68: 2589.67 | G68: 2560.53 | H68: 2516.52 | I68: 2487.38 | J68: 2633.68 | K68: 2662.82 | L68: 2706.83 | M68: 2618.8 | N68: 2545.65 | O68: 2248250 | P68: 0.35%
A69: 59 | B69: Others | C69: DELTACORP | D69: 2022-01-27 | E69: 280.70 | F69: 280.68 | G69: 276.37 | H69: 272.03 | I69: 267.72 | J69: 285.02 | K69: 289.33 | L69: 293.67 | M69: 285 | N69: 276.35 | O69: 20683900 | P69: -5.63%
A70: 60 | B70: Pharma | C70: DIVISLAB | D70: 2022-01-27 | E70: 4488.40 | F70: 4505.20 | G70: 4465.80 | H70: 4443.20 | I70: 4403.80 | J70: 4527.80 | K70: 4567.20 | L70: 4589.80 | M70: 4544.6 | N70: 4482.6 | O70: 2745500 | P70: 3.14%
A71: 61 | B71: Others | C71: DIXON | D71: 2022-01-27 | E71: 5313.00 | F71: 5335.98 | G71: 5272.07 | H71: 5231.13 | I71: 5167.22 | J71: 5376.92 | K71: 5440.83 | L71: 5481.77 | M71: 5399.9 | N71: 5295.05 | O71: 619750 | P71: 2.80%
A72: 62 | B72: Realty | C72: DLF | D72: 2022-01-27 | E72: 409.80 | F72: 409.18 | G72: 405.92 | H72: 402.03 | I72: 398.77 | J72: 413.07 | K72: 416.33 | L72: 420.22 | M72: 412.45 | N72: 405.3 | O72: 30272550 | P72: 0.92%
A73: 63 | B73: Pharma | C73: DRREDDY | D73: 2022-01-27 | E73: 4720.95 | F73: 4712.95 | G73: 4684.30 | H73: 4647.65 | I73: 4619.00 | J73: 4749.60 | K73: 4778.25 | L73: 4814.90 | M73: 4741.6 | N73: 4676.3 | O73: 2426250 | P73: 2.58%
A74: 64 | B74: Automobile | C74: EICHERMOT | D74: 2022-01-27 | E74: 2829.00 | F74: 2833.63 | G74: 2809.42 | H74: 2789.83 | I74: 2765.62 | J74: 2853.22 | K74: 2877.43 | L74: 2897.02 | M74: 2857.85 | N74: 2814.05 | O74: 2233350 | P74: 0.00%
A75: 65 | B75: Automobile | C75: ESCORTS | D75: 2022-01-27 | E75: 1874.90 | F75: 1875.10 | G75: 1867.90 | H75: 1860.90 | I75: 1853.70 | J75: 1882.10 | K75: 1889.30 | L75: 1896.30 | M75: 1882.3 | N75: 1868.1 | O75: 5947150 | P75: 1.93%
A76: 66 | B76: Automobile | C76: EXIDEIND | D76: 2022-01-27 | E76: 172.20 | F76: 172.12 | G76: 171.28 | H76: 170.37 | I76: 169.53 | J76: 173.03 | K76: 173.87 | L76: 174.78 | M76: 172.95 | N76: 171.2 | O76: 24044400 | P76: 1.88%
A77: 67 | B77: Banking | C77: FEDERALBNK | D77: 2022-01-27 | E77: 95.95 | F77: 94.73 | G77: 93.12 | H77: 90.28 | I77: 88.67 | J77: 97.57 | K77: 99.18 | L77: 102.02 | M77: 96.35 | N77: 91.9 | O77: 96730000 | P77: 4.58%
A78: 68 | B78: Technology | C78: FSL | D78: 2022-01-27 | E78: 182.75 | F78: 183.05 | G78: 181.45 | H78: 180.15 | I78: 178.55 | J78: 184.35 | K78: 185.95 | L78: 187.25 | M78: 184.65 | N78: 181.75 | O78: 11528400 | P78: 1.63%
A79: 69 | B79: Oil_Gas | C79: GAIL | D79: 2022-01-27 | E79: 142.80 | F79: 142.03 | G79: 141.07 | H79: 139.33 | I79: 138.37 | J79: 143.77 | K79: 144.73 | L79: 146.47 | M79: 143 | N79: 140.3 | O79: 37271000 | P79: -4.68%
A80: 70 | B80: Pharma | C80: GLENMARK | D80: 2022-01-27 | E80: 520.90 | F80: 518.32 | G80: 511.68 | H80: 502.47 | I80: 495.83 | J80: 527.53 | K80: 534.17 | L80: 543.38 | M80: 524.95 | N80: 509.1 | O80: 8733100 | P80: -0.05%
A81: 71 | B81: Infrastructure | C81: GMRINFRA | D81: 2022-01-27 | E81: 48.50 | F81: 47.65 | G81: 46.30 | H81: 44.10 | I81: 42.75 | J81: 49.85 | K81: 51.20 | L81: 53.40 | M81: 49 | N81: 45.45 | O81: 31387500 | P81: -63.74%
A82: 72 | B82: Others | C82: GNFC | D82: 2022-01-27 | E82: 459.60 | F82: 459.23 | G82: 454.62 | H82: 449.63 | I82: 445.02 | J82: 464.22 | K82: 468.83 | L82: 473.82 | M82: 463.85 | N82: 454.25 | O82: 2473900 | P82: -0.16%
A83: 73 | B83: FMCG | C83: GODREJCP | D83: 2022-01-27 | E83: 935.30 | F83: 943.85 | G83: 924.45 | H83: 913.60 | I83: 894.20 | J83: 954.70 | K83: 974.10 | L83: 984.95 | M83: 963.25 | N83: 933 | O83: 5488500 | P83: -0.04%
A84: 74 | B84: Realty | C84: GODREJPROP | D84: 2022-01-27 | E84: 1932.20 | F84: 1934.68 | G84: 1912.77 | H84: 1893.33 | I84: 1871.42 | J84: 1954.12 | K84: 1976.03 | L84: 1995.47 | M84: 1956.6 | N84: 1915.25 | O84: 3144050 | P84: -0.38%
A85: 75 | B85: Pharma | C85: GRANULES | D85: 2022-01-27 | E85: 328.45 | F85: 325.97 | G85: 322.13 | H85: 315.82 | I85: 311.98 | J85: 332.28 | K85: 336.12 | L85: 342.43 | M85: 329.8 | N85: 319.65 | O85: 14539000 | P85: 2.65%
A86: 76 | B86: Cement | C86: GRASIM | D86: 2022-01-27 | E86: 1840.20 | F86: 1827.70 | G86: 1808.75 | H86: 1777.30 | I86: 1758.35 | J86: 1859.15 | K86: 1878.10 | L86: 1909.55 | M86: 1846.65 | N86: 1796.25 | O86: 11069400 | P86: -3.51%
A87: 77 | B87: Oil_Gas | C87: GSPL | D87: 2022-01-27 | E87: 317.75 | F87: 317.27 | G87: 312.53 | H87: 307.32 | I87: 302.58 | J87: 322.48 | K87: 327.22 | L87: 332.43 | M87: 322 | N87: 312.05 | O87: 1475600 | P87: 4.83%
A88: 78 | B88: Oil_Gas | C88: GUJGASLTD | D88: 2022-01-27 | E88: 694.55 | F88: 697.75 | G88: 686.80 | H88: 679.05 | I88: 668.10 | J88: 705.50 | K88: 716.45 | L88: 724.20 | M88: 708.7 | N88: 690 | O88: 2432500 | P88: 11.33%
A89: 79 | B89: Others | C89: HAL | D89: 2022-01-27 | E89: 1298.95 | F89: 1289.13 | G89: 1274.57 | H89: 1250.18 | I89: 1235.62 | J89: 1313.52 | K89: 1328.08 | L89: 1352.47 | M89: 1303.7 | N89: 1264.75 | O89: 2950700 | P89: -2.50%
A90: 80 | B90: Capital_Goods | C90: HAVELLS | D90: 2022-01-27 | E90: 1358.05 | F90: 1365.35 | G90: 1347.75 | H90: 1337.45 | I90: 1319.85 | J90: 1375.65 | K90: 1393.25 | L90: 1403.55 | M90: 1382.95 | N90: 1355.05 | O90: 3774500 | P90: 3.71%
A91: 81 | B91: Technology | C91: HCLTECH | D91: 2022-01-27 | E91: 1284.75 | F91: 1286.83 | G91: 1274.72 | H91: 1264.68 | I91: 1252.57 | J91: 1296.87 | K91: 1308.98 | L91: 1319.02 | M91: 1298.95 | N91: 1276.8 | O91: 19545400 | P91: 3.35%
A92: 82 | B92: Finance | C92: HDFC | D92: 2022-01-27 | E92: 2671.85 | F92: 2654.28 | G92: 2631.57 | H92: 2591.28 | I92: 2568.57 | J92: 2694.57 | K92: 2717.28 | L92: 2757.57 | M92: 2677 | N92: 2614 | O92: 14918400 | P92: -1.58%
A93: 83 | B93: Finance | C93: HDFCAMC | D93: 2022-01-27 | E93: 2529.45 | F93: 2509.20 | G93: 2476.80 | H93: 2424.15 | I93: 2391.75 | J93: 2561.85 | K93: 2594.25 | L93: 2646.90 | M93: 2541.6 | N93: 2456.55 | O93: 3208200 | P93: -0.57%
A94: 84 | B94: Banking | C94: HDFCBANK | D94: 2022-01-27 | E94: 1564.50 | F94: 1563.12 | G94: 1551.28 | H94: 1538.07 | I94: 1526.23 | J94: 1576.33 | K94: 1588.17 | L94: 1601.38 | M94: 1574.95 | N94: 1549.9 | O94: 33492250 | P94: -2.29%
A95: 85 | B95: Finance | C95: HDFCLIFE | D95: 2022-01-27 | E95: 666.25 | F95: 666.30 | G95: 660.60 | H95: 654.95 | I95: 649.25 | J95: 671.95 | K95: 677.65 | L95: 683.30 | M95: 672 | N95: 660.65 | O95: 20290600 | P95: -1.32%
A96: 86 | B96: Automobile | C96: HEROMOTOCO | D96: 2022-01-27 | E96: 2584.60 | F96: 2562.65 | G96: 2535.35 | H96: 2486.10 | I96: 2458.80 | J96: 2611.90 | K96: 2639.20 | L96: 2688.45 | M96: 2589.95 | N96: 2513.4 | O96: 4395000 | P96: 0.18%
A97: 87 | B97: Metals | C97: HINDALCO | D97: 2022-01-27 | E97: 494.20 | F97: 494.53 | G97: 490.12 | H97: 486.03 | I97: 481.62 | J97: 498.62 | K97: 503.03 | L97: 507.12 | M97: 498.95 | N97: 490.45 | O97: 31539425 | P97: 0.87%
A98: 88 | B98: Metals | C98: HINDCOPPER | D98: 2022-01-27 | E98: 132.35 | F98: 133.15 | G98: 131.30 | H98: 130.25 | I98: 128.40 | J98: 134.20 | K98: 136.05 | L98: 137.10 | M98: 135 | N98: 132.1 | O98: 11506800 | P98: 6.74%
A99: 89 | B99: Oil_Gas | C99: HINDPETRO | D99: 2022-01-27 | E99: 327.10 | F99: 324.95 | G99: 322.15 | H99: 317.20 | I99: 314.40 | J99: 329.90 | K99: 332.70 | L99: 337.65 | M99: 327.75 | N99: 320 | O99: 11877300 | P99: 4.19%
A100: 90 | B100: FMCG | C100: HINDUNILVR | D100: 2022-01-27 | E100: 2412.65 | F100: 2416.50 | G100: 2402.40 | H100: 2392.15 | I100: 2378.05 | J100: 2426.75 | K100: 2440.85 | L100: 2451.10 | M100: 2430.6 | N100: 2406.25 | O100: 8831400 | P100: 0.48%
A101: 91 | B101: Others | C101: HONAUT | D101: 2022-01-27 | E101: 43650.65 | F101: 43649.87 | G101: 43200.73 | H101: 42750.82 | I101: 42301.68 | J101: 44099.78 | K101: 44548.92 | L101: 44998.83 | M101: 44099 | N101: 43199.95 | O101: 8025 | P101: -3.25%
A102: 92 | B102: Finance | C102: IBULHSGFIN | D102: 2022-01-27 | E102: 227.30 | F102: 226.43 | G102: 223.27 | H102: 219.23 | I102: 216.07 | J102: 230.47 | K102: 233.63 | L102: 237.67 | M102: 229.6 | N102: 222.4 | O102: 42547500 | P102: 13.30%
A103: 93 | B103: Banking | C103: ICICIBANK | D103: 2022-01-27 | E103: 812.30 | F103: 809.27 | G103: 804.73 | H103: 797.17 | I103: 792.63 | J103: 816.83 | K103: 821.37 | L103: 828.93 | M103: 813.8 | N103: 801.7 | O103: 73188500 | P103: 1.09%
A104: 94 | B104: Finance | C104: ICICIGI | D104: 2022-01-27 | E104: 1449.75 | F104: 1455.13 | G104: 1436.62 | H104: 1423.48 | I104: 1404.97 | J104: 1468.27 | K104: 1486.78 | L104: 1499.92 | M104: 1473.65 | N104: 1442 | O104: 2898075 | P104: -0.97%
A105: 95 | B105: Finance | C105: ICICIPRULI | D105: 2022-01-27 | E105: 591.20 | F105: 589.30 | G105: 584.95 | H105: 578.70 | I105: 574.35 | J105: 595.55 | K105: 599.90 | L105: 606.15 | M105: 593.65 | N105: 583.05 | O105: 5561250 | P105: 4.86%
A106: 96 | B106: Telecom | C106: IDEA | D106: 2022-01-27 | E106: 14.95 | F106: 15.03 | G106: 14.67 | H106: 14.38 | I106: 14.02 | J106: 15.32 | K106: 15.68 | L106: 15.97 | M106: 15.4 | N106: 14.75 | O106: 860440000 | P106: -0.68%
A107: 97 | B107: Finance | C107: IDFC | D107: 2022-01-27 | E107: 64.55 | F107: 63.63 | G107: 62.02 | H107: 59.48 | I107: 57.87 | J107: 66.17 | K107: 67.78 | L107: 70.32 | M107: 65.25 | N107: 61.1 | O107: 61320000 | P107: 18.77%
A108: 98 | B108: Banking | C108: IDFCFIRSTB | D108: 2022-01-27 | E108: 50.10 | F108: 50.02 | G108: 49.53 | H108: 48.97 | I108: 48.48 | J108: 50.58 | K108: 51.07 | L108: 51.63 | M108: 50.5 | N108: 49.45 | O108: 157830900 | P108: 1.15%
A109: 99 | B109: Others | C109: IEX | D109: 2022-01-27 | E109: 262.15 | F109: 262.52 | G109: 260.18 | H109: 258.22 | I109: 255.88 | J109: 264.48 | K109: 266.82 | L109: 268.78 | M109: 264.85 | N109: 260.55 | O109: 40653750 | P109: 0.25%
A110: 100 | B110: Oil_Gas | C110: IGL | D110: 2022-01-27 | E110: 470.95 | F110: 470.93 | G110: 469.22 | H110: 467.48 | I110: 465.77 | J110: 472.67 | K110: 474.38 | L110: 476.12 | M110: 472.65 | N110: 469.2 | O110: 14220250 | P110: 1.78%
A111: 101 | B111: Infrastructure | C111: INDHOTEL | D111: 2022-01-27 | E111: 194.75 | F111: 192.03 | G111: 187.57 | H111: 180.38 | I111: 175.92 | J111: 199.22 | K111: 203.68 | L111: 210.87 | M111: 196.5 | N111: 184.85 | O111: 13159984 | P111: -7.52%
A112: 102 | B112: Cement | C112: INDIACEM | D112: 2022-01-27 | E112: 251.35 | F112: 247.72 | G112: 240.73 | H112: 230.12 | I112: 223.13 | J112: 258.33 | K112: 265.32 | L112: 275.93 | M112: 254.7 | N112: 237.1 | O112: 16289300 | P112: 9.86%
A113: 103 | B113: Others | C113: INDIAMART | D113: 2022-01-27 | E113: 6624.40 | F113: 6653.55 | G113: 6572.15 | H113: 6519.90 | I113: 6438.50 | J113: 6705.80 | K113: 6787.20 | L113: 6839.45 | M113: 6734.95 | N113: 6601.3 | O113: 246225 | P113: 1.39%
A114: 104 | B114: Others | C114: INDIGO | D114: 2022-01-27 | E114: 2057.15 | F114: 2038.83 | G114: 2003.67 | H114: 1950.18 | I114: 1915.02 | J114: 2092.32 | K114: 2127.48 | L114: 2180.97 | M114: 2074 | N114: 1985.35 | O114: 2986500 | P114: 6.27%
A115: 105 | B115: Banking | C115: INDUSINDBK | D115: 2022-01-27 | E115: 925.45 | F115: 926.05 | G115: 920.50 | H115: 915.55 | I115: 910.00 | J115: 931.00 | K115: 936.55 | L115: 941.50 | M115: 931.6 | N115: 921.1 | O115: 29232900 | P115: 0.73%
A116: 106 | B116: Telecom | C116: INDUSTOWER | D116: 2022-01-27 | E116: 261.95 | F116: 263.18 | G116: 259.47 | H116: 256.98 | I116: 253.27 | J116: 265.67 | K116: 269.38 | L116: 271.87 | M116: 266.9 | N116: 260.7 | O116: 15769600 | P116: 0.37%
A117: 107 | B117: Technology | C117: INFY | D117: 2022-01-27 | E117: 1853.55 | F117: 1848.48 | G117: 1821.47 | H117: 1789.38 | I117: 1762.37 | J117: 1880.57 | K117: 1907.58 | L117: 1939.67 | M117: 1875.5 | N117: 1816.4 | O117: 38655900 | P117: 5.63%
A118: 108 | B118: Oil_Gas | C118: IOC | D118: 2022-01-27 | E118: 120.25 | F118: 119.77 | G118: 118.98 | H118: 117.72 | I118: 116.93 | J118: 121.03 | K118: 121.82 | L118: 123.08 | M118: 120.55 | N118: 118.5 | O118: 49705500 | P118: 4.55%
A119: 109 | B119: Pharma | C119: IPCALAB | D119: 2022-01-27 | E119: 1060.65 | F119: 1070.33 | G119: 1016.67 | H119: 972.68 | I119: 919.02 | J119: 1114.32 | K119: 1167.98 | L119: 1211.97 | M119: 1124 | N119: 1026.35 | O119: 2043450 | P119: 83.25%
A120: 110 | B120: Others | C120: IRCTC | D120: 2022-01-27 | E120: 877.80 | F120: 875.27 | G120: 868.03 | H120: 858.27 | I120: 851.03 | J120: 885.03 | K120: 892.27 | L120: 902.03 | M120: 882.5 | N120: 865.5 | O120: 8871625 | P120: 1.77%
A121: 111 | B121: FMCG | C121: ITC | D121: 2022-01-27 | E121: 224.45 | F121: 223.27 | G121: 220.88 | H121: 217.32 | I121: 214.93 | J121: 226.83 | K121: 229.22 | L121: 232.78 | M121: 225.65 | N121: 219.7 | O121: 221740800 | P121: -2.20%
A122: 112 | B122: Metals | C122: JINDALSTEL | D122: 2022-01-27 | E122: 406.25 | F122: 407.68 | G122: 402.97 | H122: 399.68 | I122: 394.97 | J122: 410.97 | K122: 415.68 | L122: 418.97 | M122: 412.4 | N122: 404.4 | O122: 34860000 | P122: 0.72%
A123: 113 | B123: Cement | C123: JKCEMENT | D123: 2022-01-27 | E123: 3552.25 | F123: 3562.45 | G123: 3472.95 | H123: 3393.65 | I123: 3304.15 | J123: 3641.75 | K123: 3731.25 | L123: 3810.55 | M123: 3651.95 | N123: 3483.15 | O123: 328475 | P123: 2.51%
A124: 114 | B124: Metals | C124: JSWSTEEL | D124: 2022-01-27 | E124: 675.30 | F124: 675.77 | G124: 670.53 | H124: 665.77 | I124: 660.53 | J124: 680.53 | K124: 685.77 | L124: 690.53 | M124: 681 | N124: 671 | O124: 42448050 | P124: 0.66%
A125: 115 | B125: Others | C125: JUBLFOOD | D125: 2022-01-27 | E125: 3799.40 | F125: 3798.12 | G125: 3760.23 | H125: 3721.07 | I125: 3683.18 | J125: 3837.28 | K125: 3875.17 | L125: 3914.33 | M125: 3836 | N125: 3758.95 | O125: 2146625 | P125: 2.83%
A126: 116 | B126: Banking | C126: KOTAKBANK | D126: 2022-01-27 | E126: 1949.10 | F126: 1936.17 | G126: 1919.03 | H126: 1888.97 | I126: 1871.83 | J126: 1966.23 | K126: 1983.37 | L126: 2013.43 | M126: 1953.3 | N126: 1906.1 | O126: 13417200 | P126: -3.68%
A127: 117 | B127: Finance | C127: L&TFH | D127: 2022-01-27 | E127: 80.65 | F127: 80.62 | G127: 80.13 | H127: 79.62 | I127: 79.13 | J127: 81.13 | K127: 81.62 | L127: 82.13 | M127: 81.1 | N127: 80.1 | O127: 66278548 | P127: 2.87%
A128: 118 | B128: Others | C128: LALPATHLAB | D128: 2022-01-27 | E128: 3710.65 | F128: 3726.52 | G128: 3654.13 | H128: 3597.62 | I128: 3525.23 | J128: 3783.03 | K128: 3855.42 | L128: 3911.93 | M128: 3798.9 | N128: 3670 | O128: 497125 | P128: 3.70%
A129: 119 | B129: Pharma | C129: LAURUSLABS | D129: 2022-01-27 | E129: 523.70 | F129: 525.47 | G129: 520.43 | H129: 517.17 | I129: 512.13 | J129: 528.73 | K129: 533.77 | L129: 537.03 | M129: 530.5 | N129: 522.2 | O129: 4962600 | P129: 4.79%
A130: 120 | B130: Finance | C130: LICHSGFIN | D130: 2022-01-27 | E130: 382.20 | F130: 382.02 | G130: 378.73 | H130: 375.27 | I130: 371.98 | J130: 385.48 | K130: 388.77 | L130: 392.23 | M130: 385.3 | N130: 378.55 | O130: 13972000 | P130: 3.80%
A131: 121 | B131: Capital_Goods | C131: LT | D131: 2022-01-27 | E131: 1962.15 | F131: 1947.90 | G131: 1926.45 | H131: 1890.75 | I131: 1869.30 | J131: 1983.60 | K131: 2005.05 | L131: 2040.75 | M131: 1969.35 | N131: 1912.2 | O131: 13398650 | P131: 1.69%
A132: 122 | B132: Technology | C132: LTI | D132: 2022-01-27 | E132: 7140.05 | F132: 7189.82 | G132: 7068.38 | H132: 6996.72 | I132: 6875.28 | J132: 7261.48 | K132: 7382.92 | L132: 7454.58 | M132: 7311.25 | N132: 7118.15 | O132: 850500 | P132: 2.44%
A133: 123 | B133: Technology | C133: LTTS | D133: 2022-01-27 | E133: 5618.00 | F133: 5684.47 | G133: 5523.63 | H133: 5429.27 | I133: 5268.43 | J133: 5778.83 | K133: 5939.67 | L133: 6034.03 | M133: 5845.3 | N133: 5590.1 | O133: 765200 | P133: 11.74%
A134: 124 | B134: Pharma | C134: LUPIN | D134: 2022-01-27 | E134: 941.05 | F134: 934.10 | G134: 925.15 | H134: 909.25 | I134: 900.30 | J134: 950.00 | K134: 958.95 | L134: 974.85 | M134: 943.05 | N134: 918.2 | O134: 6927500 | P134: -2.22%
A135: 125 | B135: Automobile | C135: M&M | D135: 2022-01-27 | E135: 845.65 | F135: 843.07 | G135: 835.58 | H135: 825.52 | I135: 818.03 | J135: 853.13 | K135: 860.62 | L135: 870.68 | M135: 850.55 | N135: 833 | O135: 12492900 | P135: 1.93%
A136: 126 | B136: Finance | C136: M&MFIN | D136: 2022-01-27 | E136: 155.50 | F136: 155.33 | G136: 154.32 | H136: 153.13 | I136: 152.12 | J136: 156.52 | K136: 157.53 | L136: 158.72 | M136: 156.35 | N136: 154.15 | O136: 29284000 | P136: 3.04%
A137: 127 | B137: Finance | C137: MANAPPURAM | D137: 2022-01-27 | E137: 170.10 | F137: 170.48 | G137: 167.42 | H137: 164.73 | I137: 161.67 | J137: 173.17 | K137: 176.23 | L137: 178.92 | M137: 173.55 | N137: 167.8 | O137: 20061000 | P137: 6.19%
A138: 128 | B138: FMCG | C138: MARICO | D138: 2022-01-27 | E138: 507.50 | F138: 506.28 | G138: 503.57 | H138: 499.63 | I138: 496.92 | J138: 510.22 | K138: 512.93 | L138: 516.87 | M138: 509 | N138: 502.35 | O138: 8341000 | P138: -0.43%
A139: 129 | B139: Automobile | C139: MARUTI | D139: 2022-01-27 | E139: 8130.75 | F139: 8107.60 | G139: 7968.15 | H139: 7805.55 | I139: 7666.10 | J139: 8270.20 | K139: 8409.65 | L139: 8572.25 | M139: 8247.05 | N139: 7945 | O139: 2420000 | P139: 3.87%
A140: 130 | B140: FMCG | C140: MCDOWELL-N | D140: 2022-01-27 | E140: 899.00 | F140: 895.42 | G140: 889.73 | H140: 880.47 | I140: 874.78 | J140: 904.68 | K140: 910.37 | L140: 919.63 | M140: 901.1 | N140: 886.15 | O140: 15910000 | P140: -0.61%
A141: 131 | B141: Others | C141: MCX | D141: 2022-01-27 | E141: 1612.95 | F141: 1616.68 | G141: 1605.37 | H141: 1597.78 | I141: 1586.47 | J141: 1624.27 | K141: 1635.58 | L141: 1643.17 | M141: 1628 | N141: 1609.1 | O141: 1989750 | P141: 3.93%
A142: 132 | B142: Pharma | C142: METROPOLIS | D142: 2022-01-27 | E142: 3228.95 | F142: 3244.47 | G142: 3201.38 | H142: 3173.82 | I142: 3130.73 | J142: 3272.03 | K142: 3315.12 | L142: 3342.68 | M142: 3287.55 | N142: 3216.9 | O142: 504400 | P142: -2.25%
A143: 133 | B143: Finance | C143: MFSL | D143: 2022-01-27 | E143: 1056.60 | F143: 1056.23 | G143: 1037.47 | H143: 1018.33 | I143: 999.57 | J143: 1075.37 | K143: 1094.13 | L143: 1113.27 | M143: 1075 | N143: 1037.1 | O143: 1784900 | P143: 0.37%
A144: 134 | B144: Oil_Gas | C144: MGL | D144: 2022-01-27 | E144: 894.50 | F144: 893.30 | G144: 890.00 | H144: 885.50 | I144: 882.20 | J144: 897.80 | K144: 901.10 | L144: 905.60 | M144: 896.6 | N144: 888.8 | O144: 4870800 | P144: 1.61%
A145: 135 | B145: Technology | C145: MINDTREE | D145: 2022-01-27 | E145: 4576.50 | F145: 4598.07 | G145: 4517.23 | H145: 4457.97 | I145: 4377.13 | J145: 4657.33 | K145: 4738.17 | L145: 4797.43 | M145: 4678.9 | N145: 4538.8 | O145: 2703600 | P145: 4.74%
A146: 136 | B146: Automobile | C146: MOTHERSUMI | D146: 2022-01-27 | E146: 239.75 | F146: 241.18 | G146: 237.12 | H146: 234.48 | I146: 230.42 | J146: 243.82 | K146: 247.88 | L146: 250.52 | M146: 245.25 | N146: 238.55 | O146: 25620000 | P146: -1.77%
A147: 137 | B147: Technology | C147: MPHASIS | D147: 2022-01-27 | E147: 3216.10 | F147: 3231.22 | G147: 3176.08 | H147: 3136.07 | I147: 3080.93 | J147: 3271.23 | K147: 3326.37 | L147: 3366.38 | M147: 3286.35 | N147: 3191.2 | O147: 2026850 | P147: 4.15%
A148: 138 | B148: Automobile | C148: MRF | D148: 2022-01-27 | E148: 74665.90 | F148: 74775.03 | G148: 74205.17 | H148: 73744.43 | I148: 73174.57 | J148: 75235.77 | K148: 75805.63 | L148: 76266.37 | M148: 75344.9 | N148: 74314.3 | O148: 57310 | P148: -1.07%
A149: 139 | B149: Finance | C149: MUTHOOTFIN | D149: 2022-01-27 | E149: 1548.05 | F149: 1544.88 | G149: 1532.87 | H149: 1517.68 | I149: 1505.67 | J149: 1560.07 | K149: 1572.08 | L149: 1587.27 | M149: 1556.9 | N149: 1529.7 | O149: 3536250 | P149: 4.05%
A150: 140 | B150: Others | C150: NAM-INDIA | D150: 2022-01-27 | E150: 362.95 | F150: 361.30 | G150: 356.75 | H150: 350.55 | I150: 346.00 | J150: 367.50 | K150: 372.05 | L150: 378.25 | M150: 365.85 | N150: 355.1 | O150: 3657600 | P150: 1.74%
A151: 141 | B151: Metals | C151: NATIONALUM | D151: 2022-01-27 | E151: 113.05 | F151: 112.35 | G151: 110.75 | H151: 108.45 | I151: 106.85 | J151: 114.65 | K151: 116.25 | L151: 118.55 | M151: 113.95 | N151: 110.05 | O151: 108196500 | P151: 3.50%
A152: 142 | B152: Others | C152: NAUKRI | D152: 2022-01-27 | E152: 5573.65 | F152: 5589.95 | G152: 5523.90 | H152: 5474.15 | I152: 5408.10 | J152: 5639.70 | K152: 5705.75 | L152: 5755.50 | M152: 5656 | N152: 5540.2 | O152: 1138500 | P152: 1.02%
A153: 143 | B153: Chemical | C153: NAVINFLUOR | D153: 2022-01-27 | E153: 4068.50 | F153: 4062.38 | G153: 3995.82 | H153: 3923.13 | I153: 3856.57 | J153: 4135.07 | K153: 4201.63 | L153: 4274.32 | M153: 4128.95 | N153: 3989.7 | O153: 411975 | P153: 7.26%
A154: 144 | B154: Others | C154: NBCC | D154: 2022-01-27 | E154: 51.15 | F154: 51.15 | G154: 50.40 | H154: 49.65 | I154: 48.90 | J154: 51.90 | K154: 52.65 | L154: 53.40 | M154: 51.9 | N154: 50.4 | O154: 32484000 | P154: 12.65%
A155: 145 | B155: FMCG | C155: NESTLEIND | D155: 2022-01-27 | E155: 19752.10 | F155: 19841.63 | G155: 19642.32 | H155: 19532.53 | I155: 19333.22 | J155: 19951.42 | K155: 20150.73 | L155: 20260.52 | M155: 20040.95 | N155: 19731.85 | O155: 311575 | P155: 1.11%
A156: 146 | B156: Metals | C156: NMDC | D156: 2022-01-27 | E156: 140.20 | F156: 140.43 | G156: 139.47 | H156: 138.73 | I156: 137.77 | J156: 141.17 | K156: 142.13 | L156: 142.87 | M156: 141.4 | N156: 139.7 | O156: 80158800 | P156: 0.51%
A157: 147 | B157: Power | C157: NTPC | D157: 2022-01-27 | E157: 132.25 | F157: 131.95 | G157: 131.35 | H157: 130.45 | I157: 129.85 | J157: 132.85 | K157: 133.45 | L157: 134.35 | M157: 132.55 | N157: 131.05 | O157: 54617400 | P157: 2.78%
A158: 148 | B158: Realty | C158: OBEROIRLTY | D158: 2022-01-27 | E158: 942.80 | F158: 941.10 | G158: 928.70 | H158: 914.60 | I158: 902.20 | J158: 955.20 | K158: 967.60 | L158: 981.70 | M158: 953.5 | N158: 927 | O158: 3109400 | P158: -0.85%
A159: 149 | B159: Technology | C159: OFSS | D159: 2022-01-27 | E159: 4092.60 | F159: 4064.70 | G159: 4007.90 | H159: 3923.20 | I159: 3866.40 | J159: 4149.40 | K159: 4206.20 | L159: 4290.90 | M159: 4121.5 | N159: 3980 | O159: 669500 | P159: -0.65%
A160: 150 | B160: Oil_Gas | C160: ONGC | D160: 2022-01-27 | E160: 158.00 | F160: 157.62 | G160: 156.88 | H160: 155.77 | I160: 155.03 | J160: 158.73 | K160: 159.47 | L160: 160.58 | M160: 158.35 | N160: 156.5 | O160: 41256600 | P160: 2.84%
A161: 151 | B161: Textile | C161: PAGEIND | D161: 2022-01-27 | E161: 43831.55 | F161: 43940.85 | G161: 43451.70 | H161: 43071.85 | I161: 42582.70 | J161: 44320.70 | K161: 44809.85 | L161: 45189.70 | M161: 44430 | N161: 43561 | O161: 83490 | P161: -4.17%
A162: 152 | B162: Pharma | C162: PEL | D162: 2022-01-27 | E162: 2589.85 | F162: 2584.67 | G162: 2568.33 | H162: 2546.82 | I162: 2530.48 | J162: 2606.18 | K162: 2622.52 | L162: 2644.03 | M162: 2601 | N162: 2563.15 | O162: 3444375 | P162: 1.84%
A163: 153 | B163: Technology | C163: PERSISTENT | D163: 2022-01-27 | E163: 4505.05 | F163: 4531.70 | G163: 4448.35 | H163: 4391.65 | I163: 4308.30 | J163: 4588.40 | K163: 4671.75 | L163: 4728.45 | M163: 4615.05 | N163: 4475 | O163: 579150 | P163: 0.36%
A164: 154 | B164: Oil_Gas | C164: PETRONET | D164: 2022-01-27 | E164: 223.85 | F164: 225.05 | G164: 221.90 | H164: 219.95 | I164: 216.80 | J164: 227.00 | K164: 230.15 | L164: 232.10 | M164: 228.2 | N164: 223.1 | O164: 18339000 | P164: -0.67%
A165: 155 | B165: Finance | C165: PFC | D165: 2022-01-27 | E165: 126.50 | F165: 125.95 | G165: 125.10 | H165: 123.70 | I165: 122.85 | J165: 127.35 | K165: 128.20 | L165: 129.60 | M165: 126.8 | N165: 124.55 | O165: 41837600 | P165: -0.75%
A166: 156 | B166: Pharma | C166: PFIZER | D166: 2022-01-27 | E166: 4947.05 | F166: 4955.87 | G166: 4923.78 | H166: 4900.52 | I166: 4868.43 | J166: 4979.13 | K166: 5011.22 | L166: 5034.48 | M166: 4987.95 | N166: 4932.6 | O166: 168500 | P166: 3.37%
A167: 157 | B167: FMCG | C167: PIDILITIND | D167: 2022-01-27 | E167: 2720.45 | F167: 2720.83 | G167: 2693.72 | H167: 2666.98 | I167: 2639.87 | J167: 2747.57 | K167: 2774.68 | L167: 2801.42 | M167: 2747.95 | N167: 2694.1 | O167: 2129000 | P167: -1.37%
A168: 158 | B168: Chemical | C168: PIIND | D168: 2022-01-27 | E168: 2901.05 | F168: 2915.35 | G168: 2881.05 | H168: 2861.05 | I168: 2826.75 | J168: 2935.35 | K168: 2969.65 | L168: 2989.65 | M168: 2949.65 | N168: 2895.35 | O168: 1785500 | P168: 5.70%
A169: 159 | B169: Banking | C169: PNB | D169: 2022-01-27 | E169: 40.50 | F169: 40.18 | G169: 39.47 | H169: 38.43 | I169: 37.72 | J169: 41.22 | K169: 41.93 | L169: 42.97 | M169: 40.9 | N169: 39.15 | O169: 279296000 | P169: 4.72%
A170: 160 | B170: Others | C170: POLYCAB | D170: 2022-01-27 | E170: 2530.65 | F170: 2518.85 | G170: 2497.80 | H170: 2464.95 | I170: 2443.90 | J170: 2551.70 | K170: 2572.75 | L170: 2605.60 | M170: 2539.9 | N170: 2486 | O170: 543300 | P170: -5.38%
A171: 161 | B171: Power | C171: POWERGRID | D171: 2022-01-27 | E171: 205.05 | F171: 205.97 | G171: 203.83 | H171: 202.62 | I171: 200.48 | J171: 207.18 | K171: 209.32 | L171: 210.53 | M171: 208.1 | N171: 204.75 | O171: 34392517 | P171: 10.03%
A172: 162 | B172: Media | C172: PVR | D172: 2022-01-27 | E172: 1434.70 | F172: 1410.10 | G172: 1378.80 | H172: 1322.90 | I172: 1291.60 | J172: 1466.00 | K172: 1497.30 | L172: 1553.20 | M172: 1441.4 | N172: 1354.2 | O172: 3174600 | P172: 9.64%
A173: 163 | B173: Others | C173: RAIN | D173: 2022-01-27 | E173: 242.25 | F173: 244.17 | G173: 239.33 | H173: 236.42 | I173: 231.58 | J173: 247.08 | K173: 251.92 | L173: 254.83 | M173: 249 | N173: 241.25 | O173: 4305000 | P173: 13.21%
A174: 164 | B174: Cement | C174: RAMCOCEM | D174: 2022-01-27 | E174: 1046.85 | F174: 1041.65 | G174: 1033.00 | H174: 1019.15 | I174: 1010.50 | J174: 1055.50 | K174: 1064.15 | L174: 1078.00 | M174: 1050.3 | N174: 1027.8 | O174: 1835150 | P174: -0.96%
A175: 165 | B175: Banking | C175: RBLBANK | D175: 2022-01-27 | E175: 140.85 | F175: 139.48 | G175: 137.17 | H175: 133.48 | I175: 131.17 | J175: 143.17 | K175: 145.48 | L175: 149.17 | M175: 141.8 | N175: 135.8 | O175: 43647900 | P175: -5.28%
A176: 166 | B176: Power | C176: RECLTD | D176: 2022-01-27 | E176: 140.45 | F176: 139.67 | G176: 138.18 | H176: 135.92 | I176: 134.43 | J176: 141.93 | K176: 143.42 | L176: 145.68 | M176: 141.15 | N176: 137.4 | O176: 37032000 | P176: -0.60%
A177: 167 | B177: Oil_Gas | C177: RELIANCE | D177: 2022-01-27 | E177: 2449.30 | F177: 2446.42 | G177: 2430.43 | H177: 2411.57 | I177: 2395.58 | J177: 2465.28 | K177: 2481.27 | L177: 2500.13 | M177: 2462.4 | N177: 2427.55 | O177: 33442000 | P177: 1.16%
A178: 168 | B178: Metals | C178: SAIL | D178: 2022-01-27 | E178: 110.10 | F178: 110.97 | G178: 108.68 | H178: 107.27 | I178: 104.98 | J178: 112.38 | K178: 114.67 | L178: 116.08 | M178: 113.25 | N178: 109.55 | O178: 165884250 | P178: 6.43%
A179: 169 | B179: Banking | C179: SBICARD | D179: 2022-01-27 | E179: 906.25 | F179: 910.10 | G179: 895.20 | H179: 884.15 | I179: 869.25 | J179: 921.15 | K179: 936.05 | L179: 947.10 | M179: 925 | N179: 899.05 | O179: 5104500 | P179: 9.54%
A180: 170 | B180: Finance | C180: SBILIFE | D180: 2022-01-27 | E180: 1235.40 | F180: 1231.88 | G180: 1217.82 | H180: 1200.23 | I180: 1186.17 | J180: 1249.47 | K180: 1263.53 | L180: 1281.12 | M180: 1245.95 | N180: 1214.3 | O180: 6905250 | P180: 0.87%
A181: 171 | B181: Banking | C181: SBIN | D181: 2022-01-27 | E181: 505.60 | F181: 501.90 | G181: 497.15 | H181: 488.70 | I181: 483.95 | J181: 510.35 | K181: 515.10 | L181: 523.55 | M181: 506.65 | N181: 493.45 | O181: 92445000 | P181: -0.26%
A182: 172 | B182: Cement | C182: SHREECEM | D182: 2022-01-27 | E182: 27067.00 | F182: 27124.82 | G182: 26882.08 | H182: 26697.17 | I182: 26454.43 | J182: 27309.73 | K182: 27552.47 | L182: 27737.38 | M182: 27367.55 | N182: 26939.9 | O182: 172550 | P182: 1.46%
A183: 173 | B183: Capital_Goods | C183: SIEMENS | D183: 2022-01-27 | E183: 2318.20 | F183: 2299.98 | G183: 2272.22 | H183: 2226.23 | I183: 2198.47 | J183: 2345.97 | K183: 2373.73 | L183: 2419.72 | M183: 2327.75 | N183: 2254 | O183: 2098250 | P183: 6.71%
A184: 174 | B184: Textile | C184: SRF | D184: 2022-01-27 | E184: 2539.45 | F184: 2515.82 | G184: 2473.63 | H184: 2407.82 | I184: 2365.63 | J184: 2581.63 | K184: 2623.82 | L184: 2689.63 | M184: 2558 | N184: 2450 | O184: 3269625 | P184: 1.53%
A185: 175 | B185: Finance | C185: SRTRANSFIN | D185: 2022-01-27 | E185: 1229.00 | F185: 1230.10 | G185: 1211.90 | H185: 1194.80 | I185: 1176.60 | J185: 1247.20 | K185: 1265.40 | L185: 1282.50 | M185: 1248.3 | N185: 1213 | O185: 3408400 | P185: 0.13%
A186: 176 | B186: Pharma | C186: STAR | D186: 2022-01-27 | E186: 454.20 | F186: 453.82 | G186: 447.63 | H186: 441.07 | I186: 434.88 | J186: 460.38 | K186: 466.57 | L186: 473.13 | M186: 460 | N186: 447.25 | O186: 6010200 | P186: 2.39%
A187: 177 | B187: Pharma | C187: SUNPHARMA | D187: 2022-01-27 | E187: 828.35 | F187: 829.15 | G187: 819.60 | H187: 810.85 | I187: 801.30 | J187: 837.90 | K187: 847.45 | L187: 856.20 | M187: 838.7 | N187: 820.4 | O187: 27186600 | P187: 0.86%
A188: 178 | B188: Media | C188: SUNTV | D188: 2022-01-27 | E188: 516.85 | F188: 515.70 | G188: 510.75 | H188: 504.65 | I188: 499.70 | J188: 521.80 | K188: 526.75 | L188: 532.85 | M188: 520.65 | N188: 509.6 | O188: 12084000 | P188: -0.80%
A189: 179 | B189: Pharma | C189: SYNGENE | D189: 2022-01-27 | E189: 630.10 | F189: 631.25 | G189: 626.50 | H189: 622.90 | I189: 618.15 | J189: 634.85 | K189: 639.60 | L189: 643.20 | M189: 636 | N189: 627.65 | O189: 1017450 | P189: 3.91%
A190: 180 | B190: Chemical | C190: TATACHEM | D190: 2022-01-27 | E190: 943.15 | F190: 939.80 | G190: 931.15 | H190: 919.15 | I190: 910.50 | J190: 951.80 | K190: 960.45 | L190: 972.45 | M190: 948.45 | N190: 927.8 | O190: 7011000 | P190: -2.61%
A191: 181 | B191: Telecom | C191: TATACOMM | D191: 2022-01-27 | E191: 1490.15 | F191: 1489.38 | G191: 1470.77 | H191: 1451.38 | I191: 1432.77 | J191: 1508.77 | K191: 1527.38 | L191: 1546.77 | M191: 1508 | N191: 1470 | O191: 2855600 | P191: 6.33%
A192: 182 | B192: FMCG | C192: TATACONSUM | D192: 2022-01-27 | E192: 735.20 | F192: 739.45 | G192: 729.50 | H192: 723.80 | I192: 713.85 | J192: 745.15 | K192: 755.10 | L192: 760.80 | M192: 749.4 | N192: 733.75 | O192: 10975500 | P192: 0.59%
A193: 183 | B193: Automobile | C193: TATAMOTORS | D193: 2022-01-27 | E193: 505.55 | F193: 501.67 | G193: 496.13 | H193: 486.72 | I193: 481.18 | J193: 511.08 | K193: 516.62 | L193: 526.03 | M193: 507.2 | N193: 492.25 | O193: 80478300 | P193: -0.25%
A194: 184 | B194: Power | C194: TATAPOWER | D194: 2022-01-27 | E194: 232.85 | F194: 232.85 | G194: 231.05 | H194: 229.25 | I194: 227.45 | J194: 234.65 | K194: 236.45 | L194: 238.25 | M194: 234.65 | N194: 231.05 | O194: 116370000 | P194: -2.98%
A195: 185 | B195: Metals | C195: TATASTEEL | D195: 2022-01-27 | E195: 1171.15 | F195: 1167.95 | G195: 1159.55 | H195: 1147.95 | I195: 1139.55 | J195: 1179.55 | K195: 1187.95 | L195: 1199.55 | M195: 1176.35 | N195: 1156.35 | O195: 45559150 | P195: -0.36%
A196: 186 | B196: Technology | C196: TCS | D196: 2022-01-27 | E196: 3877.30 | F196: 3899.82 | G196: 3831.68 | H196: 3786.07 | I196: 3717.93 | J196: 3945.43 | K196: 4013.57 | L196: 4059.18 | M196: 3967.95 | N196: 3854.2 | O196: 12267450 | P196: 2.13%
A197: 187 | B197: Technology | C197: TECHM | D197: 2022-01-27 | E197: 1723.55 | F197: 1715.68 | G197: 1699.87 | H197: 1676.18 | I197: 1660.37 | J197: 1739.37 | K197: 1755.18 | L197: 1778.87 | M197: 1731.5 | N197: 1692 | O197: 15160800 | P197: -1.07%
A198: 188 | B198: FMCG | C198: TITAN | D198: 2022-01-27 | E198: 2669.20 | F198: 2579.63 | G198: 2484.57 | H198: 2299.93 | I198: 2204.87 | J198: 2764.27 | K198: 2859.33 | L198: 3043.97 | M198: 2674.7 | N198: 2395 | O198: 5223375 | P198: -0.45%
A199: 189 | B199: Pharma | C199: TORNTPHARM | D199: 2022-01-27 | E199: 3159.00 | F199: 3158.87 | G199: 3140.83 | H199: 3122.67 | I199: 3104.63 | J199: 3177.03 | K199: 3195.07 | L199: 3213.23 | M199: 3176.9 | N199: 3140.7 | O199: 678000 | P199: -0.11%
A200: 190 | B200: Power | C200: TORNTPOWER | D200: 2022-01-27 | E200: 574.25 | F200: 577.20 | G200: 569.55 | H200: 564.85 | I200: 557.20 | J200: 581.90 | K200: 589.55 | L200: 594.25 | M200: 584.85 | N200: 572.5 | O200: 3274500 | P200: 2.97%
A201: 191 | B201: Others | C201: TRENT | D201: 2022-01-27 | E201: 1075.25 | F201: 1080.55 | G201: 1062.20 | H201: 1049.15 | I201: 1030.80 | J201: 1093.60 | K201: 1111.95 | L201: 1125.00 | M201: 1098.9 | N201: 1067.5 | O201: 2396850 | P201: 0.33%
A202: 192 | B202: Automobile | C202: TVSMOTOR | D202: 2022-01-27 | E202: 646.20 | F202: 645.97 | G202: 640.53 | H202: 634.87 | I202: 629.43 | J202: 651.63 | K202: 657.07 | L202: 662.73 | M202: 651.4 | N202: 640.3 | O202: 7485800 | P202: -4.81%
A203: 193 | B203: FMCG | C203: UBL | D203: 2022-01-27 | E203: 1602.30 | F203: 1601.53 | G203: 1585.67 | H203: 1569.03 | I203: 1553.17 | J203: 1618.17 | K203: 1634.03 | L203: 1650.67 | M203: 1617.4 | N203: 1584.9 | O203: 1077650 | P203: -4.05%
A204: 194 | B204: Cement | C204: ULTRACEMCO | D204: 2022-01-27 | E204: 7622.10 | F204: 7610.15 | G204: 7571.95 | H204: 7521.80 | I204: 7483.60 | J204: 7660.30 | K204: 7698.50 | L204: 7748.65 | M204: 7648.35 | N204: 7560 | O204: 1669700 | P204: 0.54%
A205: 195 | B205: Chemical | C205: UPL | D205: 2022-01-27 | E205: 823.55 | F205: 814.33 | G205: 802.17 | H205: 780.78 | I205: 768.62 | J205: 835.72 | K205: 847.88 | L205: 869.27 | M205: 826.5 | N205: 792.95 | O205: 25623000 | P205: 0.73%
A206: 196 | B206: Metals | C206: VEDL | D206: 2022-01-27 | E206: 340.85 | F206: 339.75 | G206: 337.50 | H206: 334.15 | I206: 331.90 | J206: 343.10 | K206: 345.35 | L206: 348.70 | M206: 342 | N206: 336.4 | O206: 55449700 | P206: -1.75%
... 19 more rows

Sheet Cash Intra
M5: Back to Main Page
A6: FOR INTRA DAY TRADING | K6: =Main!B10 -> 2022-01-11
A8: Sr.no | C8: CLOSE RATE | D8: Pivot Point | E8: Supports | H8: Resistances
E9: S1 | F9: S2 | G9: S3 | H9: R1 | I9: R2 | J9: R3 | K9: HIGH | L9: LOW | M9: Total Trade Quanity in Lakhs
A10: 1 | B10: Nifty 50 | C10: 18003.3 | D10: 17966.63 | E10: 17915.82 | F10: 17828.33 | G10: 17777.52 | H10: 18054.12 | I10: 18104.93 | J10: 18192.42 | K10: 18017.45 | L10: 17879.15
A11: 2 | B11: Nifty Bank | C11: 38347.9 | D11: 38225.87 | E11: 38051.38 | F11: 37754.87 | G11: 37580.38 | H11: 38522.38 | I11: 38696.87 | J11: 38993.38 | K11: 38400.35 | L11: 37929.35
A12: 3 | B12: Nifty CPSE | C12: 2389.9 | D12: 2387.27 | E12: 2379.28 | F12: 2368.67 | G12: 2360.68 | H12: 2397.88 | I12: 2405.87 | J12: 2416.48 | K12: 2395.25 | L12: 2376.65
A13: 4 | B13: Nifty Infra | C13: 5133.4 | D13: 5122.12 | E13: 5107.38 | F13: 5081.37 | G13: 5066.63 | H13: 5148.13 | I13: 5162.87 | J13: 5188.88 | K13: 5136.85 | L13: 5096.1
A14: 5 | B14: Nifty IT | C14: 38212.2 | D14: 38275.13 | E14: 37928.37 | F14: 37644.53 | G14: 37297.77 | H14: 38558.97 | I14: 38905.73 | J14: 39189.57 | K14: 38621.9 | L14: 37991.3
A15: 6 | B15: Nifty PSE | C15: 4055 | D15: 4046.67 | E15: 4033.23 | F15: 4011.47 | G15: 3998.03 | H15: 4068.43 | I15: 4081.87 | J15: 4103.63 | K15: 4060.1 | L15: 4024.9
A16: 7 | B16: Nifty Midcap 50 | C16: 8726.2 | D16: 8713.43 | E16: 8694.02 | F16: 8661.83 | G16: 8642.42 | H16: 8745.62 | I16: 8765.03 | J16: 8797.22 | K16: 8732.85 | L16: 8681.25
A17: 8 | B17: ACC | C17: 2320.15 | D17: 2307.90 | E17: 2290.80 | F17: 2261.45 | G17: 2244.35 | H17: 2337.25 | I17: 2354.35 | J17: 2383.70 | K17: 2325 | L17: 2278.55 | M17: 3.58989
A18: 9 | B18: AUBANK | C18: 1234.35 | D18: 1234.33 | E18: 1222.17 | F18: 1209.98 | G18: 1197.82 | H18: 1246.52 | I18: 1258.68 | J18: 1270.87 | K18: 1246.5 | L18: 1222.15 | M18: 17.14676
A19: 10 | B19: AARTIIND | C19: 1085.15 | D19: 1066.83 | E19: 1045.37 | F19: 1005.58 | G19: 984.12 | H19: 1106.62 | I19: 1128.08 | J19: 1167.87 | K19: 1088.3 | L19: 1027.05 | M19: 20.06629
A20: 11 | B20: ADANIENT | C20: 1752.6 | D20: 1739.23 | E20: 1712.47 | F20: 1672.33 | G20: 1645.57 | H20: 1779.37 | I20: 1806.13 | J20: 1846.27 | K20: 1766 | L20: 1699.1 | M20: 16.70551
A21: 12 | B21: ADANIGREEN | C21: 1438.9 | D21: 1432.30 | E21: 1411.60 | F21: 1384.30 | G21: 1363.60 | H21: 1459.60 | I21: 1480.30 | J21: 1507.60 | K21: 1453 | L21: 1405 | M21: 2.75337
A22: 13 | B22: ADANIPORTS | C22: 738.85 | D22: 738.65 | E22: 734.30 | F22: 729.75 | G22: 725.40 | H22: 743.20 | I22: 747.55 | J22: 752.10 | K22: 743 | L22: 734.1 | M22: 21.73107
A23: 14 | B23: ATGL | C23: 1763.35 | D23: 1774.38 | E23: 1738.97 | F23: 1714.58 | G23: 1679.17 | H23: 1798.77 | I23: 1834.18 | J23: 1858.57 | K23: 1809.8 | L23: 1750 | M23: 0.53429
A24: 15 | B24: ADANITRANS | C24: 1819.7 | D24: 1798.60 | E24: 1763.20 | F24: 1706.70 | G24: 1671.30 | H24: 1855.10 | I24: 1890.50 | J24: 1947.00 | K24: 1834 | L24: 1742.1 | M24: 0.68601
A25: 16 | B25: ABCAPITAL | C25: 132.45 | D25: 132.77 | E25: 131.28 | F25: 130.12 | G25: 128.63 | H25: 133.93 | I25: 135.42 | J25: 136.58 | K25: 134.25 | L25: 131.6 | M25: 32.17357
A26: 17 | B26: ABFRL | C26: 293.1 | D26: 294.53 | E26: 290.77 | F26: 288.43 | G26: 284.67 | H26: 296.87 | I26: 300.63 | J26: 302.97 | K26: 298.3 | L26: 292.2 | M26: 28.6986
A27: 18 | B27: AJANTPHARM | C27: 2314.8 | D27: 2301.50 | E27: 2283.35 | F27: 2251.90 | G27: 2233.75 | H27: 2332.95 | I27: 2351.10 | J27: 2382.55 | K27: 2319.65 | L27: 2270.05 | M27: 1.51839
A28: 19 | B28: APLLTD | C28: 823.65 | D28: 820.12 | E28: 811.78 | F28: 799.92 | G28: 791.58 | H28: 831.98 | I28: 840.32 | J28: 852.18 | K28: 828.45 | L28: 808.25 | M28: 3.87633
A29: 20 | B29: ALKEM | C29: 3736.55 | D29: 3723.17 | E29: 3693.38 | F29: 3650.22 | G29: 3620.43 | H29: 3766.33 | I29: 3796.12 | J29: 3839.28 | K29: 3752.95 | L29: 3680 | M29: 1.34178
A30: 21 | B30: AMARAJABAT | C30: 635.8 | D30: 634.93 | E30: 631.87 | F30: 627.93 | G30: 624.87 | H30: 638.87 | I30: 641.93 | J30: 645.87 | K30: 638 | L30: 631 | M30: 6.95224
A31: 22 | B31: AMBUJACEM | C31: 399.35 | D31: 399.53 | E31: 397.12 | F31: 394.88 | G31: 392.47 | H31: 401.77 | I31: 404.18 | J31: 406.42 | K31: 401.95 | L31: 397.3 | M31: 24.08661
A32: 23 | B32: APOLLOHOSP | C32: 5065.25 | D32: 5037.75 | E32: 4990.50 | F32: 4915.75 | G32: 4868.50 | H32: 5112.50 | I32: 5159.75 | J32: 5234.50 | K32: 5085 | L32: 4963 | M32: 5.42304
A33: 24 | B33: APOLLOTYRE | C33: 232.5 | D33: 232.52 | E33: 230.38 | F33: 228.27 | G33: 226.13 | H33: 234.63 | I33: 236.77 | J33: 238.88 | K33: 234.65 | L33: 230.4 | M33: 19.65998
A34: 25 | B34: ASHOKLEY | C34: 134.25 | D34: 133.85 | E34: 132.80 | F34: 131.35 | G34: 130.30 | H34: 135.30 | I34: 136.35 | J34: 137.80 | K34: 134.9 | L34: 132.4 | M34: 62.69461
A35: 26 | B35: ASIANPAINT | C35: 3553.5 | D35: 3556.83 | E35: 3523.67 | F35: 3493.83 | G35: 3460.67 | H35: 3586.67 | I35: 3619.83 | J35: 3649.67 | K35: 3590 | L35: 3527 | M35: 6.57511
A36: 27 | B36: ASTRAL | C36: 2453.9 | D36: 2452.78 | E36: 2434.12 | F36: 2414.33 | G36: 2395.67 | H36: 2472.57 | I36: 2491.23 | J36: 2511.02 | K36: 2471.45 | L36: 2433 | M36: 4.63006
A37: 28 | B37: AUROPHARMA | C37: 737.3 | D37: 729.77 | E37: 719.53 | F37: 701.77 | G37: 691.53 | H37: 747.53 | I37: 757.77 | J37: 775.53 | K37: 740 | L37: 712 | M37: 30.81483
A38: 29 | B38: DMART | C38: 4633.55 | D38: 4679.48 | E38: 4574.07 | F38: 4514.58 | G38: 4409.17 | H38: 4738.97 | I38: 4844.38 | J38: 4903.87 | K38: 4784.9 | L38: 4620 | M38: 10.37618
A39: 30 | B39: AXISBANK | C39: 742.8 | D39: 740.00 | E39: 736.00 | F39: 729.20 | G39: 725.20 | H39: 746.80 | I39: 750.80 | J39: 757.60 | K39: 744 | L39: 733.2 | M39: 95.95787
A40: 31 | B40: BAJAJ-AUTO | C40: 3435.1 | D40: 3430.27 | E40: 3409.28 | F40: 3383.47 | G40: 3362.48 | H40: 3456.08 | I40: 3477.07 | J40: 3502.88 | K40: 3451.25 | L40: 3404.45 | M40: 3.18473
A41: 32 | B41: BAJFINANCE | C41: 7731.3 | D41: 7720.02 | E41: 7681.03 | F41: 7630.77 | G41: 7591.78 | H41: 7770.28 | I41: 7809.27 | J41: 7859.53 | K41: 7759 | L41: 7669.75 | M41: 6.3906
A42: 33 | B42: BAJAJFINSV | C42: 17798.8 | D42: 17843.15 | E42: 17686.30 | F42: 17573.80 | G42: 17416.95 | H42: 17955.65 | I42: 18112.50 | J42: 18225.00 | K42: 18000 | L42: 17730.65 | M42: 1.69797
A43: 34 | B43: BAJAJHLDNG | C43: 5208.2 | D43: 5210.73 | E43: 5172.47 | F43: 5136.73 | G43: 5098.47 | H43: 5246.47 | I43: 5284.73 | J43: 5320.47 | K43: 5249 | L43: 5175 | M43: 0.26925
A44: 35 | B44: BALKRISIND | C44: 2405.65 | D44: 2392.62 | E44: 2375.23 | F44: 2344.82 | G44: 2327.43 | H44: 2423.03 | I44: 2440.42 | J44: 2470.83 | K44: 2410 | L44: 2362.2 | M44: 1.34056
A45: 36 | B45: BANDHANBNK | C45: 274 | D45: 273.50 | E45: 271.50 | F45: 269.00 | G45: 267.00 | H45: 276.00 | I45: 278.00 | J45: 280.50 | K45: 275.5 | L45: 271 | M45: 43.6963
A46: 37 | B46: BANKBARODA | C46: 92.15 | D46: 90.77 | E46: 89.08 | F46: 86.02 | G46: 84.33 | H46: 93.83 | I46: 95.52 | J46: 98.58 | K46: 92.45 | L46: 87.7 | M46: 425.35778
A47: 38 | B47: BANKINDIA | C47: 55.45 | D47: 55.17 | E47: 54.63 | F47: 53.82 | G47: 53.28 | H47: 55.98 | I47: 56.52 | J47: 57.33 | K47: 55.7 | L47: 54.35 | M47: 55.48302
A48: 39 | B48: BATAINDIA | C48: 1916.4 | D48: 1904.13 | E48: 1881.27 | F48: 1846.13 | G48: 1823.27 | H48: 1939.27 | I48: 1962.13 | J48: 1997.27 | K48: 1927 | L48: 1869 | M48: 5.57804
A49: 40 | B49: BERGEPAINT | C49: 783.95 | D49: 788.47 | E49: 777.48 | F49: 771.02 | G49: 760.03 | H49: 794.93 | I49: 805.92 | J49: 812.38 | K49: 799.45 | L49: 782 | M49: 3.18891
A50: 41 | B50: BEL | C50: 210.85 | D50: 210.12 | E50: 208.73 | F50: 206.62 | G50: 205.23 | H50: 212.23 | I50: 213.62 | J50: 215.73 | K50: 211.5 | L50: 208 | M50: 31.36299
A51: 42 | B51: BHARATFORG | C51: 767.5 | D51: 761.87 | E51: 754.73 | F51: 741.97 | G51: 734.83 | H51: 774.63 | I51: 781.77 | J51: 794.53 | K51: 769 | L51: 749.1 | M51: 11.34669
A52: 43 | B52: BHEL | C52: 62.65 | D52: 61.75 | E52: 60.60 | F52: 58.55 | G52: 57.40 | H52: 63.80 | I52: 64.95 | J52: 67.00 | K52: 62.9 | L52: 59.7 | M52: 460.77589
A53: 44 | B53: BPCL | C53: 397.55 | D53: 397.62 | E53: 395.53 | F53: 393.52 | G53: 391.43 | H53: 399.63 | I53: 401.72 | J53: 403.73 | K53: 399.7 | L53: 395.6 | M53: 20.89864
A54: 45 | B54: BHARTIARTL | C54: 704.95 | D54: 706.65 | E54: 701.95 | F54: 698.95 | G54: 694.25 | H54: 709.65 | I54: 714.35 | J54: 717.35 | K54: 711.35 | L54: 703.65 | M54: 35.65324
A55: 46 | B55: BIOCON | C55: 358.15 | D55: 356.98 | E55: 354.72 | F55: 351.28 | G55: 349.02 | H55: 360.42 | I55: 362.68 | J55: 366.12 | K55: 359.25 | L55: 353.55 | M55: 18.43562
A56: 47 | B56: BOSCHLTD | C56: 17419.35 | D56: 17370.65 | E56: 17148.70 | F56: 16878.05 | G56: 16656.10 | H56: 17641.30 | I56: 17863.25 | J56: 18133.90 | K56: 17592.6 | L56: 17100 | M56: 0.35333
A57: 48 | B57: BRITANNIA | C57: 3768.3 | D57: 3758.07 | E57: 3738.13 | F57: 3707.97 | G57: 3688.03 | H57: 3788.23 | I57: 3808.17 | J57: 3838.33 | K57: 3778 | L57: 3727.9 | M57: 3.51447
A58: 49 | B58: CADILAHC | C58: 453.75 | D58: 453.65 | E58: 449.30 | F58: 444.85 | G58: 440.50 | H58: 458.10 | I58: 462.45 | J58: 466.90 | K58: 458 | L58: 449.2 | M58: 27.29282
A59: 50 | B59: CANBK | C59: 219.7 | D59: 217.93 | E59: 215.07 | F59: 210.43 | G59: 207.57 | H59: 222.57 | I59: 225.43 | J59: 230.07 | K59: 220.8 | L59: 213.3 | M59: 103.05642
A60: 51 | B60: CASTROLIND | C60: 122.55 | D60: 122.52 | E60: 121.78 | F60: 121.02 | G60: 120.28 | H60: 123.28 | I60: 124.02 | J60: 124.78 | K60: 123.25 | L60: 121.75 | M60: 11.38358
A61: 52 | B61: CHOLAFIN | C61: 561.15 | D61: 566.92 | E61: 554.33 | F61: 547.52 | G61: 534.93 | H61: 573.73 | I61: 586.32 | J61: 593.13 | K61: 579.5 | L61: 560.1 | M61: 13.22019
A62: 53 | B62: CIPLA | C62: 916.2 | D62: 914.23 | E62: 910.62 | F62: 905.03 | G62: 901.42 | H62: 919.82 | I62: 923.43 | J62: 929.02 | K62: 917.85 | L62: 908.65 | M62: 16.37506
A63: 54 | B63: CUB | C63: 146 | D63: 144.18 | E63: 141.47 | F63: 136.93 | G63: 134.22 | H63: 148.72 | I63: 151.43 | J63: 155.97 | K63: 146.9 | L63: 139.65 | M63: 45.04051
A64: 55 | B64: COALINDIA | C64: 160.7 | D64: 159.58 | E64: 158.17 | F64: 155.63 | G64: 154.22 | H64: 162.12 | I64: 163.53 | J64: 166.07 | K64: 161 | L64: 157.05 | M64: 146.55298
A65: 56 | B65: COFORGE | C65: 5580.55 | D65: 5651.35 | E65: 5489.20 | F65: 5397.85 | G65: 5235.70 | H65: 5742.70 | I65: 5904.85 | J65: 5996.20 | K65: 5813.5 | L65: 5560 | M65: 3.80344
A66: 57 | B66: COLPAL | C66: 1465.2 | D66: 1467.88 | E66: 1455.87 | F66: 1446.53 | G66: 1434.52 | H66: 1477.22 | I66: 1489.23 | J66: 1498.57 | K66: 1479.9 | L66: 1458.55 | M66: 2.19992
A67: 58 | B67: CONCOR | C67: 645.35 | D67: 642.13 | E67: 638.27 | F67: 631.18 | G67: 627.32 | H67: 649.22 | I67: 653.08 | J67: 660.17 | K67: 646 | L67: 635.05 | M67: 6.18751
A68: 59 | B68: COROMANDEL | C68: 772.95 | D68: 775.25 | E68: 766.70 | F68: 760.45 | G68: 751.90 | H68: 781.50 | I68: 790.05 | J68: 796.30 | K68: 783.8 | L68: 769 | M68: 3.43075
A69: 60 | B69: CROMPTON | C69: 445.05 | D69: 443.67 | E69: 440.38 | F69: 435.72 | G69: 432.43 | H69: 448.33 | I69: 451.62 | J69: 456.28 | K69: 446.95 | L69: 439 | M69: 7.59025
A70: 61 | B70: CUMMINSIND | C70: 952.15 | D70: 947.70 | E70: 939.40 | F70: 926.65 | G70: 918.35 | H70: 960.45 | I70: 968.75 | J70: 981.50 | K70: 956 | L70: 934.95 | M70: 4.53512
A71: 62 | B71: DLF | C71: 407.95 | D71: 408.27 | E71: 404.83 | F71: 401.72 | G71: 398.28 | H71: 411.38 | I71: 414.82 | J71: 417.93 | K71: 411.7 | L71: 405.15 | M71: 62.98597
A72: 63 | B72: DABUR | C72: 589.1 | D72: 588.80 | E72: 586.35 | F72: 583.60 | G72: 581.15 | H72: 591.55 | I72: 594.00 | J72: 596.75 | K72: 591.25 | L72: 586.05 | M72: 8.13368
A73: 64 | B73: DALBHARAT | C73: 1994.1 | D73: 1976.25 | E73: 1953.50 | F73: 1912.90 | G73: 1890.15 | H73: 2016.85 | I73: 2039.60 | J73: 2080.20 | K73: 1999 | L73: 1935.65 | M73: 3.12571
A74: 65 | B74: DEEPAKNTR | C74: 2595.7 | D74: 2578.60 | E74: 2552.10 | F74: 2508.50 | G74: 2482.00 | H74: 2622.20 | I74: 2648.70 | J74: 2692.30 | K74: 2605.1 | L74: 2535 | M74: 8.51299
A75: 66 | B75: DHANI | C75: 157.25 | D75: 157.97 | E75: 155.13 | F75: 153.02 | G75: 150.18 | H75: 160.08 | I75: 162.92 | J75: 165.03 | K75: 160.8 | L75: 155.85 | M75: 16.87065
A76: 67 | B76: DIVISLAB | C76: 4465.8 | D76: 4487.52 | E76: 4440.48 | F76: 4415.17 | G76: 4368.13 | H76: 4512.83 | I76: 4559.87 | J76: 4585.18 | K76: 4534.55 | L76: 4462.2 | M76: 3.61423
A77: 68 | B77: DIXON | C77: 5290.2 | D77: 5308.38 | E77: 5259.82 | F77: 5229.43 | G77: 5180.87 | H77: 5338.77 | I77: 5387.33 | J77: 5417.72 | K77: 5356.95 | L77: 5278 | M77: 1.74787
A78: 69 | B78: LALPATHLAB | C78: 3694.7 | D78: 3714.67 | E78: 3642.13 | F78: 3589.57 | G78: 3517.03 | H78: 3767.23 | I78: 3839.77 | J78: 3892.33 | K78: 3787.2 | L78: 3662.1 | M78: 1.49703
A79: 70 | B79: DRREDDY | C79: 4699.05 | D79: 4694.20 | E79: 4660.00 | F79: 4620.95 | G79: 4586.75 | H79: 4733.25 | I79: 4767.45 | J79: 4806.50 | K79: 4728.4 | L79: 4655.15 | M79: 3.15019
A80: 71 | B80: EICHERMOT | C80: 2815.5 | D80: 2821.75 | E80: 2792.50 | F80: 2769.50 | G80: 2740.25 | H80: 2844.75 | I80: 2874.00 | J80: 2897.00 | K80: 2851 | L80: 2798.75 | M80: 4.93242
A81: 72 | B81: EMAMILTD | C81: 509.75 | D81: 511.20 | E81: 503.55 | F81: 497.35 | G81: 489.70 | H81: 517.40 | I81: 525.05 | J81: 531.25 | K81: 518.85 | L81: 505 | M81: 2.44549
A82: 73 | B82: ENDURANCE | C82: 1691.25 | D82: 1695.08 | E82: 1680.17 | F82: 1669.08 | G82: 1654.17 | H82: 1706.17 | I82: 1721.08 | J82: 1732.17 | K82: 1710 | L82: 1684 | M82: 0.22379
A83: 74 | B83: ESCORTS | C83: 1865.8 | D83: 1867.63 | E83: 1857.27 | F83: 1848.73 | G83: 1838.37 | H83: 1876.17 | I83: 1886.53 | J83: 1895.07 | K83: 1878 | L83: 1859.1 | M83: 5.68492
A84: 75 | B84: EXIDEIND | C84: 171.35 | D84: 171.25 | E84: 170.25 | F84: 169.15 | G84: 168.15 | H84: 172.35 | I84: 173.35 | J84: 174.45 | K84: 172.25 | L84: 170.15 | M84: 19.50936
A85: 76 | B85: FEDERALBNK | C85: 95.55 | D85: 94.35 | E85: 92.80 | F85: 90.05 | G85: 88.50 | H85: 97.10 | I85: 98.65 | J85: 101.40 | K85: 95.9 | L85: 91.6 | M85: 297.01899
A86: 77 | B86: FORTIS | C86: 289.4 | D86: 288.78 | E86: 286.07 | F86: 282.73 | G86: 280.02 | H86: 292.12 | I86: 294.83 | J86: 298.17 | K86: 291.5 | L86: 285.45 | M86: 13.04481
A87: 78 | B87: GAIL | C87: 142.65 | D87: 141.87 | E87: 140.73 | F87: 138.82 | G87: 137.68 | H87: 143.78 | I87: 144.92 | J87: 146.83 | K87: 143 | L87: 139.95 | M87: 81.02429
A88: 79 | B88: GMRINFRA | C88: 48.45 | D88: 47.63 | E88: 46.22 | F88: 43.98 | G88: 42.57 | H88: 49.87 | I88: 51.28 | J88: 53.52 | K88: 49.05 | L88: 45.4 | M88: 1161.52197
A89: 80 | B89: GLAND | C89: 3862.4 | D89: 3865.12 | E89: 3799.28 | F89: 3736.17 | G89: 3670.33 | H89: 3928.23 | I89: 3994.07 | J89: 4057.18 | K89: 3930.95 | L89: 3802 | M89: 0.83636
A90: 81 | B90: GLENMARK | C90: 519 | D90: 516.98 | E90: 510.22 | F90: 501.43 | G90: 494.67 | H90: 525.77 | I90: 532.53 | J90: 541.32 | K90: 523.75 | L90: 508.2 | M90: 8.51516
A91: 82 | B91: GODREJCP | C91: 931.05 | D91: 940.80 | E91: 918.85 | F91: 906.65 | G91: 884.70 | H91: 953.00 | I91: 974.95 | J91: 987.15 | K91: 962.75 | L91: 928.6 | M91: 8.11201
A92: 83 | B92: GODREJIND | C92: 636.55 | D92: 639.38 | E92: 631.47 | F92: 626.38 | G92: 618.47 | H92: 644.47 | I92: 652.38 | J92: 657.47 | K92: 647.3 | L92: 634.3 | M92: 1.08434
A93: 84 | B93: GODREJPROP | C93: 1921.5 | D93: 1923.43 | E93: 1899.87 | F93: 1878.23 | G93: 1854.67 | H93: 1945.07 | I93: 1968.63 | J93: 1990.27 | K93: 1947 | L93: 1901.8 | M93: 5.85189
A94: 85 | B94: GRASIM | C94: 1838.85 | D94: 1825.82 | E94: 1806.63 | F94: 1774.42 | G94: 1755.23 | H94: 1858.03 | I94: 1877.22 | J94: 1909.43 | K94: 1845 | L94: 1793.6 | M94: 14.62664
A95: 86 | B95: GUJGASLTD | C95: 691.35 | D95: 694.27 | E95: 682.63 | F95: 673.92 | G95: 662.28 | H95: 702.98 | I95: 714.62 | J95: 723.33 | K95: 705.9 | L95: 685.55 | M95: 21.5704
A96: 87 | B96: GSPL | C96: 317 | D96: 316.93 | E96: 313.07 | F96: 309.13 | G96: 305.27 | H96: 320.87 | I96: 324.73 | J96: 328.67 | K96: 320.8 | L96: 313 | M96: 7.93416
A97: 88 | B97: HCLTECH | C97: 1288.1 | D97: 1290.98 | E97: 1277.12 | F97: 1266.13 | G97: 1252.27 | H97: 1301.97 | I97: 1315.83 | J97: 1326.82 | K97: 1304.85 | L97: 1280 | M97: 25.29949
A98: 89 | B98: HDFCAMC | C98: 2518.25 | D98: 2497.75 | E98: 2465.50 | F98: 2412.75 | G98: 2380.50 | H98: 2550.50 | I98: 2582.75 | J98: 2635.50 | K98: 2530 | L98: 2445 | M98: 2.85654
A99: 90 | B99: HDFCBANK | C99: 1559.15 | D99: 1558.88 | E99: 1545.77 | F99: 1532.38 | G99: 1519.27 | H99: 1572.27 | I99: 1585.38 | J99: 1598.77 | K99: 1572 | L99: 1545.5 | M99: 44.28248
A100: 91 | B100: HDFCLIFE | C100: 662.95 | D100: 664.22 | E100: 658.73 | F100: 654.52 | G100: 649.03 | H100: 668.43 | I100: 673.92 | J100: 678.13 | K100: 669.7 | L100: 660 | M100: 14.80419
A101: 92 | B101: HAVELLS | C101: 1351.6 | D101: 1360.30 | E101: 1340.35 | F101: 1329.10 | G101: 1309.15 | H101: 1371.55 | I101: 1391.50 | J101: 1402.75 | K101: 1380.25 | L101: 1349.05 | M101: 5.25478
A102: 93 | B102: HEROMOTOCO | C102: 2578.1 | D102: 2550.47 | E102: 2516.93 | F102: 2455.77 | G102: 2422.23 | H102: 2611.63 | I102: 2645.17 | J102: 2706.33 | K102: 2584 | L102: 2489.3 | M102: 7.83876
A103: 94 | B103: HINDALCO | C103: 492.9 | D103: 493.42 | E103: 489.53 | F103: 486.17 | G103: 482.28 | H103: 496.78 | I103: 500.67 | J103: 504.03 | K103: 497.3 | L103: 490.05 | M103: 47.46931
A104: 95 | B104: HAL | C104: 1296.25 | D104: 1284.30 | E104: 1268.60 | F104: 1240.95 | G104: 1225.25 | H104: 1311.95 | I104: 1327.65 | J104: 1355.30 | K104: 1300 | L104: 1256.65 | M104: 14.26483
A105: 96 | B105: HINDCOPPER | C105: 131.8 | D105: 132.73 | E105: 130.47 | F105: 129.13 | G105: 126.87 | H105: 134.07 | I105: 136.33 | J105: 137.67 | K105: 135 | L105: 131.4 | M105: 51.92602
A106: 97 | B106: HINDPETRO | C106: 326.55 | D106: 324.47 | E106: 321.08 | F106: 315.62 | G106: 312.23 | H106: 329.93 | I106: 333.32 | J106: 338.78 | K106: 327.85 | L106: 319 | M106: 25.93083
A107: 98 | B107: HINDUNILVR | C107: 2407.05 | D107: 2411.35 | E107: 2397.70 | F107: 2388.35 | G107: 2374.70 | H107: 2420.70 | I107: 2434.35 | J107: 2443.70 | K107: 2425 | L107: 2402 | M107: 9.19447
A108: 99 | B108: HINDZINC | C108: 330.45 | D108: 331.63 | E108: 328.32 | F108: 326.18 | G108: 322.87 | H108: 333.77 | I108: 337.08 | J108: 339.22 | K108: 334.95 | L108: 329.5 | M108: 3.26601
A109: 100 | B109: HDFC | C109: 2659.65 | D109: 2642.20 | E109: 2619.35 | F109: 2579.05 | G109: 2556.20 | H109: 2682.50 | I109: 2705.35 | J109: 2745.65 | K109: 2665.05 | L109: 2601.9 | M109: 53.28083
A110: 101 | B110: ICICIBANK | C110: 810.75 | D110: 807.52 | E110: 802.23 | F110: 793.72 | G110: 788.43 | H110: 816.03 | I110: 821.32 | J110: 829.83 | K110: 812.8 | L110: 799 | M110: 109.0508
A111: 102 | B111: ICICIGI | C111: 1444.8 | D111: 1450.60 | E111: 1429.20 | F111: 1413.60 | G111: 1392.20 | H111: 1466.20 | I111: 1487.60 | J111: 1503.20 | K111: 1472 | L111: 1435 | M111: 3.02135
A112: 103 | B112: ICICIPRULI | C112: 589.7 | D112: 587.73 | E112: 584.47 | F112: 579.23 | G112: 575.97 | H112: 592.97 | I112: 596.23 | J112: 601.47 | K112: 591 | L112: 582.5 | M112: 11.87483
A113: 104 | B113: ISEC | C113: 784.3 | D113: 780.38 | E113: 773.57 | F113: 762.83 | G113: 756.02 | H113: 791.12 | I113: 797.93 | J113: 808.67 | K113: 787.2 | L113: 769.65 | M113: 2.96133
A114: 105 | B114: IDFCFIRSTB | C114: 49.8 | D114: 49.75 | E114: 49.25 | F114: 48.70 | G114: 48.20 | H114: 50.30 | I114: 50.80 | J114: 51.35 | K114: 50.25 | L114: 49.2 | M114: 228.1276
A115: 106 | B115: ITC | C115: 223.3 | D115: 222.30 | E115: 219.90 | F115: 216.50 | G115: 214.10 | H115: 225.70 | I115: 228.10 | J115: 231.50 | K115: 224.7 | L115: 218.9 | M115: 158.41299
A116: 107 | B116: INDIAMART | C116: 6602.7 | D116: 6641.50 | E116: 6546.20 | F116: 6489.70 | G116: 6394.40 | H116: 6698.00 | I116: 6793.30 | J116: 6849.80 | K116: 6736.8 | L116: 6585 | M116: 0.9105
A117: 108 | B117: INDIANB | C117: 148.5 | D117: 147.50 | E117: 145.70 | F117: 142.90 | G117: 141.10 | H117: 150.30 | I117: 152.10 | J117: 154.90 | K117: 149.3 | L117: 144.7 | M117: 33.44728
A118: 109 | B118: INDHOTEL | C118: 194.65 | D118: 191.72 | E118: 186.93 | F118: 179.22 | G118: 174.43 | H118: 199.43 | I118: 204.22 | J118: 211.93 | K118: 196.5 | L118: 184 | M118: 104.9407
A119: 110 | B119: IOC | C119: 119.7 | D119: 119.38 | E119: 118.62 | F119: 117.53 | G119: 116.77 | H119: 120.47 | I119: 121.23 | J119: 122.32 | K119: 120.15 | L119: 118.3 | M119: 66.15734
A120: 111 | B120: IRCTC | C120: 873.45 | D120: 871.57 | E120: 864.38 | F120: 855.32 | G120: 848.13 | H120: 880.63 | I120: 887.82 | J120: 896.88 | K120: 878.75 | L120: 862.5 | M120: 47.78546
A121: 112 | B121: IRFC | C121: 22.95 | D121: 22.97 | E121: 22.88 | F121: 22.82 | G121: 22.73 | H121: 23.03 | I121: 23.12 | J121: 23.18 | K121: 23.05 | L121: 22.9 | M121: 82.26337
A122: 113 | B122: IGL | C122: 468.6 | D122: 468.88 | E122: 466.77 | F122: 464.93 | G122: 462.82 | H122: 470.72 | I122: 472.83 | J122: 474.67 | K122: 471 | L122: 467.05 | M122: 14.26221
A123: 114 | B123: INDUSTOWER | C123: 261.2 | D123: 261.67 | E123: 259.53 | F123: 257.87 | G123: 255.73 | H123: 263.33 | I123: 265.47 | J123: 267.13 | K123: 263.8 | L123: 260 | M123: 10.77333
A124: 115 | B124: INDUSINDBK | C124: 920.85 | D124: 922.90 | E124: 915.95 | F124: 911.05 | G124: 904.10 | H124: 927.80 | I124: 934.75 | J124: 939.65 | K124: 929.85 | L124: 918 | M124: 25.69322
A125: 116 | B125: NAUKRI | C125: 5557.15 | D125: 5579.70 | E125: 5509.45 | F125: 5461.75 | G125: 5391.50 | H125: 5627.40 | I125: 5697.65 | J125: 5745.35 | K125: 5649.95 | L125: 5532 | M125: 1.75116
A126: 117 | B126: INFY | C126: 1850.75 | D126: 1844.55 | E126: 1819.20 | F126: 1787.65 | G126: 1762.30 | H126: 1876.10 | I126: 1901.45 | J126: 1933.00 | K126: 1869.9 | L126: 1813 | M126: 78.5756
A127: 118 | B127: INDIGO | C127: 2055.1 | D127: 2032.98 | E127: 1999.12 | F127: 1943.13 | G127: 1909.27 | H127: 2088.97 | I127: 2122.83 | J127: 2178.82 | K127: 2066.85 | L127: 1977 | M127: 13.07846
A128: 119 | B128: IPCALAB | C128: 1061 | D128: 1072.63 | E128: 1016.77 | F128: 972.53 | G128: 916.67 | H128: 1116.87 | I128: 1172.73 | J128: 1216.97 | K128: 1128.5 | L128: 1028.4 | M128: 15.04551
A129: 120 | B129: JSWENERGY | C129: 317.4 | D129: 313.97 | E129: 309.93 | F129: 302.47 | G129: 298.43 | H129: 321.43 | I129: 325.47 | J129: 332.93 | K129: 318 | L129: 306.5 | M129: 4.13701
A130: 121 | B130: JSWSTEEL | C130: 672.1 | D130: 673.87 | E130: 668.23 | F130: 664.37 | G130: 658.73 | H130: 677.73 | I130: 683.37 | J130: 687.23 | K130: 679.5 | L130: 670 | M130: 18.41965
A131: 122 | B131: JINDALSTEL | C131: 404.3 | D131: 405.92 | E131: 401.23 | F131: 398.17 | G131: 393.48 | H131: 408.98 | I131: 413.67 | J131: 416.73 | K131: 410.6 | L131: 402.85 | M131: 35.64673
A132: 123 | B132: JUBLFOOD | C132: 3782.25 | D132: 3783.67 | E132: 3748.58 | F132: 3714.92 | G132: 3679.83 | H132: 3817.33 | I132: 3852.42 | J132: 3886.08 | K132: 3818.75 | L132: 3750 | M132: 5.16902
A133: 124 | B133: KOTAKBANK | C133: 1947.95 | D133: 1934.87 | E133: 1914.43 | F133: 1880.92 | G133: 1860.48 | H133: 1968.38 | I133: 1988.82 | J133: 2022.33 | K133: 1955.3 | L133: 1901.35 | M133: 28.62087
A134: 125 | B134: L&TFH | C134: 80.2 | D134: 80.25 | E134: 79.75 | F134: 79.30 | G134: 78.80 | H134: 80.70 | I134: 81.20 | J134: 81.65 | K134: 80.75 | L134: 79.8 | M134: 49.2843
A135: 126 | B135: LTTS | C135: 5597.9 | D135: 5668.93 | E135: 5508.97 | F135: 5420.03 | G135: 5260.07 | H135: 5757.87 | I135: 5917.83 | J135: 6006.77 | K135: 5828.9 | L135: 5580 | M135: 4.2039
A136: 127 | B136: LICHSGFIN | C136: 380.2 | D136: 380.27 | E136: 377.03 | F136: 373.87 | G136: 370.63 | H136: 383.43 | I136: 386.67 | J136: 389.83 | K136: 383.5 | L136: 377.1 | M136: 26.19247
A137: 128 | B137: LTI | C137: 7103.55 | D137: 7168.15 | E137: 7020.40 | F137: 6937.25 | G137: 6789.50 | H137: 7251.30 | I137: 7399.05 | J137: 7482.20 | K137: 7315.9 | L137: 7085 | M137: 2.41841
A138: 129 | B138: LT | C138: 1953.1 | D138: 1940.10 | E138: 1920.25 | F138: 1887.40 | G138: 1867.55 | H138: 1972.95 | I138: 1992.80 | J138: 2025.65 | K138: 1959.95 | L138: 1907.25 | M138: 23.97846
A139: 130 | B139: LAURUSLABS | C139: 521.1 | D139: 523.68 | E139: 517.62 | F139: 514.13 | G139: 508.07 | H139: 527.17 | I139: 533.23 | J139: 536.72 | K139: 529.75 | L139: 520.2 | M139: 14.45105
A140: 131 | B140: LUPIN | C140: 938.3 | D140: 932.03 | E140: 922.32 | F140: 906.33 | G140: 896.62 | H140: 948.02 | I140: 957.73 | J140: 973.72 | K140: 941.75 | L140: 916.05 | M140: 9.82302
A141: 132 | B141: MRF | C141: 74286.4 | D141: 74471.83 | E141: 73964.57 | F141: 73642.73 | G141: 73135.47 | H141: 74793.67 | I141: 75300.93 | J141: 75622.77 | K141: 74979.1 | L141: 74150 | M141: 0.05451
A142: 133 | B142: MGL | C142: 890.7 | D142: 890.35 | E142: 886.80 | F142: 882.90 | G142: 879.35 | H142: 894.25 | I142: 897.80 | J142: 901.70 | K142: 893.9 | L142: 886.45 | M142: 5.91369
A143: 134 | B143: M&MFIN | C143: 154.85 | D143: 154.93 | E143: 153.87 | F143: 152.88 | G143: 151.82 | H143: 155.92 | I143: 156.98 | J143: 157.97 | K143: 156 | L143: 153.95 | M143: 13.78551
A144: 135 | B144: M&M | C144: 841.95 | D144: 839.47 | E144: 832.18 | F144: 822.42 | G144: 815.13 | H144: 849.23 | I144: 856.52 | J144: 866.28 | K144: 846.75 | L144: 829.7 | M144: 34.03434
A145: 136 | B145: MANAPPURAM | C145: 169.2 | D145: 169.67 | E145: 166.33 | F145: 163.47 | G145: 160.13 | H145: 172.53 | I145: 175.87 | J145: 178.73 | K145: 173 | L145: 166.8 | M145: 43.90326
A146: 137 | B146: MARICO | C146: 506.05 | D146: 504.92 | E146: 502.23 | F146: 498.42 | G146: 495.73 | H146: 508.73 | I146: 511.42 | J146: 515.23 | K146: 507.6 | L146: 501.1 | M146: 7.02161
A147: 138 | B147: MARUTI | C147: 8125.6 | D147: 8093.92 | E147: 7955.83 | F147: 7786.07 | G147: 7647.98 | H147: 8263.68 | I147: 8401.77 | J147: 8571.53 | K147: 8232 | L147: 7924.15 | M147: 8.2793
A148: 139 | B148: MFSL | C148: 1053.75 | D148: 1053.50 | E148: 1034.35 | F148: 1014.95 | G148: 995.80 | H148: 1072.90 | I148: 1092.05 | J148: 1111.45 | K148: 1072.65 | L148: 1034.1 | M148: 10.77013
A149: 140 | B149: MINDTREE | C149: 4556.25 | D149: 4585.40 | E149: 4500.85 | F149: 4445.45 | G149: 4360.90 | H149: 4640.80 | I149: 4725.35 | J149: 4780.75 | K149: 4669.95 | L149: 4530 | M149: 5.48383
A150: 141 | B150: MPHASIS | C150: 3200.95 | D150: 3219.98 | E150: 3160.97 | F150: 3120.98 | G150: 3061.97 | H150: 3259.97 | I150: 3318.98 | J150: 3358.97 | K150: 3279 | L150: 3180 | M150: 7.63573
A151: 142 | B151: MUTHOOTFIN | C151: 1539.4 | D151: 1538.50 | E151: 1527.00 | F151: 1514.60 | G151: 1503.10 | H151: 1550.90 | I151: 1562.40 | J151: 1574.80 | K151: 1550 | L151: 1526.1 | M151: 5.16543
A152: 143 | B152: NATCOPHARM | C152: 916.05 | D152: 917.30 | E152: 909.95 | F152: 903.85 | G152: 896.50 | H152: 923.40 | I152: 930.75 | J152: 936.85 | K152: 924.65 | L152: 911.2 | M152: 2.48293
A153: 144 | B153: NMDC | C153: 139.95 | D153: 140.15 | E153: 139.10 | F153: 138.25 | G153: 137.20 | H153: 141.00 | I153: 142.05 | J153: 142.90 | K153: 141.2 | L153: 139.3 | M153: 52.61751
A154: 145 | B154: NTPC | C154: 131.85 | D154: 131.63 | E154: 130.97 | F154: 130.08 | G154: 129.42 | H154: 132.52 | I154: 133.18 | J154: 134.07 | K154: 132.3 | L154: 130.75 | M154: 73.24926
A155: 146 | B155: NATIONALUM | C155: 112.65 | D155: 111.93 | E155: 110.42 | F155: 108.18 | G155: 106.67 | H155: 114.17 | I155: 115.68 | J155: 117.92 | K155: 113.45 | L155: 109.7 | M155: 301.54428
A156: 147 | B156: NAVINFLUOR | C156: 4053.35 | D156: 4050.78 | E156: 3983.77 | F156: 3914.18 | G156: 3847.17 | H156: 4120.37 | I156: 4187.38 | J156: 4256.97 | K156: 4117.8 | L156: 3981.2 | M156: 1.18045
A157: 148 | B157: NESTLEIND | C157: 19708 | D157: 19785.32 | E157: 19601.73 | F157: 19495.47 | G157: 19311.88 | H157: 19891.58 | I157: 20075.17 | J157: 20181.43 | K157: 19968.9 | L157: 19679.05 | M157: 0.20617
A158: 149 | B158: NAM-INDIA | C158: 362.15 | D158: 360.87 | E158: 356.73 | F158: 351.32 | G158: 347.18 | H158: 366.28 | I158: 370.42 | J158: 375.83 | K158: 365 | L158: 355.45 | M158: 8.67006
A159: 150 | B159: OBEROIRLTY | C159: 940.6 | D159: 938.63 | E159: 927.27 | F159: 913.93 | G159: 902.57 | H159: 951.97 | I159: 963.33 | J159: 976.67 | K159: 950 | L159: 925.3 | M159: 22.59639
A160: 151 | B160: ONGC | C160: 158.35 | D160: 158.05 | E160: 156.70 | F160: 155.05 | G160: 153.70 | H160: 159.70 | I160: 161.05 | J160: 162.70 | K160: 159.4 | L160: 156.4 | M160: 164.18985
A161: 152 | B161: OIL | C161: 215 | D161: 216.33 | E161: 211.67 | F161: 208.33 | G161: 203.67 | H161: 219.67 | I161: 224.33 | J161: 227.67 | K161: 221 | L161: 213 | M161: 23.85921
A162: 153 | B162: PIIND | C162: 2887.35 | D162: 2905.85 | E162: 2862.65 | F162: 2837.95 | G162: 2794.75 | H162: 2930.55 | I162: 2973.75 | J162: 2998.45 | K162: 2949.05 | L162: 2881.15 | M162: 3.84955
A163: 154 | B163: PAGEIND | C163: 43635.35 | D163: 43770.02 | E163: 43289.03 | F163: 42942.72 | G163: 42461.73 | H163: 44116.33 | I163: 44597.32 | J163: 44943.63 | K163: 44251 | L163: 43423.7 | M163: 0.14317
A164: 155 | B164: PETRONET | C164: 223.3 | D164: 224.57 | E164: 221.23 | F164: 219.17 | G164: 215.83 | H164: 226.63 | I164: 229.97 | J164: 232.03 | K164: 227.9 | L164: 222.5 | M164: 38.41608
A165: 156 | B165: PFIZER | C165: 4928.6 | D165: 4949.30 | E165: 4898.80 | F165: 4869.00 | G165: 4818.50 | H165: 4979.10 | I165: 5029.60 | J165: 5059.40 | K165: 4999.8 | L165: 4919.5 | M165: 0.26171
A166: 157 | B166: PIDILITIND | C166: 2709.15 | D166: 2713.43 | E166: 2685.72 | F166: 2662.28 | G166: 2634.57 | H166: 2736.87 | I166: 2764.58 | J166: 2788.02 | K166: 2741.15 | L166: 2690 | M166: 3.21273
A167: 158 | B167: PEL | C167: 2579.25 | D167: 2572.85 | E167: 2557.50 | F167: 2535.75 | G167: 2520.40 | H167: 2594.60 | I167: 2609.95 | J167: 2631.70 | K167: 2588.2 | L167: 2551.1 | M167: 4.00208
A168: 159 | B168: POLYCAB | C168: 2521.65 | D168: 2511.28 | E168: 2490.77 | F168: 2459.88 | G168: 2439.37 | H168: 2542.17 | I168: 2562.68 | J168: 2593.57 | K168: 2531.8 | L168: 2480.4 | M168: 2.7312
A169: 160 | B169: PFC | C169: 125.85 | D169: 125.35 | E169: 124.50 | F169: 123.15 | G169: 122.30 | H169: 126.70 | I169: 127.55 | J169: 128.90 | K169: 126.2 | L169: 124 | M169: 27.78901
A170: 161 | B170: POWERGRID | C170: 204 | D170: 204.90 | E170: 202.55 | F170: 201.10 | G170: 198.75 | H170: 206.35 | I170: 208.70 | J170: 210.15 | K170: 207.25 | L170: 203.45 | M170: 83.14283
A171: 162 | B171: PRESTIGE | C171: 464.75 | D171: 466.82 | E171: 459.43 | F171: 454.12 | G171: 446.73 | H171: 472.13 | I171: 479.52 | J171: 484.83 | K171: 474.2 | L171: 461.5 | M171: 6.06162
A172: 163 | B172: PGHH | C172: 15778.85 | D172: 15847.22 | E172: 15604.63 | F172: 15430.42 | G172: 15187.83 | H172: 16021.43 | I172: 16264.02 | J172: 16438.23 | K172: 16089.8 | L172: 15673 | M172: 0.12093
A173: 164 | B173: PNB | C173: 40.35 | D173: 40.00 | E173: 39.25 | F173: 38.15 | G173: 37.40 | H173: 41.10 | I173: 41.85 | J173: 42.95 | K173: 40.75 | L173: 38.9 | M173: 774.87214
A174: 165 | B174: RBLBANK | C174: 141 | D174: 139.60 | E174: 137.20 | F174: 133.40 | G174: 131.00 | H174: 143.40 | I174: 145.80 | J174: 149.60 | K174: 142 | L174: 135.8 | M174: 241.93524
A175: 166 | B175: RECLTD | C175: 140.1 | D175: 139.08 | E175: 137.67 | F175: 135.23 | G175: 133.82 | H175: 141.52 | I175: 142.93 | J175: 145.37 | K175: 140.5 | L175: 136.65 | M175: 50.14297
A176: 167 | B176: RELIANCE | C176: 2438 | D176: 2437.02 | E176: 2417.03 | F176: 2396.07 | G176: 2376.08 | H176: 2457.98 | I176: 2477.97 | J176: 2498.93 | K176: 2457 | L176: 2416.05 | M176: 42.67365
A177: 168 | B177: SBICARD | C177: 904.55 | D177: 908.18 | E177: 893.37 | F177: 882.18 | G177: 867.37 | H177: 919.37 | I177: 934.18 | J177: 945.37 | K177: 923 | L177: 897 | M177: 20.04623
A178: 169 | B178: SBILIFE | C178: 1229.1 | D178: 1227.70 | E178: 1214.70 | F178: 1200.30 | G178: 1187.30 | H178: 1242.10 | I178: 1255.10 | J178: 1269.50 | K178: 1240.7 | L178: 1213.3 | M178: 13.79165
A179: 170 | B179: SRF | C179: 2530.25 | D179: 2522.25 | E179: 2493.70 | F179: 2457.15 | G179: 2428.60 | H179: 2558.80 | I179: 2587.35 | J179: 2623.90 | K179: 2550.8 | L179: 2485.7 | M179: 8.11329
A180: 171 | B180: SANOFI | C180: 7519.35 | D180: 7526.43 | E180: 7482.92 | F180: 7446.48 | G180: 7402.97 | H180: 7562.87 | I180: 7606.38 | J180: 7642.82 | K180: 7569.95 | L180: 7490 | M180: 0.20996
A181: 172 | B181: SHREECEM | C181: 26945.05 | D181: 27000.68 | E181: 26764.42 | F181: 26583.78 | G181: 26347.52 | H181: 27181.32 | I181: 27417.58 | J181: 27598.22 | K181: 27236.95 | L181: 26820.05 | M181: 0.21424
A182: 173 | B182: SRTRANSFIN | C182: 1222.9 | D182: 1224.70 | E182: 1206.40 | F182: 1189.90 | G182: 1171.60 | H182: 1241.20 | I182: 1259.50 | J182: 1276.00 | K182: 1243 | L182: 1208.2 | M182: 9.70148
A183: 174 | B183: SIEMENS | C183: 2314.65 | D183: 2294.80 | E183: 2263.90 | F183: 2213.15 | G183: 2182.25 | H183: 2345.55 | I183: 2376.45 | J183: 2427.20 | K183: 2325.7 | L183: 2244.05 | M183: 7.92914
A184: 175 | B184: SBIN | C184: 503.65 | D184: 500.37 | E184: 495.78 | F184: 487.92 | G184: 483.33 | H184: 508.23 | I184: 512.82 | J184: 520.68 | K184: 504.95 | L184: 492.5 | M184: 158.32274
A185: 176 | B185: SAIL | C185: 109.75 | D185: 110.57 | E185: 108.53 | F185: 107.32 | G185: 105.28 | H185: 111.78 | I185: 113.82 | J185: 115.03 | K185: 112.6 | L185: 109.35 | M185: 400.65591
A186: 177 | B186: SUNPHARMA | C186: 826.7 | D186: 826.42 | E186: 817.83 | F186: 808.97 | G186: 800.38 | H186: 835.28 | I186: 843.87 | J186: 852.73 | K186: 835 | L186: 817.55 | M186: 48.37873
A187: 178 | B187: SUNTV | C187: 514.15 | D187: 513.30 | E187: 508.90 | F187: 503.65 | G187: 499.25 | H187: 518.55 | I187: 522.95 | J187: 528.20 | K187: 517.7 | L187: 508.05 | M187: 4.67803
A188: 179 | B188: SYNGENE | C188: 628.3 | D188: 628.53 | E188: 622.57 | F188: 616.83 | G188: 610.87 | H188: 634.27 | I188: 640.23 | J188: 645.97 | K188: 634.5 | L188: 622.8 | M188: 4.80617
A189: 180 | B189: TVSMOTOR | C189: 649.8 | D189: 648.43 | E189: 643.87 | F189: 637.93 | G189: 633.37 | H189: 654.37 | I189: 658.93 | J189: 664.87 | K189: 653 | L189: 642.5 | M189: 7.71849
A190: 181 | B190: TATACHEM | C190: 939.25 | D190: 936.10 | E190: 928.45 | F190: 917.65 | G190: 910.00 | H190: 946.90 | I190: 954.55 | J190: 965.35 | K190: 943.75 | L190: 925.3 | M190: 15.05658
A191: 182 | B191: TATACOMM | C191: 1485.65 | D191: 1484.42 | E191: 1466.23 | F191: 1446.82 | G191: 1428.63 | H191: 1503.83 | I191: 1522.02 | J191: 1541.43 | K191: 1502.6 | L191: 1465 | M191: 5.19905
A192: 183 | B192: TCS | C192: 3879.85 | D192: 3906.28 | E192: 3834.57 | F192: 3789.28 | G192: 3717.57 | H192: 3951.57 | I192: 4023.28 | J192: 4068.57 | K192: 3978 | L192: 3861 | M192: 39.37092
A193: 184 | B193: TATACONSUM | C193: 731.9 | D193: 735.30 | E193: 727.60 | F193: 723.30 | G193: 715.60 | H193: 739.60 | I193: 747.30 | J193: 751.60 | K193: 743 | L193: 731 | M193: 15.92097
A194: 185 | B194: TATAELXSI | C194: 5992.95 | D194: 5937.65 | E194: 5855.30 | F194: 5717.65 | G194: 5635.30 | H194: 6075.30 | I194: 6157.65 | J194: 6295.30 | K194: 6020 | L194: 5800 | M194: 1.76137
A195: 186 | B195: TATAMOTORS | C195: 503.7 | D195: 499.97 | E195: 495.03 | F195: 486.37 | G195: 481.43 | H195: 508.63 | I195: 513.57 | J195: 522.23 | K195: 504.9 | L195: 491.3 | M195: 251.93771
A196: 187 | B196: TATAPOWER | C196: 231.75 | D196: 231.87 | E196: 230.28 | F196: 228.82 | G196: 227.23 | H196: 233.33 | I196: 234.92 | J196: 236.38 | K196: 233.45 | L196: 230.4 | M196: 220.61859
A197: 188 | B197: TATASTEEL | C197: 1169.05 | D197: 1165.43 | E197: 1157.47 | F197: 1145.88 | G197: 1137.92 | H197: 1177.02 | I197: 1184.98 | J197: 1196.57 | K197: 1173.4 | L197: 1153.85 | M197: 38.225
A198: 189 | B198: TECHM | C198: 1716 | D198: 1709.50 | E198: 1694.00 | F198: 1672.00 | G198: 1656.50 | H198: 1731.50 | I198: 1747.00 | J198: 1769.00 | K198: 1725 | L198: 1687.5 | M198: 23.30348
A199: 190 | B199: RAMCOCEM | C199: 1046.85 | D199: 1039.92 | E199: 1029.83 | F199: 1012.82 | G199: 1002.73 | H199: 1056.93 | I199: 1067.02 | J199: 1084.03 | K199: 1050 | L199: 1022.9 | M199: 6.17919
A200: 191 | B200: TITAN | C200: 2657.5 | D200: 2630.68 | E200: 2597.82 | F200: 2538.13 | G200: 2505.27 | H200: 2690.37 | I200: 2723.23 | J200: 2782.92 | K200: 2663.55 | L200: 2571 | M200: 18.94316
A201: 192 | B201: TORNTPHARM | C201: 3144.35 | D201: 3146.12 | E201: 3123.23 | F201: 3102.12 | G201: 3079.23 | H201: 3167.23 | I201: 3190.12 | J201: 3211.23 | K201: 3169 | L201: 3125 | M201: 0.58345
A202: 193 | B202: TORNTPOWER | C202: 574.9 | D202: 577.38 | E202: 568.77 | F202: 562.63 | G202: 554.02 | H202: 583.52 | I202: 592.13 | J202: 598.27 | K202: 586 | L202: 571.25 | M202: 8.72525
A203: 194 | B203: TRENT | C203: 1072 | D203: 1076.25 | E203: 1057.75 | F203: 1043.50 | G203: 1025.00 | H203: 1090.50 | I203: 1109.00 | J203: 1123.25 | K203: 1094.75 | L203: 1062 | M203: 6.04941
A204: 195 | B204: UPL | C204: 821.6 | D204: 812.77 | E204: 800.53 | F204: 779.47 | G204: 767.23 | H204: 833.83 | I204: 846.07 | J204: 867.13 | K204: 825 | L204: 791.7 | M204: 74.24271
A205: 196 | B205: ULTRACEMCO | C205: 7585.15 | D205: 7575.02 | E205: 7532.43 | F205: 7479.72 | G205: 7437.13 | H205: 7627.73 | I205: 7670.32 | J205: 7723.03 | K205: 7617.6 | L205: 7522.3 | M205: 2.13126
... 29 more rows

Sheet MidCap Intra
L5: Back To Main Page
A6: FOR INTRA DAY TRADING | K6: =Main!B10 -> 2022-01-11
A9: Sr.no | B9: Scrip | C9: CLOSE RATE | D9: Pivot Point | E9: Supports | H9: Resistances
E10: S1 | F10: S2 | G10: S3 | H10: R1 | I10: R2 | J10: R3 | K10: HIGH | L10: LOW | M10: Total Trade Quanity in Lakhs
A11: 1 | B11: 3MINDIA | C11: 25564.55 | D11: 25565.82 | E11: 25303.73 | F11: 25042.92 | G11: 24780.83 | H11: 25826.63 | I11: 26088.72 | J11: 26349.53 | K11: 25827.9 | L11: 25305 | M11: 0.0148
A12: 2 | B12: AARTIDRUGS | C12: 529.15 | D12: 527.05 | E12: 524.10 | F12: 519.05 | G12: 516.10 | H12: 532.10 | I12: 535.05 | J12: 540.10 | K12: 530 | L12: 522 | M12: 1.0463
A13: 3 | B13: AARTIIND | C13: 1085.15 | D13: 1066.83 | E13: 1045.37 | F13: 1005.58 | G13: 984.12 | H13: 1106.62 | I13: 1128.08 | J13: 1167.87 | K13: 1088.3 | L13: 1027.05 | M13: 20.06629
A14: 4 | B14: AAVAS | C14: 2733.5 | D14: 2766.32 | E14: 2680.18 | F14: 2626.87 | G14: 2540.73 | H14: 2819.63 | I14: 2905.77 | J14: 2959.08 | K14: 2852.45 | L14: 2713 | M14: 0.53522
A15: 5 | B15: ABB | C15: 2280.9 | D15: 2266.87 | E15: 2237.03 | F15: 2193.17 | G15: 2163.33 | H15: 2310.73 | I15: 2340.57 | J15: 2384.43 | K15: 2296.7 | L15: 2223 | M15: 2.89826
A16: 6 | B16: ABBOTINDIA | C16: 18314.05 | D16: 18387.68 | E16: 18226.37 | F16: 18138.68 | G16: 17977.37 | H16: 18475.37 | I16: 18636.68 | J16: 18724.37 | K16: 18549 | L16: 18300 | M16: 0.11833
A17: 7 | B17: ABCAPITAL | C17: 132.45 | D17: 132.77 | E17: 131.28 | F17: 130.12 | G17: 128.63 | H17: 133.93 | I17: 135.42 | J17: 136.58 | K17: 134.25 | L17: 131.6 | M17: 32.17357
A18: 8 | B18: ABFRL | C18: 293.1 | D18: 294.53 | E18: 290.77 | F18: 288.43 | G18: 284.67 | H18: 296.87 | I18: 300.63 | J18: 302.97 | K18: 298.3 | L18: 292.2 | M18: 28.6986
A19: 9 | B19: ACC | C19: 2320.15 | D19: 2307.90 | E19: 2290.80 | F19: 2261.45 | G19: 2244.35 | H19: 2337.25 | I19: 2354.35 | J19: 2383.70 | K19: 2325 | L19: 2278.55 | M19: 3.58989
A20: 10 | B20: ADANIENT | C20: 1752.6 | D20: 1739.23 | E20: 1712.47 | F20: 1672.33 | G20: 1645.57 | H20: 1779.37 | I20: 1806.13 | J20: 1846.27 | K20: 1766 | L20: 1699.1 | M20: 16.70551
A21: 11 | B21: ADANIGREEN | C21: 1438.9 | D21: 1432.30 | E21: 1411.60 | F21: 1384.30 | G21: 1363.60 | H21: 1459.60 | I21: 1480.30 | J21: 1507.60 | K21: 1453 | L21: 1405 | M21: 2.75337
A22: 12 | B22: ADANIPORTS | C22: 738.85 | D22: 738.65 | E22: 734.30 | F22: 729.75 | G22: 725.40 | H22: 743.20 | I22: 747.55 | J22: 752.10 | K22: 743 | L22: 734.1 | M22: 21.73107
A23: 13 | B23: ADANITRANS | C23: 1819.7 | D23: 1798.60 | E23: 1763.20 | F23: 1706.70 | G23: 1671.30 | H23: 1855.10 | I23: 1890.50 | J23: 1947.00 | K23: 1834 | L23: 1742.1 | M23: 0.68601
A24: 14 | B24: ADVENZYMES | C24: 334.1 | D24: 335.87 | E24: 331.23 | F24: 328.37 | G24: 323.73 | H24: 338.73 | I24: 343.37 | J24: 346.23 | K24: 340.5 | L24: 333 | M24: 1.29775
A25: 15 | B25: AEGISCHEM | C25: 213.95 | D25: 213.93 | E25: 212.62 | F25: 211.28 | G25: 209.97 | H25: 215.27 | I25: 216.58 | J25: 217.92 | K25: 215.25 | L25: 212.6 | M25: 3.25535
A26: 16 | B26: AFFLE | C26: 1308.9 | D26: 1317.67 | E26: 1289.33 | F26: 1269.77 | G26: 1241.43 | H26: 1337.23 | I26: 1365.57 | J26: 1385.13 | K26: 1346 | L26: 1298.1 | M26: 5.00675
A27: 17 | B27: AIAENG | C27: 1838.25 | D27: 1838.60 | E27: 1821.20 | F27: 1804.15 | G27: 1786.75 | H27: 1855.65 | I27: 1873.05 | J27: 1890.10 | K27: 1856 | L27: 1821.55 | M27: 0.27324
A28: 18 | B28: AJANTPHARM | C28: 2314.8 | D28: 2301.50 | E28: 2283.35 | F28: 2251.90 | G28: 2233.75 | H28: 2332.95 | I28: 2351.10 | J28: 2382.55 | K28: 2319.65 | L28: 2270.05 | M28: 1.51839
A29: 19 | B29: ALEMBICLTD | C29: 109.45 | D29: 110.00 | E29: 108.55 | F29: 107.65 | G29: 106.20 | H29: 110.90 | I29: 112.35 | J29: 113.25 | K29: 111.45 | L29: 109.1 | M29: 2.24688
A30: 20 | B30: ALKEM | C30: 3736.55 | D30: 3723.17 | E30: 3693.38 | F30: 3650.22 | G30: 3620.43 | H30: 3766.33 | I30: 3796.12 | J30: 3839.28 | K30: 3752.95 | L30: 3680 | M30: 1.34178
A31: 21 | B31: ALKYLAMINE | C31: 3660.4 | D31: 3659.95 | E31: 3620.45 | F31: 3580.50 | G31: 3541.00 | H31: 3699.90 | I31: 3739.40 | J31: 3779.35 | K31: 3699.45 | L31: 3620 | M31: 0.42152
A32: 22 | B32: ALOKINDS | C32: 29.8 | D32: 28.98 | E32: 27.27 | F32: 24.73 | G32: 23.02 | H32: 31.52 | I32: 33.23 | J32: 35.77 | K32: 30.7 | L32: 26.45 | M32: 1232.93206
A33: 23 | B33: AMARAJABAT | C33: 635.8 | D33: 634.93 | E33: 631.87 | F33: 627.93 | G33: 624.87 | H33: 638.87 | I33: 641.93 | J33: 645.87 | K33: 638 | L33: 631 | M33: 6.95224
A34: 24 | B34: AMBER | C34: 3499.75 | D34: 3485.00 | E34: 3401.05 | F34: 3302.35 | G34: 3218.40 | H34: 3583.70 | I34: 3667.65 | J34: 3766.35 | K34: 3568.95 | L34: 3386.3 | M34: 0.6987
A35: 25 | B35: AMBUJACEM | C35: 399.35 | D35: 399.53 | E35: 397.12 | F35: 394.88 | G35: 392.47 | H35: 401.77 | I35: 404.18 | J35: 406.42 | K35: 401.95 | L35: 397.3 | M35: 24.08661
A36: 26 | B36: ANGELONE | C36: 1274.8 | D36: 1264.10 | E36: 1245.70 | F36: 1216.60 | G36: 1198.20 | H36: 1293.20 | I36: 1311.60 | J36: 1340.70 | K36: 1282.5 | L36: 1235 | M36: 7.23125
A37: 27 | B37: ANURAS | C37: 1035.7 | D37: 1043.62 | E37: 1022.58 | F37: 1009.47 | G37: 988.43 | H37: 1056.73 | I37: 1077.77 | J37: 1090.88 | K37: 1064.65 | L37: 1030.5 | M37: 2.39424
A38: 28 | B38: APLAPOLLO | C38: 913.7 | D38: 916.00 | E38: 898.00 | F38: 882.30 | G38: 864.30 | H38: 931.70 | I38: 949.70 | J38: 965.40 | K38: 934 | L38: 900.3 | M38: 3.99663
A39: 29 | B39: APLLTD | C39: 823.65 | D39: 820.12 | E39: 811.78 | F39: 799.92 | G39: 791.58 | H39: 831.98 | I39: 840.32 | J39: 852.18 | K39: 828.45 | L39: 808.25 | M39: 3.87633
A40: 30 | B40: APOLLOHOSP | C40: 5065.25 | D40: 5037.75 | E40: 4990.50 | F40: 4915.75 | G40: 4868.50 | H40: 5112.50 | I40: 5159.75 | J40: 5234.50 | K40: 5085 | L40: 4963 | M40: 5.42304
A41: 31 | B41: APOLLOTYRE | C41: 232.5 | D41: 232.52 | E41: 230.38 | F41: 228.27 | G41: 226.13 | H41: 234.63 | I41: 236.77 | J41: 238.88 | K41: 234.65 | L41: 230.4 | M41: 19.65998
A42: 32 | B42: ASAHIINDIA | C42: 552.3 | D42: 554.60 | E42: 541.30 | F42: 530.30 | G42: 517.00 | H42: 565.60 | I42: 578.90 | J42: 589.90 | K42: 567.9 | L42: 543.6 | M42: 15.40365
A43: 33 | B43: ASHOKA | C43: 102.75 | D43: 103.27 | E43: 101.93 | F43: 101.12 | G43: 99.78 | H43: 104.08 | I43: 105.42 | J43: 106.23 | K43: 104.6 | L43: 102.45 | M43: 14.08368
A44: 34 | B44: ASHOKLEY | C44: 134.25 | D44: 133.85 | E44: 132.80 | F44: 131.35 | G44: 130.30 | H44: 135.30 | I44: 136.35 | J44: 137.80 | K44: 134.9 | L44: 132.4 | M44: 62.69461
A45: 35 | B45: ASIANPAINT | C45: 3553.5 | D45: 3556.83 | E45: 3523.67 | F45: 3493.83 | G45: 3460.67 | H45: 3586.67 | I45: 3619.83 | J45: 3649.67 | K45: 3590 | L45: 3527 | M45: 6.57511
A46: 36 | B46: ASTERDM | C46: 183.95 | D46: 184.15 | E46: 178.85 | F46: 173.75 | G46: 168.45 | H46: 189.25 | I46: 194.55 | J46: 199.65 | K46: 189.45 | L46: 179.05 | M46: 4.42194
A47: 37 | B47: ASTRAL | C47: 2453.9 | D47: 2452.78 | E47: 2434.12 | F47: 2414.33 | G47: 2395.67 | H47: 2472.57 | I47: 2491.23 | J47: 2511.02 | K47: 2471.45 | L47: 2433 | M47: 4.63006
A48: 38 | B48: ASTRAZEN | C48: 3010.6 | D48: 3021.20 | E48: 2994.40 | F48: 2978.20 | G48: 2951.40 | H48: 3037.40 | I48: 3064.20 | J48: 3080.40 | K48: 3048 | L48: 3005 | M48: 0.20147
A49: 39 | B49: ATGL | C49: 1763.35 | D49: 1774.38 | E49: 1738.97 | F49: 1714.58 | G49: 1679.17 | H49: 1798.77 | I49: 1834.18 | J49: 1858.57 | K49: 1809.8 | L49: 1750 | M49: 0.53429
A50: 40 | B50: ATUL | C50: 9534.35 | D50: 9451.55 | E50: 9334.05 | F50: 9133.75 | G50: 9016.25 | H50: 9651.85 | I50: 9769.35 | J50: 9969.65 | K50: 9569.05 | L50: 9251.25 | M50: 0.36474
A51: 41 | B51: AUBANK | C51: 1234.35 | D51: 1234.33 | E51: 1222.17 | F51: 1209.98 | G51: 1197.82 | H51: 1246.52 | I51: 1258.68 | J51: 1270.87 | K51: 1246.5 | L51: 1222.15 | M51: 17.14676
A52: 42 | B52: AUROPHARMA | C52: 737.3 | D52: 729.77 | E52: 719.53 | F52: 701.77 | G52: 691.53 | H52: 747.53 | I52: 757.77 | J52: 775.53 | K52: 740 | L52: 712 | M52: 30.81483
A53: 43 | B53: AVANTIFEED | C53: 570.9 | D53: 569.30 | E53: 564.60 | F53: 558.30 | G53: 553.60 | H53: 575.60 | I53: 580.30 | J53: 586.60 | K53: 574 | L53: 563 | M53: 1.01732
A54: 44 | B54: AXISBANK | C54: 742.8 | D54: 740.00 | E54: 736.00 | F54: 729.20 | G54: 725.20 | H54: 746.80 | I54: 750.80 | J54: 757.60 | K54: 744 | L54: 733.2 | M54: 95.95787
A55: 45 | B55: BAJAJ-AUTO | C55: 3435.1 | D55: 3430.27 | E55: 3409.28 | F55: 3383.47 | G55: 3362.48 | H55: 3456.08 | I55: 3477.07 | J55: 3502.88 | K55: 3451.25 | L55: 3404.45 | M55: 3.18473
A56: 46 | B56: BAJAJCON | C56: 193.8 | D56: 193.93 | E56: 192.17 | F56: 190.53 | G56: 188.77 | H56: 195.57 | I56: 197.33 | J56: 198.97 | K56: 195.7 | L56: 192.3 | M56: 5.908
A57: 47 | B57: BAJAJELEC | C57: 1256.2 | D57: 1272.88 | E57: 1228.77 | F57: 1201.33 | G57: 1157.22 | H57: 1300.32 | I57: 1344.43 | J57: 1371.87 | K57: 1317 | L57: 1245.45 | M57: 1.67301
A58: 48 | B58: BAJAJFINSV | C58: 17798.8 | D58: 17843.15 | E58: 17686.30 | F58: 17573.80 | G58: 17416.95 | H58: 17955.65 | I58: 18112.50 | J58: 18225.00 | K58: 18000 | L58: 17730.65 | M58: 1.69797
A59: 49 | B59: BAJAJHLDNG | C59: 5208.2 | D59: 5210.73 | E59: 5172.47 | F59: 5136.73 | G59: 5098.47 | H59: 5246.47 | I59: 5284.73 | J59: 5320.47 | K59: 5249 | L59: 5175 | M59: 0.26925
A60: 50 | B60: BAJFINANCE | C60: 7731.3 | D60: 7720.02 | E60: 7681.03 | F60: 7630.77 | G60: 7591.78 | H60: 7770.28 | I60: 7809.27 | J60: 7859.53 | K60: 7759 | L60: 7669.75 | M60: 6.3906
A61: 51 | B61: BALAMINES | C61: 3673.45 | D61: 3647.67 | E61: 3606.33 | F61: 3539.22 | G61: 3497.88 | H61: 3714.78 | I61: 3756.12 | J61: 3823.23 | K61: 3689 | L61: 3580.55 | M61: 0.57658
A62: 52 | B62: BALKRISIND | C62: 2405.65 | D62: 2392.62 | E62: 2375.23 | F62: 2344.82 | G62: 2327.43 | H62: 2423.03 | I62: 2440.42 | J62: 2470.83 | K62: 2410 | L62: 2362.2 | M62: 1.34056
A63: 53 | B63: BALRAMCHIN | C63: 419.9 | D63: 422.28 | E63: 415.07 | F63: 410.23 | G63: 403.02 | H63: 427.12 | I63: 434.33 | J63: 439.17 | K63: 429.5 | L63: 417.45 | M63: 26.75034
A64: 54 | B64: BANDHANBNK | C64: 274 | D64: 273.50 | E64: 271.50 | F64: 269.00 | G64: 267.00 | H64: 276.00 | I64: 278.00 | J64: 280.50 | K64: 275.5 | L64: 271 | M64: 43.6963
A65: 55 | B65: BANKBARODA | C65: 92.15 | D65: 90.77 | E65: 89.08 | F65: 86.02 | G65: 84.33 | H65: 93.83 | I65: 95.52 | J65: 98.58 | K65: 92.45 | L65: 87.7 | M65: 425.35778
A66: 56 | B66: BANKINDIA | C66: 55.45 | D66: 55.17 | E66: 54.63 | F66: 53.82 | G66: 53.28 | H66: 55.98 | I66: 56.52 | J66: 57.33 | K66: 55.7 | L66: 54.35 | M66: 55.48302
A67: 57 | B67: BASF | C67: 2960.75 | D67: 2959.82 | E67: 2938.78 | F67: 2916.82 | G67: 2895.78 | H67: 2981.78 | I67: 3002.82 | J67: 3024.78 | K67: 2980.85 | L67: 2937.85 | M67: 0.23626
A68: 58 | B68: BATAINDIA | C68: 1916.4 | D68: 1904.13 | E68: 1881.27 | F68: 1846.13 | G68: 1823.27 | H68: 1939.27 | I68: 1962.13 | J68: 1997.27 | K68: 1927 | L68: 1869 | M68: 5.57804
A69: 59 | B69: BAYERCROP | C69: 5040.35 | D69: 5023.30 | E69: 4966.90 | F69: 4893.45 | G69: 4837.05 | H69: 5096.75 | I69: 5153.15 | J69: 5226.60 | K69: 5079.7 | L69: 4949.85 | M69: 0.241
A70: 60 | B70: BBTC | C70: 1094.7 | D70: 1098.17 | E70: 1081.43 | F70: 1068.17 | G70: 1051.43 | H70: 1111.43 | I70: 1128.17 | J70: 1141.43 | K70: 1114.9 | L70: 1084.9 | M70: 0.51017
A71: 61 | B71: BDL | C71: 399.6 | D71: 401.83 | E71: 395.97 | F71: 392.33 | G71: 386.47 | H71: 405.47 | I71: 411.33 | J71: 414.97 | K71: 407.7 | L71: 398.2 | M71: 1.76018
A72: 62 | B72: BEL | C72: 210.85 | D72: 210.12 | E72: 208.73 | F72: 206.62 | G72: 205.23 | H72: 212.23 | I72: 213.62 | J72: 215.73 | K72: 211.5 | L72: 208 | M72: 31.36299
A73: 63 | B73: BEML | C73: 1852 | D73: 1843.75 | E73: 1820.50 | F73: 1789.00 | G73: 1765.75 | H73: 1875.25 | I73: 1898.50 | J73: 1930.00 | K73: 1867 | L73: 1812.25 | M73: 2.66536
A74: 64 | B74: BERGEPAINT | C74: 783.95 | D74: 788.47 | E74: 777.48 | F74: 771.02 | G74: 760.03 | H74: 794.93 | I74: 805.92 | J74: 812.38 | K74: 799.45 | L74: 782 | M74: 3.18891
A75: 65 | B75: BHARATFORG | C75: 767.5 | D75: 761.87 | E75: 754.73 | F75: 741.97 | G75: 734.83 | H75: 774.63 | I75: 781.77 | J75: 794.53 | K75: 769 | L75: 749.1 | M75: 11.34669
A76: 66 | B76: BHARATRAS | C76: 12215.7 | D76: 12311.65 | E76: 12049.05 | F76: 11882.40 | G76: 11619.80 | H76: 12478.30 | I76: 12740.90 | J76: 12907.55 | K76: 12574.25 | L76: 12145 | M76: 0.03895
A77: 67 | B77: BHARTIARTL | C77: 704.95 | D77: 706.65 | E77: 701.95 | F77: 698.95 | G77: 694.25 | H77: 709.65 | I77: 714.35 | J77: 717.35 | K77: 711.35 | L77: 703.65 | M77: 35.65324
A78: 68 | B78: BHEL | C78: 62.65 | D78: 61.75 | E78: 60.60 | F78: 58.55 | G78: 57.40 | H78: 63.80 | I78: 64.95 | J78: 67.00 | K78: 62.9 | L78: 59.7 | M78: 460.77589
A79: 69 | B79: BIOCON | C79: 358.15 | D79: 356.98 | E79: 354.72 | F79: 351.28 | G79: 349.02 | H79: 360.42 | I79: 362.68 | J79: 366.12 | K79: 359.25 | L79: 353.55 | M79: 18.43562
A80: 70 | B80: BIRLACORPN | C80: 1457.95 | D80: 1456.17 | E80: 1439.33 | F80: 1420.72 | G80: 1403.88 | H80: 1474.78 | I80: 1491.62 | J80: 1510.23 | K80: 1473 | L80: 1437.55 | M80: 0.79161
A81: 71 | B81: BLUEDART | C81: 6765.6 | D81: 6782.30 | E81: 6698.60 | F81: 6631.60 | G81: 6547.90 | H81: 6849.30 | I81: 6933.00 | J81: 7000.00 | K81: 6866 | L81: 6715.3 | M81: 0.14665
A82: 72 | B82: BLUESTARCO | C82: 988.65 | D82: 993.68 | E82: 976.97 | F82: 965.28 | G82: 948.57 | H82: 1005.37 | I82: 1022.08 | J82: 1033.77 | K82: 1010.4 | L82: 982 | M82: 0.71694
A83: 73 | B83: BOSCHLTD | C83: 17419.35 | D83: 17370.65 | E83: 17148.70 | F83: 16878.05 | G83: 16656.10 | H83: 17641.30 | I83: 17863.25 | J83: 18133.90 | K83: 17592.6 | L83: 17100 | M83: 0.35333
A84: 74 | B84: BPCL | C84: 397.55 | D84: 397.62 | E84: 395.53 | F84: 393.52 | G84: 391.43 | H84: 399.63 | I84: 401.72 | J84: 403.73 | K84: 399.7 | L84: 395.6 | M84: 20.89864
A85: 75 | B85: BRIGADE | C85: 455 | D85: 451.48 | E85: 445.22 | F85: 435.43 | G85: 429.17 | H85: 461.27 | I85: 467.53 | J85: 477.32 | K85: 457.75 | L85: 441.7 | M85: 6.66313
A86: 76 | B86: BRITANNIA | C86: 3768.3 | D86: 3758.07 | E86: 3738.13 | F86: 3707.97 | G86: 3688.03 | H86: 3788.23 | I86: 3808.17 | J86: 3838.33 | K86: 3778 | L86: 3727.9 | M86: 3.51447
A87: 77 | B87: BSE | C87: 1943.2 | D87: 1949.05 | E87: 1923.70 | F87: 1904.20 | G87: 1878.85 | H87: 1968.55 | I87: 1993.90 | J87: 2013.40 | K87: 1974.4 | L87: 1929.55 | M87: 4.83939
A88: 78 | B88: BSOFT | C88: 571.6 | D88: 575.82 | E88: 565.78 | F88: 559.97 | G88: 549.93 | H88: 581.63 | I88: 591.67 | J88: 597.48 | K88: 585.85 | L88: 570 | M88: 29.37337
A89: 79 | B89: BURGERKING | C89: 144.4 | D89: 145.73 | E89: 142.17 | F89: 139.93 | G89: 136.37 | H89: 147.97 | I89: 151.53 | J89: 153.77 | K89: 149.3 | L89: 143.5 | M89: 22.6927
A90: 80 | B90: CADILAHC | C90: 453.75 | D90: 453.65 | E90: 449.30 | F90: 444.85 | G90: 440.50 | H90: 458.10 | I90: 462.45 | J90: 466.90 | K90: 458 | L90: 449.2 | M90: 27.29282
A91: 81 | B91: CAMS | C91: 2809.05 | D91: 2806.70 | E91: 2789.40 | F91: 2769.75 | G91: 2752.45 | H91: 2826.35 | I91: 2843.65 | J91: 2863.30 | K91: 2824 | L91: 2787.05 | M91: 0.96907
A92: 82 | B92: CANBK | C92: 219.7 | D92: 217.93 | E92: 215.07 | F92: 210.43 | G92: 207.57 | H92: 222.57 | I92: 225.43 | J92: 230.07 | K92: 220.8 | L92: 213.3 | M92: 103.05642
A93: 83 | B93: CANFINHOME | C93: 597.45 | D93: 595.08 | E93: 588.37 | F93: 579.28 | G93: 572.57 | H93: 604.17 | I93: 610.88 | J93: 619.97 | K93: 601.8 | L93: 586 | M93: 6.7272
A94: 84 | B94: CAPLIPOINT | C94: 839.55 | D94: 844.03 | E94: 826.52 | F94: 813.48 | G94: 795.97 | H94: 857.07 | I94: 874.58 | J94: 887.62 | K94: 861.55 | L94: 831 | M94: 0.86814
A95: 85 | B95: CARBORUNIV | C95: 1000.05 | D95: 992.63 | E95: 981.27 | F95: 962.48 | G95: 951.12 | H95: 1011.42 | I95: 1022.78 | J95: 1041.57 | K95: 1004 | L95: 973.85 | M95: 1.26183
A96: 86 | B96: CASTROLIND | C96: 122.55 | D96: 122.52 | E96: 121.78 | F96: 121.02 | G96: 120.28 | H96: 123.28 | I96: 124.02 | J96: 124.78 | K96: 123.25 | L96: 121.75 | M96: 11.38358
A97: 87 | B97: CCL | C97: 434.15 | D97: 432.95 | E97: 428.20 | F97: 422.25 | G97: 417.50 | H97: 438.90 | I97: 443.65 | J97: 449.60 | K97: 437.7 | L97: 427 | M97: 5.5707
A98: 88 | B98: CDSL | C98: 1548.7 | D98: 1551.25 | E98: 1532.50 | F98: 1516.30 | G98: 1497.55 | H98: 1567.45 | I98: 1586.20 | J98: 1602.40 | K98: 1570 | L98: 1535.05 | M98: 4.07953
A99: 89 | B99: CEATLTD | C99: 1148.5 | D99: 1153.58 | E99: 1139.22 | F99: 1129.93 | G99: 1115.57 | H99: 1162.87 | I99: 1177.23 | J99: 1186.52 | K99: 1167.95 | L99: 1144.3 | M99: 0.85321
A100: 90 | B100: CENTRALBK | C100: 22.25 | D100: 22.13 | E100: 21.67 | F100: 21.08 | G100: 20.62 | H100: 22.72 | I100: 23.18 | J100: 23.77 | K100: 22.6 | L100: 21.55 | M100: 126.69772
A101: 91 | B101: CENTURYPLY | C101: 644.85 | D101: 641.13 | E101: 629.27 | F101: 613.68 | G101: 601.82 | H101: 656.72 | I101: 668.58 | J101: 684.17 | K101: 653 | L101: 625.55 | M101: 3.53236
A102: 92 | B102: CENTURYTEX | C102: 960.55 | D102: 960.05 | E102: 941.70 | F102: 922.85 | G102: 904.50 | H102: 978.90 | I102: 997.25 | J102: 1016.10 | K102: 978.4 | L102: 941.2 | M102: 10.04043
A103: 93 | B103: CERA | C103: 4906.6 | D103: 4884.20 | E103: 4839.40 | F103: 4772.20 | G103: 4727.40 | H103: 4951.40 | I103: 4996.20 | J103: 5063.40 | K103: 4929 | L103: 4817 | M103: 0.13256
A104: 94 | B104: CESC | C104: 89.95 | D104: 90.52 | E104: 89.23 | F104: 88.52 | G104: 87.23 | H104: 91.23 | I104: 92.52 | J104: 93.23 | K104: 91.8 | L104: 89.8 | M104: 43.06798
A105: 95 | B105: CGCL | C105: 520.15 | D105: 516.90 | E105: 508.00 | F105: 495.85 | G105: 486.95 | H105: 529.05 | I105: 537.95 | J105: 550.10 | K105: 525.8 | L105: 504.75 | M105: 0.67735
A106: 96 | B106: CGPOWER | C106: 196.15 | D106: 196.47 | E106: 189.88 | F106: 183.62 | G106: 177.03 | H106: 202.73 | I106: 209.32 | J106: 215.58 | K106: 203.05 | L106: 190.2 | M106: 21.04586
A107: 97 | B107: CHALET | C107: 230.25 | D107: 228.05 | E107: 224.10 | F107: 217.95 | G107: 214.00 | H107: 234.20 | I107: 238.15 | J107: 244.30 | K107: 232 | L107: 221.9 | M107: 1.72435
A108: 98 | B108: CHAMBLFERT | C108: 432.8 | D108: 430.72 | E108: 426.78 | F108: 420.77 | G108: 416.83 | H108: 436.73 | I108: 440.67 | J108: 446.68 | K108: 434.65 | L108: 424.7 | M108: 35.50342
A109: 99 | B109: CHOLAFIN | C109: 561.15 | D109: 566.92 | E109: 554.33 | F109: 547.52 | G109: 534.93 | H109: 573.73 | I109: 586.32 | J109: 593.13 | K109: 579.5 | L109: 560.1 | M109: 13.22019
A110: 100 | B110: CHOLAHLDNG | C110: 639.7 | D110: 641.75 | E110: 633.50 | F110: 627.30 | G110: 619.05 | H110: 647.95 | I110: 656.20 | J110: 662.40 | K110: 650 | L110: 635.55 | M110: 1.66236
A111: 101 | B111: CIPLA | C111: 916.2 | D111: 914.23 | E111: 910.62 | F111: 905.03 | G111: 901.42 | H111: 919.82 | I111: 923.43 | J111: 929.02 | K111: 917.85 | L111: 908.65 | M111: 16.37506
A112: 102 | B112: COALINDIA | C112: 160.7 | D112: 159.58 | E112: 158.17 | F112: 155.63 | G112: 154.22 | H112: 162.12 | I112: 163.53 | J112: 166.07 | K112: 161 | L112: 157.05 | M112: 146.55298
A113: 103 | B113: COCHINSHIP | C113: 348.8 | D113: 349.50 | E113: 347.35 | F113: 345.90 | G113: 343.75 | H113: 350.95 | I113: 353.10 | J113: 354.55 | K113: 351.65 | L113: 348.05 | M113: 0.8536
A114: 104 | B114: COFORGE | C114: 5580.55 | D114: 5651.35 | E114: 5489.20 | F114: 5397.85 | G114: 5235.70 | H114: 5742.70 | I114: 5904.85 | J114: 5996.20 | K114: 5813.5 | L114: 5560 | M114: 3.80344
A115: 105 | B115: COLPAL | C115: 1465.2 | D115: 1467.88 | E115: 1455.87 | F115: 1446.53 | G115: 1434.52 | H115: 1477.22 | I115: 1489.23 | J115: 1498.57 | K115: 1479.9 | L115: 1458.55 | M115: 2.19992
A116: 106 | B116: CONCOR | C116: 645.35 | D116: 642.13 | E116: 638.27 | F116: 631.18 | G116: 627.32 | H116: 649.22 | I116: 653.08 | J116: 660.17 | K116: 646 | L116: 635.05 | M116: 6.18751
A117: 107 | B117: COROMANDEL | C117: 772.95 | D117: 775.25 | E117: 766.70 | F117: 760.45 | G117: 751.90 | H117: 781.50 | I117: 790.05 | J117: 796.30 | K117: 783.8 | L117: 769 | M117: 3.43075
A118: 108 | B118: CREDITACC | C118: 566.15 | D118: 571.15 | E118: 558.00 | F118: 549.85 | G118: 536.70 | H118: 579.30 | I118: 592.45 | J118: 600.60 | K118: 584.3 | L118: 563 | M118: 0.85523
A119: 109 | B119: CRISIL | C119: 2832.1 | D119: 2837.37 | E119: 2814.73 | F119: 2797.37 | G119: 2774.73 | H119: 2854.73 | I119: 2877.37 | J119: 2894.73 | K119: 2860 | L119: 2820 | M119: 0.18577
A120: 110 | B120: CROMPTON | C120: 445.05 | D120: 443.67 | E120: 440.38 | F120: 435.72 | G120: 432.43 | H120: 448.33 | I120: 451.62 | J120: 456.28 | K120: 446.95 | L120: 439 | M120: 7.59025
A121: 111 | B121: CSBBANK | C121: 258.5 | D121: 261.50 | E121: 255.00 | F121: 251.50 | G121: 245.00 | H121: 265.00 | I121: 271.50 | J121: 275.00 | K121: 268 | L121: 258 | M121: 4.60455
A122: 112 | B122: CUB | C122: 146 | D122: 144.18 | E122: 141.47 | F122: 136.93 | G122: 134.22 | H122: 148.72 | I122: 151.43 | J122: 155.97 | K122: 146.9 | L122: 139.65 | M122: 45.04051
A123: 113 | B123: CUMMINSIND | C123: 952.15 | D123: 947.70 | E123: 939.40 | F123: 926.65 | G123: 918.35 | H123: 960.45 | I123: 968.75 | J123: 981.50 | K123: 956 | L123: 934.95 | M123: 4.53512
A124: 114 | B124: CYIENT | C124: 1044.9 | D124: 1035.93 | E124: 1017.67 | F124: 990.43 | G124: 972.17 | H124: 1063.17 | I124: 1081.43 | J124: 1108.67 | K124: 1054.2 | L124: 1008.7 | M124: 2.83886
A125: 115 | B125: DABUR | C125: 589.1 | D125: 588.80 | E125: 586.35 | F125: 583.60 | G125: 581.15 | H125: 591.55 | I125: 594.00 | J125: 596.75 | K125: 591.25 | L125: 586.05 | M125: 8.13368
A126: 116 | B126: DALBHARAT | C126: 1994.1 | D126: 1976.25 | E126: 1953.50 | F126: 1912.90 | G126: 1890.15 | H126: 2016.85 | I126: 2039.60 | J126: 2080.20 | K126: 1999 | L126: 1935.65 | M126: 3.12571
A127: 117 | B127: DBL | C127: 420.35 | D127: 424.38 | E127: 414.72 | F127: 409.08 | G127: 399.42 | H127: 430.02 | I127: 439.68 | J127: 445.32 | K127: 434.05 | L127: 418.75 | M127: 8.26928
A128: 118 | B128: DCBBANK | C128: 84.55 | D128: 84.18 | E128: 83.47 | F128: 82.38 | G128: 81.67 | H128: 85.27 | I128: 85.98 | J128: 87.07 | K128: 84.9 | L128: 83.1 | M128: 12.54684
A129: 119 | B129: DCMSHRIRAM | C129: 1003.65 | D129: 1007.57 | E129: 990.13 | F129: 976.62 | G129: 959.18 | H129: 1021.08 | I129: 1038.52 | J129: 1052.03 | K129: 1025 | L129: 994.05 | M129: 0.3044
A130: 120 | B130: DEEPAKNTR | C130: 2595.7 | D130: 2578.60 | E130: 2552.10 | F130: 2508.50 | G130: 2482.00 | H130: 2622.20 | I130: 2648.70 | J130: 2692.30 | K130: 2605.1 | L130: 2535 | M130: 8.51299
A131: 121 | B131: DELTACORP | C131: 280.4 | D131: 279.48 | E131: 276.97 | F131: 273.53 | G131: 271.02 | H131: 282.92 | I131: 285.43 | J131: 288.87 | K131: 282 | L131: 276.05 | M131: 34.21563
A132: 122 | B132: DHANI | C132: 157.25 | D132: 157.97 | E132: 155.13 | F132: 153.02 | G132: 150.18 | H132: 160.08 | I132: 162.92 | J132: 165.03 | K132: 160.8 | L132: 155.85 | M132: 16.87065
A133: 123 | B133: DHANUKA | C133: 759.25 | D133: 754.77 | E133: 747.53 | F133: 735.82 | G133: 728.58 | H133: 766.48 | I133: 773.72 | J133: 785.43 | K133: 762 | L133: 743.05 | M133: 0.65128
A134: 124 | B134: DIVISLAB | C134: 4465.8 | D134: 4487.52 | E134: 4440.48 | F134: 4415.17 | G134: 4368.13 | H134: 4512.83 | I134: 4559.87 | J134: 4585.18 | K134: 4534.55 | L134: 4462.2 | M134: 3.61423
A135: 125 | B135: DIXON | C135: 5290.2 | D135: 5308.38 | E135: 5259.82 | F135: 5229.43 | G135: 5180.87 | H135: 5338.77 | I135: 5387.33 | J135: 5417.72 | K135: 5356.95 | L135: 5278 | M135: 1.74787
A136: 126 | B136: DLF | C136: 407.95 | D136: 408.27 | E136: 404.83 | F136: 401.72 | G136: 398.28 | H136: 411.38 | I136: 414.82 | J136: 417.93 | K136: 411.7 | L136: 405.15 | M136: 62.98597
A137: 127 | B137: DMART | C137: 4633.55 | D137: 4679.48 | E137: 4574.07 | F137: 4514.58 | G137: 4409.17 | H137: 4738.97 | I137: 4844.38 | J137: 4903.87 | K137: 4784.9 | L137: 4620 | M137: 10.37618
A138: 128 | B138: DRREDDY | C138: 4699.05 | D138: 4694.20 | E138: 4660.00 | F138: 4620.95 | G138: 4586.75 | H138: 4733.25 | I138: 4767.45 | J138: 4806.50 | K138: 4728.4 | L138: 4655.15 | M138: 3.15019
A139: 129 | B139: ECLERX | C139: 2783.25 | D139: 2802.40 | E139: 2735.85 | F139: 2688.45 | G139: 2621.90 | H139: 2849.80 | I139: 2916.35 | J139: 2963.75 | K139: 2868.95 | L139: 2755 | M139: 1.56335
A140: 130 | B140: EDELWEISS | C140: 73.75 | D140: 74.02 | E140: 73.03 | F140: 72.32 | G140: 71.33 | H140: 74.73 | I140: 75.72 | J140: 76.43 | K140: 75 | L140: 73.3 | M140: 10.16812
A141: 131 | B141: EICHERMOT | C141: 2815.5 | D141: 2821.75 | E141: 2792.50 | F141: 2769.50 | G141: 2740.25 | H141: 2844.75 | I141: 2874.00 | J141: 2897.00 | K141: 2851 | L141: 2798.75 | M141: 4.93242
A142: 132 | B142: EIDPARRY | C142: 484.05 | D142: 484.35 | E142: 478.75 | F142: 473.45 | G142: 467.85 | H142: 489.65 | I142: 495.25 | J142: 500.55 | K142: 489.95 | L142: 479.05 | M142: 2.27615
A143: 133 | B143: EIHOTEL | C143: 132.4 | D143: 130.67 | E143: 127.83 | F143: 123.27 | G143: 120.43 | H143: 135.23 | I143: 138.07 | J143: 142.63 | K143: 133.5 | L143: 126.1 | M143: 5.20935
A144: 134 | B144: ELGIEQUIP | C144: 362.2 | D144: 354.65 | E144: 336.30 | F144: 310.40 | G144: 292.05 | H144: 380.55 | I144: 398.90 | J144: 424.80 | K144: 373 | L144: 328.75 | M144: 24.48894
A145: 135 | B145: EMAMILTD | C145: 509.75 | D145: 511.20 | E145: 503.55 | F145: 497.35 | G145: 489.70 | H145: 517.40 | I145: 525.05 | J145: 531.25 | K145: 518.85 | L145: 505 | M145: 2.44549
A146: 136 | B146: ENDURANCE | C146: 1691.25 | D146: 1695.08 | E146: 1680.17 | F146: 1669.08 | G146: 1654.17 | H146: 1706.17 | I146: 1721.08 | J146: 1732.17 | K146: 1710 | L146: 1684 | M146: 0.22379
A147: 137 | B147: ENGINERSIN | C147: 70.6 | D147: 70.52 | E147: 69.98 | F147: 69.37 | G147: 68.83 | H147: 71.13 | I147: 71.67 | J147: 72.28 | K147: 71.05 | L147: 69.9 | M147: 18.5568
A148: 138 | B148: EPL | C148: 199.4 | D148: 199.63 | E148: 198.27 | F148: 197.13 | G148: 195.77 | H148: 200.77 | I148: 202.13 | J148: 203.27 | K148: 201 | L148: 198.5 | M148: 1.86176
A149: 139 | B149: EQUITAS | C149: 120.35 | D149: 119.12 | E149: 116.73 | F149: 113.12 | G149: 110.73 | H149: 122.73 | I149: 125.12 | J149: 128.73 | K149: 121.5 | L149: 115.5 | M149: 17.23226
A150: 140 | B150: EQUITASBNK | C150: 57.4 | D150: 57.55 | E150: 55.90 | F150: 54.40 | G150: 52.75 | H150: 59.05 | I150: 60.70 | J150: 62.20 | K150: 59.2 | L150: 56.05 | M150: 13.93498
A151: 141 | B151: ERIS | C151: 745.05 | D151: 748.43 | E151: 737.62 | F151: 730.18 | G151: 719.37 | H151: 755.87 | I151: 766.68 | J151: 774.12 | K151: 759.25 | L151: 741 | M151: 0.42198
A152: 142 | B152: ESCORTS | C152: 1865.8 | D152: 1867.63 | E152: 1857.27 | F152: 1848.73 | G152: 1838.37 | H152: 1876.17 | I152: 1886.53 | J152: 1895.07 | K152: 1878 | L152: 1859.1 | M152: 5.68492
A153: 143 | B153: EXIDEIND | C153: 171.35 | D153: 171.25 | E153: 170.25 | F153: 169.15 | G153: 168.15 | H153: 172.35 | I153: 173.35 | J153: 174.45 | K153: 172.25 | L153: 170.15 | M153: 19.50936
A154: 144 | B154: FACT | C154: 135.95 | D154: 135.67 | E154: 132.58 | F154: 129.22 | G154: 126.13 | H154: 139.03 | I154: 142.12 | J154: 145.48 | K154: 138.75 | L154: 132.3 | M154: 3.80346
A155: 145 | B155: FDC | C155: 301.6 | D155: 302.22 | E155: 298.53 | F155: 295.47 | G155: 291.78 | H155: 305.28 | I155: 308.97 | J155: 312.03 | K155: 305.9 | L155: 299.15 | M155: 1.44964
A156: 146 | B156: FEDERALBNK | C156: 95.55 | D156: 94.35 | E156: 92.80 | F156: 90.05 | G156: 88.50 | H156: 97.10 | I156: 98.65 | J156: 101.40 | K156: 95.9 | L156: 91.6 | M156: 297.01899
A157: 147 | B157: FINCABLES | C157: 531.05 | D157: 530.75 | E157: 528.50 | F157: 525.95 | G157: 523.70 | H157: 533.30 | I157: 535.55 | J157: 538.10 | K157: 533 | L157: 528.2 | M157: 0.99596
A158: 148 | B158: FINEORG | C158: 3625.35 | D158: 3645.80 | E158: 3579.60 | F158: 3533.85 | G158: 3467.65 | H158: 3691.55 | I158: 3757.75 | J158: 3803.50 | K158: 3712 | L158: 3600.05 | M158: 0.18827
A159: 149 | B159: FINPIPE | C159: 200.9 | D159: 201.38 | E159: 200.02 | F159: 199.13 | G159: 197.77 | H159: 202.27 | I159: 203.63 | J159: 204.52 | K159: 202.75 | L159: 200.5 | M159: 5.86555
A160: 150 | B160: FLUOROCHEM | C160: 2741.95 | D160: 2739.43 | E160: 2696.87 | F160: 2651.78 | G160: 2609.22 | H160: 2784.52 | I160: 2827.08 | J160: 2872.17 | K160: 2782 | L160: 2694.35 | M160: 1.18579
A161: 151 | B161: FORTIS | C161: 289.4 | D161: 288.78 | E161: 286.07 | F161: 282.73 | G161: 280.02 | H161: 292.12 | I161: 294.83 | J161: 298.17 | K161: 291.5 | L161: 285.45 | M161: 13.04481
A162: 152 | B162: FRETAIL | C162: 52.5 | D162: 52.43 | E162: 51.72 | F162: 50.93 | G162: 50.22 | H162: 53.22 | I162: 53.93 | J162: 54.72 | K162: 53.15 | L162: 51.65 | M162: 32.04501
A163: 153 | B163: FSL | C163: 181.85 | D163: 182.25 | E163: 180.80 | F163: 179.75 | G163: 178.30 | H163: 183.30 | I163: 184.75 | J163: 185.80 | K163: 183.7 | L163: 181.2 | M163: 32.46883
A164: 154 | B164: GAEL | C164: 174.45 | D164: 173.48 | E164: 170.97 | F164: 167.48 | G164: 164.97 | H164: 176.97 | I164: 179.48 | J164: 182.97 | K164: 176 | L164: 170 | M164: 5.4381
A165: 155 | B165: GAIL | C165: 142.65 | D165: 141.87 | E165: 140.73 | F165: 138.82 | G165: 137.68 | H165: 143.78 | I165: 144.92 | J165: 146.83 | K165: 143 | L165: 139.95 | M165: 81.02429
A166: 156 | B166: GALAXYSURF | C166: 3123.95 | D166: 3110.43 | E166: 3072.57 | F166: 3021.18 | G166: 2983.32 | H166: 3161.82 | I166: 3199.68 | J166: 3251.07 | K166: 3148.3 | L166: 3059.05 | M166: 0.58833
A167: 157 | B167: GARFIBRES | C167: 3314.35 | D167: 3259.67 | E167: 3161.33 | F167: 3008.32 | G167: 2909.98 | H167: 3412.68 | I167: 3511.02 | J167: 3664.03 | K167: 3358 | L167: 3106.65 | M167: 0.41972
A168: 158 | B168: GESHIP | C168: 309.85 | D168: 309.67 | E168: 305.38 | F168: 300.92 | G168: 296.63 | H168: 314.13 | I168: 318.42 | J168: 322.88 | K168: 313.95 | L168: 305.2 | M168: 2.54388
A169: 159 | B169: GICRE | C169: 143.4 | D169: 142.63 | E169: 140.67 | F169: 137.93 | G169: 135.97 | H169: 145.37 | I169: 147.33 | J169: 150.07 | K169: 144.6 | L169: 139.9 | M169: 7.58566
A170: 160 | B170: GILLETTE | C170: 5296.35 | D170: 5305.40 | E170: 5270.95 | F170: 5245.55 | G170: 5211.10 | H170: 5330.80 | I170: 5365.25 | J170: 5390.65 | K170: 5339.85 | L170: 5280 | M170: 0.03445
A171: 161 | B171: GLAND | C171: 3862.4 | D171: 3865.12 | E171: 3799.28 | F171: 3736.17 | G171: 3670.33 | H171: 3928.23 | I171: 3994.07 | J171: 4057.18 | K171: 3930.95 | L171: 3802 | M171: 0.83636
A172: 162 | B172: GLAXO | C172: 1761.95 | D172: 1760.22 | E172: 1730.53 | F172: 1699.12 | G172: 1669.43 | H172: 1791.63 | I172: 1821.32 | J172: 1852.73 | K172: 1789.9 | L172: 1728.8 | M172: 1.3634
A173: 163 | B173: GLENMARK | C173: 519 | D173: 516.98 | E173: 510.22 | F173: 501.43 | G173: 494.67 | H173: 525.77 | I173: 532.53 | J173: 541.32 | K173: 523.75 | L173: 508.2 | M173: 8.51516
A174: 164 | B174: GMMPFAUDLR | C174: 5045.25 | D174: 5092.83 | E174: 4964.42 | F174: 4883.58 | G174: 4755.17 | H174: 5173.67 | I174: 5302.08 | J174: 5382.92 | K174: 5221.25 | L174: 5012 | M174: 0.4511
A175: 165 | B175: GMRINFRA | C175: 48.45 | D175: 47.63 | E175: 46.22 | F175: 43.98 | G175: 42.57 | H175: 49.87 | I175: 51.28 | J175: 53.52 | K175: 49.05 | L175: 45.4 | M175: 1161.52197
A176: 166 | B176: GNFC | C176: 457.85 | D176: 457.23 | E176: 452.47 | F176: 447.08 | G176: 442.32 | H176: 462.62 | I176: 467.38 | J176: 472.77 | K176: 462 | L176: 451.85 | M176: 6.94131
A177: 167 | B177: GODFRYPHLP | C177: 1122.05 | D177: 1123.73 | E177: 1115.97 | F177: 1109.88 | G177: 1102.12 | H177: 1129.82 | I177: 1137.58 | J177: 1143.67 | K177: 1131.5 | L177: 1117.65 | M177: 0.08057
A178: 168 | B178: GODREJAGRO | C178: 527.55 | D178: 526.35 | E178: 523.80 | F178: 520.05 | G178: 517.50 | H178: 530.10 | I178: 532.65 | J178: 536.40 | K178: 528.9 | L178: 522.6 | M178: 0.72105
A179: 169 | B179: GODREJCP | C179: 931.05 | D179: 940.80 | E179: 918.85 | F179: 906.65 | G179: 884.70 | H179: 953.00 | I179: 974.95 | J179: 987.15 | K179: 962.75 | L179: 928.6 | M179: 8.11201
A180: 170 | B180: GODREJIND | C180: 636.55 | D180: 639.38 | E180: 631.47 | F180: 626.38 | G180: 618.47 | H180: 644.47 | I180: 652.38 | J180: 657.47 | K180: 647.3 | L180: 634.3 | M180: 1.08434
A181: 171 | B181: GODREJPROP | C181: 1921.5 | D181: 1923.43 | E181: 1899.87 | F181: 1878.23 | G181: 1854.67 | H181: 1945.07 | I181: 1968.63 | J181: 1990.27 | K181: 1947 | L181: 1901.8 | M181: 5.85189
A182: 172 | B182: GPPL | C182: 98 | D182: 98.22 | E182: 97.53 | F182: 97.07 | G182: 96.38 | H182: 98.68 | I182: 99.37 | J182: 99.83 | K182: 98.9 | L182: 97.75 | M182: 5.6087
A183: 173 | B183: GRANULES | C183: 326.75 | D183: 324.40 | E183: 320.85 | F183: 314.95 | G183: 311.40 | H183: 330.30 | I183: 333.85 | J183: 339.75 | K183: 327.95 | L183: 318.5 | M183: 13.71374
A184: 174 | B184: GRAPHITE | C184: 512.95 | D184: 515.68 | E184: 508.37 | F184: 503.78 | G184: 496.47 | H184: 520.27 | I184: 527.58 | J184: 532.17 | K184: 523 | L184: 511.1 | M184: 6.15139
A185: 175 | B185: GRASIM | C185: 1838.85 | D185: 1825.82 | E185: 1806.63 | F185: 1774.42 | G185: 1755.23 | H185: 1858.03 | I185: 1877.22 | J185: 1909.43 | K185: 1845 | L185: 1793.6 | M185: 14.62664
A186: 176 | B186: GREAVESCOT | C186: 209.4 | D186: 198.00 | E186: 186.10 | F186: 162.80 | G186: 150.90 | H186: 221.30 | I186: 233.20 | J186: 256.50 | K186: 209.9 | L186: 174.7 | M186: 417.30599
A187: 177 | B187: GRINDWELL | C187: 1932.9 | D187: 1933.67 | E187: 1917.28 | F187: 1901.67 | G187: 1885.28 | H187: 1949.28 | I187: 1965.67 | J187: 1981.28 | K187: 1950.05 | L187: 1918.05 | M187: 0.41039
A188: 178 | B188: GSFC | C188: 125.7 | D188: 125.72 | E188: 123.58 | F188: 121.47 | G188: 119.33 | H188: 127.83 | I188: 129.97 | J188: 132.08 | K188: 127.85 | L188: 123.6 | M188: 19.47762
A189: 179 | B189: GSPL | C189: 317 | D189: 316.93 | E189: 313.07 | F189: 309.13 | G189: 305.27 | H189: 320.87 | I189: 324.73 | J189: 328.67 | K189: 320.8 | L189: 313 | M189: 7.93416
A190: 180 | B190: GUJALKALI | C190: 657.6 | D190: 657.42 | E190: 648.83 | F190: 640.07 | G190: 631.48 | H190: 666.18 | I190: 674.77 | J190: 683.53 | K190: 666 | L190: 648.65 | M190: 1.74042
A191: 181 | B191: GUJGASLTD | C191: 691.35 | D191: 694.27 | E191: 682.63 | F191: 673.92 | G191: 662.28 | H191: 702.98 | I191: 714.62 | J191: 723.33 | K191: 705.9 | L191: 685.55 | M191: 21.5704
A192: 182 | B192: HAL | C192: 1296.25 | D192: 1284.30 | E192: 1268.60 | F192: 1240.95 | G192: 1225.25 | H192: 1311.95 | I192: 1327.65 | J192: 1355.30 | K192: 1300 | L192: 1256.65 | M192: 14.26483
A193: 183 | B193: HAPPSTMNDS | C193: 1322.35 | D193: 1323.50 | E193: 1307.00 | F193: 1291.65 | G193: 1275.15 | H193: 1338.85 | I193: 1355.35 | J193: 1370.70 | K193: 1340 | L193: 1308.15 | M193: 2.73106
A194: 184 | B194: HATHWAY | C194: 22.5 | D194: 22.43 | E194: 22.17 | F194: 21.83 | G194: 21.57 | H194: 22.77 | I194: 23.03 | J194: 23.37 | K194: 22.7 | L194: 22.1 | M194: 84.41714
A195: 185 | B195: HATSUN | C195: 1216.3 | D195: 1222.02 | E195: 1204.28 | F195: 1192.27 | G195: 1174.53 | H195: 1234.03 | I195: 1251.77 | J195: 1263.78 | K195: 1239.75 | L195: 1210 | M195: 0.35281
A196: 186 | B196: HAVELLS | C196: 1351.6 | D196: 1360.30 | E196: 1340.35 | F196: 1329.10 | G196: 1309.15 | H196: 1371.55 | I196: 1391.50 | J196: 1402.75 | K196: 1380.25 | L196: 1349.05 | M196: 5.25478
A197: 187 | B197: HCLTECH | C197: 1288.1 | D197: 1290.98 | E197: 1277.12 | F197: 1266.13 | G197: 1252.27 | H197: 1301.97 | I197: 1315.83 | J197: 1326.82 | K197: 1304.85 | L197: 1280 | M197: 25.29949
A198: 188 | B198: HDFC | C198: 2659.65 | D198: 2642.20 | E198: 2619.35 | F198: 2579.05 | G198: 2556.20 | H198: 2682.50 | I198: 2705.35 | J198: 2745.65 | K198: 2665.05 | L198: 2601.9 | M198: 53.28083
A199: 189 | B199: HDFCAMC | C199: 2518.25 | D199: 2497.75 | E199: 2465.50 | F199: 2412.75 | G199: 2380.50 | H199: 2550.50 | I199: 2582.75 | J199: 2635.50 | K199: 2530 | L199: 2445 | M199: 2.85654
A200: 190 | B200: HDFCBANK | C200: 1559.15 | D200: 1558.88 | E200: 1545.77 | F200: 1532.38 | G200: 1519.27 | H200: 1572.27 | I200: 1585.38 | J200: 1598.77 | K200: 1572 | L200: 1545.5 | M200: 44.28248
A201: 191 | B201: HDFCLIFE | C201: 662.95 | D201: 664.22 | E201: 658.73 | F201: 654.52 | G201: 649.03 | H201: 668.43 | I201: 673.92 | J201: 678.13 | K201: 669.7 | L201: 660 | M201: 14.80419
A202: 192 | B202: HEG | C202: 1820.65 | D202: 1827.52 | E202: 1797.68 | F202: 1774.72 | G202: 1744.88 | H202: 1850.48 | I202: 1880.32 | J202: 1903.28 | K202: 1857.35 | L202: 1804.55 | M202: 1.90777
A203: 193 | B203: HEIDELBERG | C203: 243.2 | D203: 240.53 | E203: 237.27 | F203: 231.33 | G203: 228.07 | H203: 246.47 | I203: 249.73 | J203: 255.67 | K203: 243.8 | L203: 234.6 | M203: 4.01954
A204: 194 | B204: HEMIPROP | C204: 133.5 | D204: 132.85 | E204: 130.10 | F204: 126.70 | G204: 123.95 | H204: 136.25 | I204: 139.00 | J204: 142.40 | K204: 135.6 | L204: 129.45 | M204: 14.32459
A205: 195 | B205: HEROMOTOCO | C205: 2578.1 | D205: 2550.47 | E205: 2516.93 | F205: 2455.77 | G205: 2422.23 | H205: 2611.63 | I205: 2645.17 | J205: 2706.33 | K205: 2584 | L205: 2489.3 | M205: 7.83876
A206: 196 | B206: HFCL | C206: 86.9 | D206: 87.20 | E206: 86.20 | F206: 85.50 | G206: 84.50 | H206: 87.90 | I206: 88.90 | J206: 89.60 | K206: 88.2 | L206: 86.5 | M206: 124.06178
... 320 more rows

Sheet Bulk Deals
E6: Back To Main Page
A7: Subject : | B7: BULK DEAL | D7: =Main!B10 -> 2022-01-11
A9: Date | B9: Scrip code | C9: Scrip Name | D9: Client Name | E9: Buy / Sell | F9: Quantity Traded | G9: Trade Price / Wt.Avg.trade price | H9: Exchange
A10: 2022-01-10 | B10: 539506 | C10: ADCON | D10: PROFICIENT MERCHANDISE LIMITED | E10: SELL | F10: 193,854 | G10: 14.73 | H10: BSE
A11: 2022-01-10 | B11: 539506 | C11: ADCON | D11: GCM CAPITAL ADVISORS LIMITED | E11: BUY | F11: 200,000 | G11: 14.73 | H11: BSE
A12: 2022-01-10 | B12: 543377 | C12: ADISHAKTI | D12: NNM SECURITIES PVT LTD | E12: BUY | F12: 30,000 | G12: 9.97 | H12: BSE
A13: 2022-01-10 | B13: 543377 | C13: ADISHAKTI | D13: NNM SECURITIES PVT LTD | E13: SELL | F13: 30,000 | G13: 9.87 | H13: BSE
A14: 2022-01-10 | B14: 540697 | C14: AMFL | D14: KAPIL AGGARWAL | E14: SELL | F14: 66,050 | G14: 1.52 | H14: BSE
A15: 2022-01-10 | B15: 530109 | C15: ANUPAM | D15: ALPHA LEON ENTERPRISES LLP | E15: BUY | F15: 548,686 | G15: 3.74 | H15: BSE
A16: 2022-01-10 | B16: 530109 | C16: ANUPAM | D16: ALPHA LEON ENTERPRISES LLP | E16: SELL | F16: 340,081 | G16: 3.76 | H16: BSE
A17: 2022-01-10 | B17: 530109 | C17: ANUPAM | D17: HANSRAJ SHIVJI GADA | E17: SELL | F17: 1,072,000 | G17: 3.74 | H17: BSE
A18: 2022-01-10 | B18: 530109 | C18: ANUPAM | D18: HEMLATA GADA | E18: SELL | F18: 1,092,000 | G18: 3.74 | H18: BSE
A19: 2022-01-10 | B19: 530109 | C19: ANUPAM | D19: JAYESH MALSI RITA | E19: SELL | F19: 763,659 | G19: 3.74 | H19: BSE
A20: 2022-01-10 | B20: 530233 | C20: AUROLAB | D20: VIVEK MEHROTRA | E20: SELL | F20: 41,944 | G20: 140.97 | H20: BSE
A21: 2022-01-10 | B21: 539288 | C21: AVI | D21: NAMAN SECURITIES & FINANCE PVT. LTD. | E21: BUY | F21: 11 | G21: 42 | H21: BSE
A22: 2022-01-10 | B22: 539288 | C22: AVI | D22: NAMAN SECURITIES & FINANCE PVT. LTD. | E22: SELL | F22: 30,011 | G22: 42 | H22: BSE
A23: 2022-01-10 | B23: 509053 | C23: BANASFN | D23: HANSABEN BHARATKUMAR PATEL | E23: BUY | F23: 139,040 | G23: 93.93 | H23: BSE
A24: 2022-01-10 | B24: 509053 | C24: BANASFN | D24: HANSABEN BHARATKUMAR PATEL | E24: SELL | F24: 15,937 | G24: 94.4 | H24: BSE
A25: 2022-01-10 | B25: 509053 | C25: BANASFN | D25: PURAV BHARATBHAI PATEL | E25: SELL | F25: 187,000 | G25: 94.4 | H25: BSE
A26: 2022-01-10 | B26: 509053 | C26: BANASFN | D26: DHARMENDRA LAKHAN SINGH SINH | E26: SELL | F26: 146,390 | G26: 94.4 | H26: BSE
A27: 2022-01-10 | B27: 537766 | C27: BCP | D27: STOCK VERTEX VENTURES | E27: SELL | F27: 585,534 | G27: 8.12 | H27: BSE
A28: 2022-01-10 | B28: 539043 | C28: BKMINDST | D28: BASANT KUMAR AGARWAL | E28: SELL | F28: 345,743 | G28: 3.65 | H28: BSE
A29: 2022-01-10 | B29: 543439 | C29: BRANDBUCKT | D29: ESPEON CONSULTING PRIVATE LIMITED. | E29: BUY | F29: 18,000 | G29: 50 | H29: BSE
A30: 2022-01-10 | B30: 543439 | C30: BRANDBUCKT | D30: YOGESH JOTIRAM KALE | E30: BUY | F30: 56,000 | G30: 50 | H30: BSE
A31: 2022-01-10 | B31: 543439 | C31: BRANDBUCKT | D31: MINIBOSS CONSULTANCY PRIVATE LIMITED | E31: BUY | F31: 86,000 | G31: 50 | H31: BSE
A32: 2022-01-10 | B32: 539770 | C32: DARJEELING | D32: VIPINKUMAR | E32: SELL | F32: 17,770 | G32: 3.71 | H32: BSE
A33: 2022-01-10 | B33: 541778 | C33: DEEP | D33: ALPHA LEON ENTERPRISES LLP | E33: BUY | F33: 89,355 | G33: 646.47 | H33: BSE
A34: 2022-01-10 | B34: 541778 | C34: DEEP | D34: ALPHA LEON ENTERPRISES LLP | E34: SELL | F34: 89,355 | G34: 654.31 | H34: BSE
A35: 2022-01-10 | B35: 541778 | C35: DEEP | D35: NNM SECURITIES PVT LTD | E35: BUY | F35: 57,645 | G35: 654.93 | H35: BSE
A36: 2022-01-10 | B36: 541778 | C36: DEEP | D36: NNM SECURITIES PVT LTD | E36: SELL | F36: 79,209 | G36: 657.65 | H36: BSE
A37: 2022-01-10 | B37: 539197 | C37: DEVHARI | D37: ALPHA LEON ENTERPRISES LLP | E37: SELL | F37: 406,970 | G37: 0.97 | H37: BSE
A38: 2022-01-10 | B38: 542155 | C38: DGL | D38: ARJUN DAHIYA | E38: SELL | F38: 50,000 | G38: 4.45 | H38: BSE
A39: 2022-01-10 | B39: 540811 | C39: DML | D39: VISA CAPITAL PARTNERS | E39: SELL | F39: 50,000 | G39: 17 | H39: BSE
A40: 2022-01-10 | B40: 540811 | C40: DML | D40: RAJAGOPALPREMMARCEL | E40: BUY | F40: 50,000 | G40: 17 | H40: BSE
A41: 2022-01-10 | B41: 540811 | C41: DML | D41: ATUL M PALDECHA | E41: SELL | F41: 50,000 | G41: 17.25 | H41: BSE
A42: 2022-01-10 | B42: 542724 | C42: EARUM | D42: SHASHIKANT VEDPRAKASH SHARMA . | E42: SELL | F42: 1,500,000 | G42: 10.07 | H42: BSE
A43: 2022-01-10 | B43: 542724 | C43: EARUM | D43: GHANSHYAMBHAI MANSUKHBHAI KHAMBHAYATA | E43: BUY | F43: 1,478,767 | G43: 10.15 | H43: BSE
A44: 2022-01-10 | B44: 542724 | C44: EARUM | D44: GHANSHYAMBHAI MANSUKHBHAI KHAMBHAYATA | E44: SELL | F44: 1,454,767 | G44: 10.2 | H44: BSE
A45: 2022-01-10 | B45: 526473 | C45: ELEFLOR | D45: RAKHI LOHIA | E45: BUY | F45: 186,321 | G45: 5.1 | H45: BSE
A46: 2022-01-10 | B46: 526473 | C46: ELEFLOR | D46: SHAIBAL GHOSH | E46: BUY | F46: 208,391 | G46: 5.1 | H46: BSE
A47: 2022-01-10 | B47: 526473 | C47: ELEFLOR | D47: SHAIBAL GHOSH | E47: SELL | F47: 1,751 | G47: 5.12 | H47: BSE
A48: 2022-01-10 | B48: 526473 | C48: ELEFLOR | D48: YASHWANT BIHARI KAGZI HUF | E48: SELL | F48: 386,564 | G48: 5.1 | H48: BSE
A49: 2022-01-10 | B49: 530407 | C49: EPIC | D49: GLOBE CAPITAL MARKET LIMITED | E49: SELL | F49: 40,000 | G49: 9.14 | H49: BSE
A50: 2022-01-10 | B50: 524444 | C50: EVEXIA | D50: VAIBHAV RAJENDRA DOSHI | E50: BUY | F50: 3,015,581 | G50: 11 | H50: BSE
A51: 2022-01-10 | B51: 524444 | C51: EVEXIA | D51: VAIBHAV RAJENDRA DOSHI | E51: SELL | F51: 2,792,257 | G51: 11.16 | H51: BSE
A52: 2022-01-10 | B52: 536751 | C52: FIVEXTRADE | D52: VIKASHKUMAR JAIN | E52: BUY | F52: 521,845 | G52: 0.94 | H52: BSE
A53: 2022-01-10 | B53: 539032 | C53: FRASER | D53: SAMIR ABBAS | E53: BUY | F53: 50,000 | G53: 12.64 | H53: BSE
A54: 2022-01-10 | B54: 539032 | C54: FRASER | D54: MADHURYAKUMAR | E54: SELL | F54: 51,110 | G54: 12.64 | H54: BSE
A55: 2022-01-10 | B55: 538787 | C55: GBFL | D55: GOODPOINT COMMODEAL PRIVATE LIMITED | E55: SELL | F55: 250,000 | G55: 19.28 | H55: BSE
A56: 2022-01-10 | B56: 538787 | C56: GBFL | D56: MIDLAND FINANCIAL ADVISORY PRIVATE LIMITED | E56: SELL | F56: 100,000 | G56: 19.28 | H56: BSE
A57: 2022-01-10 | B57: 538787 | C57: GBFL | D57: OLGA TRADING PRIVATE LIMITED | E57: BUY | F57: 65,701 | G57: 19.28 | H57: BSE
A58: 2022-01-10 | B58: 531592 | C58: GENPHARMA | D58: RIYAZ SULTAN SAJAN | E58: SELL | F58: 3,668,000 | G58: 7.93 | H58: BSE
A59: 2022-01-10 | B59: 540936 | C59: GGL | D59: ALPHA LEON ENTERPRISES LLP | E59: BUY | F59: 175,010 | G59: 16.28 | H59: BSE
A60: 2022-01-10 | B60: 540936 | C60: GGL | D60: ALPHA LEON ENTERPRISES LLP | E60: SELL | F60: 175,010 | G60: 16.28 | H60: BSE
A61: 2022-01-10 | B61: 531881 | C61: GMETCOAL | D61: NEWAGE VINIMAY PVT LTD | E61: SELL | F61: 15,133 | G61: 30.77 | H61: BSE
A62: 2022-01-10 | B62: 523277 | C62: GVFILM | D62: MANSI SHARE & STOCK ADVISORS PRIVATE LIMITED | E62: BUY | F62: 3 | G62: 1.26 | H62: BSE
A63: 2022-01-10 | B63: 523277 | C63: GVFILM | D63: MANSI SHARE & STOCK ADVISORS PRIVATE LIMITED | E63: SELL | F63: 5,000,001 | G63: 1.26 | H63: BSE
A64: 2022-01-10 | B64: 505712 | C64: HIMTEK | D64: IFCI VENTURE CAPITAL FUND LTD | E64: SELL | F64: 100,000 | G64: 128.14 | H64: BSE
A65: 2022-01-10 | B65: 539097 | C65: HKG | D65: RAMESH SAWALRAM SARAOGI | E65: SELL | F65: 440,000 | G65: 29.88 | H65: BSE
A66: 2022-01-10 | B66: 540377 | C66: IFL | D66: MOHAMMED MOHSIN HAJIMOHAMMED AJMERWALA | E66: BUY | F66: 24,000 | G66: 25.61 | H66: BSE
A67: 2022-01-10 | B67: 540377 | C67: IFL | D67: VISHAL MANOJBHAI SHAH | E67: SELL | F67: 18,000 | G67: 25.3 | H67: BSE
A68: 2022-01-10 | B68: 540377 | C68: IFL | D68: SOHEL FAROOQBHAI KUCHAMANWALA | E68: BUY | F68: 18,000 | G68: 25.27 | H68: BSE
A69: 2022-01-10 | B69: 540377 | C69: IFL | D69: ATUL JASHWANTLAL SOLANKI | E69: BUY | F69: 24,000 | G69: 25.35 | H69: BSE
A70: 2022-01-10 | B70: 540377 | C70: IFL | D70: ATUL JASHWANTLAL SOLANKI | E70: SELL | F70: 6,000 | G70: 25.35 | H70: BSE
A71: 2022-01-10 | B71: 541983 | C71: INNOVATIVE | D71: PRIYESHBAHUGUNA | E71: BUY | F71: 64,000 | G71: 5.8 | H71: BSE
A72: 2022-01-10 | B72: 541983 | C72: INNOVATIVE | D72: PRIYESHBAHUGUNA | E72: SELL | F72: 64,000 | G72: 6.22 | H72: BSE
A73: 2022-01-10 | B73: 541983 | C73: INNOVATIVE | D73: MAQSOOD DABIR SHAIKH | E73: SELL | F73: 200,000 | G73: 5.86 | H73: BSE
A74: 2022-01-10 | B74: 523467 | C74: JAIMATAG | D74: IDBI BANK LTD - LONG TERM PORTFOLIO (CUSTODIAL TRADE ) | E74: SELL | F74: 1,000,000 | G74: 0.45 | H74: BSE
A75: 2022-01-10 | B75: 542924 | C75: JANUSCORP | D75: CHANDRA SHEKER G | E75: BUY | F75: 103,500 | G75: 22.45 | H75: BSE
A76: 2022-01-10 | B76: 542924 | C76: JANUSCORP | D76: CHANDRA SHEKER G | E76: SELL | F76: 21,000 | G76: 23.54 | H76: BSE
A77: 2022-01-10 | B77: 506520 | C77: JAYCH | D77: PADMA JITENDRA PAREKH | E77: SELL | F77: 150,000 | G77: 9.54 | H77: BSE
A78: 2022-01-10 | B78: 540385 | C78: KDLL | D78: ARMINDER SINGH | E78: SELL | F78: 52,695 | G78: 19.67 | H78: BSE
A79: 2022-01-10 | B79: 540385 | C79: KDLL | D79: JASKIRAT SINGH | E79: BUY | F79: 77,050 | G79: 19.8 | H79: BSE
A80: 2022-01-10 | B80: 539814 | C80: LELAVOIR | D80: A & S WEALTH CREATIONS PRIVATE LIMITED | E80: SELL | F80: 16,388 | G80: 35.05 | H80: BSE
A81: 2022-01-10 | B81: 519612 | C81: MAHAANF | D81: BHOPENDRAKUMAR | E81: BUY | F81: 26,139 | G81: 23.92 | H81: BSE
A82: 2022-01-10 | B82: 519612 | C82: MAHAANF | D82: BHOPENDRAKUMAR | E82: SELL | F82: 30 | G82: 24.75 | H82: BSE
A83: 2022-01-10 | B83: 526622 | C83: MFLINDIA | D83: CHANDARANA INTERMEDIARIES BROKERS PRIVATE LIMITED | E83: BUY | F83: 2,000,000 | G83: 1.82 | H83: BSE
A84: 2022-01-10 | B84: 543217 | C84: MINDSPACE | D84: PLATINUM ILLUMINATION A 2018 TRUST | E84: BUY | F84: 54,375,000 | G84: 320 | H84: BSE
A85: 2022-01-10 | B85: 543217 | C85: MINDSPACE | D85: BREP ASIA SG PEARL HOLDING NQ PTE LTD | E85: SELL | F85: 54,291,425 | G85: 320 | H85: BSE
A86: 2022-01-10 | B86: 539410 | C86: MUZALI | D86: ALPHA LEON ENTERPRISES LLP | E86: SELL | F86: 360,000 | G86: 4.17 | H86: BSE
A87: 2022-01-10 | B87: 543305 | C87: NAVODAYENT | D87: NNM SECURITIES PVT LTD | E87: BUY | F87: 6,000 | G87: 11.9 | H87: BSE
A88: 2022-01-10 | B88: 543305 | C88: NAVODAYENT | D88: NNM SECURITIES PVT LTD | E88: SELL | F88: 30,000 | G88: 11.6 | H88: BSE
A89: 2022-01-10 | B89: 540243 | C89: NEWLIGHT | D89: MANISH NITIN THAKUR | E89: BUY | F89: 24,438 | G89: 41.3 | H89: BSE
A90: 2022-01-10 | B90: 540243 | C90: NEWLIGHT | D90: MANISH NITIN THAKUR | E90: SELL | F90: 24,917 | G90: 41.38 | H90: BSE
A91: 2022-01-10 | B91: 540243 | C91: NEWLIGHT | D91: VINAY K GUGNANI | E91: BUY | F91: 50,000 | G91: 41.4 | H91: BSE
A92: 2022-01-10 | B92: 540243 | C92: NEWLIGHT | D92: GAURANG JITENDRA PAREKH | E92: SELL | F92: 87,336 | G92: 41.38 | H92: BSE
A93: 2022-01-10 | B93: 543282 | C93: NIKSTECH | D93: SHERWOOD SECURITIES PVT LTD | E93: SELL | F93: 4,200 | G93: 201 | H93: BSE
A94: 2022-01-10 | B94: 543282 | C94: NIKSTECH | D94: SHRENI SHARES PRIVATE LIMITED | E94: BUY | F94: 4,200 | G94: 201 | H94: BSE
A95: 2022-01-10 | B95: 541206 | C95: OBCL | D95: ALPHA LEON ENTERPRISES LLP | E95: BUY | F95: 126,000 | G95: 269.9 | H95: BSE
A96: 2022-01-10 | B96: 541206 | C96: OBCL | D96: ALPHA LEON ENTERPRISES LLP | E96: SELL | F96: 134,000 | G96: 272.24 | H96: BSE
A97: 2022-01-10 | B97: 538019 | C97: OBIL | D97: MOHANRAMESH | E97: SELL | F97: 100,101 | G97: 2.48 | H97: BSE
A98: 2022-01-10 | B98: 543400 | C98: OMNIPOTENT | D98: LALITKUMARGOPILAL | E98: BUY | F98: 36,000 | G98: 47.5 | H98: BSE
A99: 2022-01-10 | B99: 543400 | C99: OMNIPOTENT | D99: SURENDER PAL BHUTANI | E99: SELL | F99: 38,000 | G99: 47.56 | H99: BSE
A100: 2022-01-10 | B100: 532817 | C100: ORIENTALTL | D100: QNANCE RESEARCH CAPITAL LLP | E100: BUY | F100: 69,784 | G100: 16.26 | H100: BSE
A101: 2022-01-10 | B101: 532817 | C101: ORIENTALTL | D101: QNANCE RESEARCH CAPITAL LLP | E101: SELL | F101: 179,060 | G101: 16.4 | H101: BSE
A102: 2022-01-10 | B102: 532817 | C102: ORIENTALTL | D102: MANSI SHARE & STOCK ADVISORS PRIVATE LIMITED | E102: BUY | F102: 150,000 | G102: 16.94 | H102: BSE
A103: 2022-01-10 | B103: 538860 | C103: PANAFIC | D103: EPITOME TRADING AND INVESTMENTS | E103: BUY | F103: 450,000 | G103: 3.53 | H103: BSE
A104: 2022-01-10 | B104: 521080 | C104: PASARI | D104: NEERAJ BANSAL | E104: SELL | F104: 68,898 | G104: 11.02 | H104: BSE
A105: 2022-01-10 | B105: 539273 | C105: PECOS | D105: ARUN KUMAR JAIN | E105: SELL | F105: 10,000 | G105: 31.55 | H105: BSE
A106: 2022-01-10 | B106: 523862 | C106: PIFL | D106: PRITI DEEPAK RATHI | E106: SELL | F106: 21,399 | G106: 9.29 | H106: BSE
A107: 2022-01-10 | B107: 511116 | C107: QUADRANT | D107: R SATHIAMURTHI | E107: SELL | F107: 5,000,000 | G107: 0.44 | H107: BSE
A108: 2022-01-10 | B108: 541601 | C108: RAJNISH | D108: PIVOTAL BUSINESS MANAGERS LLP | E108: SELL | F108: 151,200 | G108: 25.95 | H108: BSE
A109: 2022-01-10 | B109: 539922 | C109: RGIL | D109: AGRO TRADE SOLUTIONS | E109: BUY | F109: 50,650 | G109: 19.9 | H109: BSE
A110: 2022-01-10 | B110: 539922 | C110: RGIL | D110: LAXMI TRADE SOLUTIONS | E110: BUY | F110: 100,000 | G110: 19.9 | H110: BSE
A111: 2022-01-10 | B111: 539922 | C111: RGIL | D111: RS SECURITIES | E111: BUY | F111: 100,000 | G111: 19.9 | H111: BSE
A112: 2022-01-10 | B112: 539922 | C112: RGIL | D112: KAJOL GHOSH | E112: SELL | F112: 95,000 | G112: 19.9 | H112: BSE
A113: 2022-01-10 | B113: 539922 | C113: RGIL | D113: RAJEEV BHATIA | E113: SELL | F113: 52,000 | G113: 19.9 | H113: BSE
A114: 2022-01-10 | B114: 539922 | C114: RGIL | D114: ARJUN MAHAJAN | E114: SELL | F114: 100,000 | G114: 19.9 | H114: BSE
A115: 2022-01-10 | B115: 530125 | C115: SAMRATPH | D115: MALA R BHAVNANI | E115: SELL | F115: 28,294 | G115: 454.53 | H115: BSE
A116: 2022-01-10 | B116: 532972 | C116: SANKHYAIN | D116: KETAN K SHAH HUF | E116: SELL | F116: 91,200 | G116: 15.18 | H116: BSE
A117: 2022-01-10 | B117: 539526 | C117: SCTL | D117: ALPHA LEON ENTERPRISES LLP | E117: SELL | F117: 2,000,000 | G117: 2.61 | H117: BSE
A118: 2022-01-10 | B118: 538875 | C118: SELLWIN | D118: POOJA HEMANT CHAVAN | E118: BUY | F118: 49,000 | G118: 16.1 | H118: BSE
A119: 2022-01-10 | B119: 538875 | C119: SELLWIN | D119: SUTLAJ SALES PRIVATE LIMITED | E119: SELL | F119: 132,576 | G119: 16.11 | H119: BSE
A120: 2022-01-10 | B120: 538875 | C120: SELLWIN | D120: PLENTY NIRYAT PRIVATE LIMITED | E120: SELL | F120: 49,563 | G120: 16.03 | H120: BSE
A121: 2022-01-10 | B121: 538875 | C121: SELLWIN | D121: MOREPLUS MERCHANTS PRIVATE LIMITED | E121: SELL | F121: 125,000 | G121: 16 | H121: BSE
A122: 2022-01-10 | B122: 519031 | C122: SHAHFOOD | D122: NEMICHANDPRAKASHKUMAR | E122: SELL | F122: 3,240 | G122: 32.45 | H122: BSE
A123: 2022-01-10 | B123: 540072 | C123: SHIVAEXPO | D123: BHAVINI SACHIN PORWAL | E123: SELL | F123: 70,000 | G123: 3.56 | H123: BSE
A124: 2022-01-10 | B124: 522237 | C124: SHIVAGR | D124: AUMIT CAPITAL ADVISORS LIMITED | E124: SELL | F124: 26,000 | G124: 23.15 | H124: BSE
A125: 2022-01-10 | B125: 539833 | C125: SICLTD | D125: VIKASHKUMAR JAIN | E125: SELL | F125: 999,999 | G125: 0.54 | H125: BSE
A126: 2022-01-10 | B126: 539833 | C126: SICLTD | D126: PURSHOTTAM AGARWAL | E126: SELL | F126: 1,179,990 | G126: 0.54 | H126: BSE
A127: 2022-01-10 | B127: 530611 | C127: STURDY | D127: NIKUNJ KAUSHIK SHAH | E127: SELL | F127: 1,000,000 | G127: 0.6 | H127: BSE
A128: 2022-01-10 | B128: 530611 | C128: STURDY | D128: PUNJAB NATIONAL BANK | E128: SELL | F128: 4,500,000 | G128: 0.6 | H128: BSE
A129: 2022-01-10 | B129: 533166 | C129: SUNDARAM | D129: PALAN GOVER GADA | E129: SELL | F129: 2,560,682 | G129: 5.44 | H129: BSE
A130: 2022-01-10 | B130: 533166 | C130: SUNDARAM | D130: HARDIK PANKAJ SAVLA | E130: SELL | F130: 2,450,000 | G130: 5.44 | H130: BSE
A131: 2022-01-10 | B131: 532070 | C131: SUPRBPA | D131: RAJAGOPALPREMMARCEL | E131: SELL | F131: 60,000 | G131: 19.89 | H131: BSE
A132: 2022-01-10 | B132: 512257 | C132: SVARTCORP | D132: BP EQUITIES PVT. LTD. | E132: SELL | F132: 341,336 | G132: 9.19 | H132: BSE
A133: 2022-01-10 | B133: 512257 | C133: SVARTCORP | D133: BP EQUITIES PVT. LTD. | E133: SELL | F133: 278,107 | G133: 9.17 | H133: BSE
A134: 2022-01-10 | B134: 512359 | C134: SWORDEDGE | D134: VIKASHKUMAR JAIN | E134: SELL | F134: 558,388 | G134: 1.65 | H134: BSE
A135: 2022-01-10 | B135: 538496 | C135: TARINI | D135: DAADI EQUITY& DERIVATIVE PRIVATE LIMITED | E135: SELL | F135: 90,000 | G135: 20.45 | H135: BSE
A136: 2022-01-10 | B136: 538496 | C136: TARINI | D136: NU HEIGHTS AGENCY PRIVATE LIMITED | E136: SELL | F136: 96,000 | G136: 20.4 | H136: BSE
A137: 2022-01-10 | B137: 539428 | C137: TEJNAKSH | D137: SMITA ANIL SHAH | E137: SELL | F137: 55,000 | G137: 139.99 | H137: BSE
A138: 2022-01-10 | B138: 538464 | C138: TPROJECT | D138: SUJATHA OGURI | E138: SELL | F138: 110,000 | G138: 3.52 | H138: BSE
A139: 2022-01-10 | B139: 542923 | C139: TRANWAY | D139: RACHANA KOTHARI | E139: SELL | F139: 100,000 | G139: 12.18 | H139: BSE
A140: 2022-01-10 | B140: 542923 | C140: TRANWAY | D140: REKHA BHAGAT | E140: SELL | F140: 200,000 | G140: 12.18 | H140: BSE
A141: 2022-01-10 | B141: 511764 | C141: UPASAFN | D141: BHARAT KUMAR PUKHRAJJI | E141: SELL | F141: 42,162 | G141: 18.3 | H141: BSE
A142: 2022-01-10 | B142: 500426 | C142: UTLINDS | D142: RAMA KRISNA BELLAM | E142: SELL | F142: 328,390 | G142: 7.6 | H142: BSE
A143: 2022-01-10 | B143: 540570 | C143: VARIMAN | D143: TURAGASATYANARAYANA | E143: SELL | F143: 96,800 | G143: 37.6 | H143: BSE
A144: 2022-01-10 | B144: 540570 | C144: VARIMAN | D144: MADHUKAR SHETH | E144: SELL | F144: 400,000 | G144: 38.36 | H144: BSE
A145: 2022-01-10 | B145: 540570 | C145: VARIMAN | D145: LAXMAN LAL PATIDAR | E145: SELL | F145: 125,000 | G145: 37.51 | H145: BSE
A146: 2022-01-10 | B146: 540570 | C146: VARIMAN | D146: JEETENDRA KUMAR PATIDAR | E146: SELL | F146: 125,000 | G146: 37.5 | H146: BSE
A147: 2022-01-10 | B147: 533576 | C147: VASWANI | D147: BP EQUITIES PVT. LTD. | E147: SELL | F147: 151,031 | G147: 22.38 | H147: BSE
A148: 2022-01-10 | B148: 533576 | C148: VASWANI | D148: BP EQUITIES PVT. LTD. | E148: SELL | F148: 22,004 | G148: 22.37 | H148: BSE
A149: 2022-01-10 | B149: 533056 | C149: VEDAVAAG | D149: JIGNEY BHACHECH (HUF) | E149: SELL | F149: 65,370 | G149: 84.56 | H149: BSE
A150: 2022-01-10 | B150: 533056 | C150: VEDAVAAG | D150: JIGNEY BHACHECH (HUF) | E150: SELL | F150: 115,370 | G150: 87.02 | H150: BSE
A151: 2022-01-10 | B151: 512064 | C151: VISVEN | D151: DAMYANTI JIVANDAS GOKALGANDHI | E151: SELL | F151: 2,200 | G151: 143.41 | H151: BSE
A152: 2022-01-10 | B152: 541735 | C152: VIVANTA | D152: ARDENT VENTURES LLP | E152: SELL | F152: 175,000 | G152: 47.24 | H152: BSE
A153: 2022-01-10 | B153: 543436 | C153: WITS | D153: DINESH MEHTA | E153: SELL | F153: 2,400 | G153: 241.37 | H153: BSE
A154: 2022-01-10 | B154: 543436 | C154: WITS | D154: VIVEK AGRAWAL | E154: SELL | F154: 2,400 | G154: 232.83 | H154: BSE
A155: 2022-01-10 | B155: 543436 | C155: WITS | D155: VIKAS KUMAR AGRAWAL | E155: SELL | F155: 5,600 | G155: 242.34 | H155: BSE
A156: 2022-01-10 | B156: 543436 | C156: WITS | D156: SHERWOOD SECURITIES PVT LTD | E156: SELL | F156: 2,400 | G156: 229.33 | H156: BSE
A157: 2022-01-10 | B157: 20MICRONS | C157: 20 Microns Limited | D157: XTX MARKETS LLP | E157: BUY | F157: 191,530 | G157: 83.63 | H157: NSE
A158: 2022-01-10 | B158: 20MICRONS | C158: 20 Microns Limited | D158: QE SECURITIES | E158: BUY | F158: 206,544 | G158: 84.43 | H158: NSE
A159: 2022-01-10 | B159: 20MICRONS | C159: 20 Microns Limited | D159: GRAVITON RESEARCH CAPITAL LLP | E159: BUY | F159: 238,095 | G159: 83.2 | H159: NSE
A160: 2022-01-10 | B160: ABINFRA | C160: A B Infrabuild Limited | D160: PRITI B CHOUDHARY | E160: BUY | F160: 600,000 | G160: 8 | H160: NSE
A161: 2022-01-10 | B161: AIRAN | C161: Airan Limited | D161: OLGA TRADING PRIVATE LIMITED | E161: BUY | F161: 706,344 | G161: 25.09 | H161: NSE
A162: 2022-01-10 | B162: AJOONI | C162: Ajooni Biotech Limited | D162: OLGA TRADING PRIVATE LIMITED | E162: BUY | F162: 31,879 | G162: 72.4 | H162: NSE
A163: 2022-01-10 | B163: ALANKIT | C163: Alankit Limited | D163: ADROIT FINANCIAL SERVICES PVT LTD | E163: BUY | F163: 801,342 | G163: 19.78 | H163: NSE
A164: 2022-01-10 | B164: BCP | C164: B.C. Power Controls Ltd | D164: STOCK VERTEX VENTURES | E164: BUY | F164: 16,000 | G164: 7.94 | H164: NSE
A165: 2022-01-10 | B165: CEREBRAINT | C165: Cerebra Int Tech Ltd | D165: BARCLAYS SECURITIES INDIA PRIVATE LIMITED | E165: BUY | F165: 613,441 | G165: 92.5 | H165: NSE
A166: 2022-01-10 | B166: FOCE | C166: Foce India Limited | D166: ANURADHA RAJESH MEHRA | E166: BUY | F166: 25,200 | G166: 225.6 | H166: NSE
A167: 2022-01-10 | B167: GIRIRAJ | C167: Giriraj Civil Devp Ltd | D167: DILAWAR REHMAN KHAN | E167: BUY | F167: 28,800 | G167: 100 | H167: NSE
A168: 2022-01-10 | B168: GLOBE | C168: Globe Textiles (I) Ltd. | D168: OLGA TRADING PRIVATE LIMITED | E168: BUY | F168: 1,188,276 | G168: 14.62 | H168: NSE
A169: 2022-01-10 | B169: GREAVESCOT | C169: Greaves Limited | D169: GRAVITON RESEARCH CAPITAL LLP | E169: BUY | F169: 1,530,762 | G169: 192.47 | H169: NSE
A170: 2022-01-10 | B170: GREAVESCOT | C170: Greaves Limited | D170: QE SECURITIES | E170: BUY | F170: 2,970,487 | G170: 196 | H170: NSE
A171: 2022-01-10 | B171: GREAVESCOT | C171: Greaves Limited | D171: XTX MARKETS LLP | E171: BUY | F171: 1,794,070 | G171: 196.72 | H171: NSE
A172: 2022-01-10 | B172: GREAVESCOT | C172: Greaves Limited | D172: VAIBHAV STOCK AND DERIVATIVES BROKING PRIVATE LIMITED | E172: BUY | F172: 1,541,550 | G172: 195.49 | H172: NSE
A173: 2022-01-10 | B173: HPAL | C173: HP Adhesives Limited | D173: B.W.TRADERS | E173: BUY | F173: 61,507 | G173: 486.43 | H173: NSE
A174: 2022-01-10 | B174: HPAL | C174: HP Adhesives Limited | D174: ELIXIR WEALTH MANAGEMENT PRIVATE LIMITED | E174: BUY | F174: 59,659 | G174: 480.27 | H174: NSE
A175: 2022-01-10 | B175: JPPOWER | C175: Jaiprakash Power Ven. Lt | D175: ADROIT FINANCIAL SERVICES PVT LTD | E175: BUY | F175: 37,072,696 | G175: 9.06 | H175: NSE
A176: 2022-01-10 | B176: JPPOWER | C176: Jaiprakash Power Ven. Lt | D176: ASHWIN STOCKS AND INVESTMENT PRIVATE LIMITED | E176: BUY | F176: 44,118,911 | G176: 9.13 | H176: NSE
A177: 2022-01-10 | B177: KELLTONTEC | C177: Kellton Tech Sol Ltd | D177: QE SECURITIES | E177: BUY | F177: 687,682 | G177: 82.08 | H177: NSE
A178: 2022-01-10 | B178: KELLTONTEC | C178: Kellton Tech Sol Ltd | D178: XTX MARKETS LLP | E178: BUY | F178: 702,861 | G178: 81.79 | H178: NSE
A179: 2022-01-10 | B179: KELLTONTEC | C179: Kellton Tech Sol Ltd | D179: GRAVITON RESEARCH CAPITAL LLP | E179: BUY | F179: 666,152 | G179: 81.72 | H179: NSE
A180: 2022-01-10 | B180: KITEX | C180: Kitex Garments Ltd | D180: XTX MARKETS LLP | E180: BUY | F180: 477,206 | G180: 263.17 | H180: NSE
A181: 2022-01-10 | B181: LAMBODHARA | C181: Lambodhara Textiles Ltd. | D181: KABRA KAILASH | E181: BUY | F181: 57,300 | G181: 108.6 | H181: NSE
A182: 2022-01-10 | B182: MOKSH | C182: Moksh Ornaments Limited | D182: HITESH AMRUTLAL PATEL | E182: BUY | F182: 400,000 | G182: 43.22 | H182: NSE
A183: 2022-01-10 | B183: ORIENTALTL | C183: Oriental Trimex Limited | D183: QNANCE RESEARCH CAPITAL LLP | E183: BUY | F183: 178,173 | G183: 16.37 | H183: NSE
A184: 2022-01-10 | B184: ORTINLAB | C184: Ortin Laboratories Ltd | D184: PALLA NAGESWARA RAO | E184: BUY | F184: 45,000 | G184: 33.49 | H184: NSE
A185: 2022-01-10 | B185: PIONEEREMB | C185: Pioneer Embroideries Limi | D185: OLGA TRADING PRIVATE LIMITED | E185: BUY | F185: 2,024 | G185: 62.52 | H185: NSE
A186: 2022-01-10 | B186: RAMASTEEL | C186: Rama Steel Tubes Limited | D186: PRABHULAL LALLUBHAI PAREKH | E186: BUY | F186: 88,455 | G186: 454.3 | H186: NSE
A187: 2022-01-10 | B187: RAMASTEEL | C187: Rama Steel Tubes Limited | D187: SUNTECK WEALTHMAX CAPITAL PRIVATE LIMITED | E187: BUY | F187: 117,217 | G187: 452.28 | H187: NSE
A188: 2022-01-10 | B188: RIIL | C188: Reliance Indl Infra Ltd | D188: GRAVITON RESEARCH CAPITAL LLP | E188: BUY | F188: 160,330 | G188: 946.73 | H188: NSE
A189: 2022-01-10 | B189: RIIL | C189: Reliance Indl Infra Ltd | D189: XTX MARKETS LLP | E189: BUY | F189: 271,934 | G189: 943.78 | H189: NSE
A190: 2022-01-10 | B190: RIIL | C190: Reliance Indl Infra Ltd | D190: QE SECURITIES | E190: BUY | F190: 115,880 | G190: 942.43 | H190: NSE
A191: 2022-01-10 | B191: SALZERELEC | C191: Salzer Electronics Ltd. | D191: GRAVITON RESEARCH CAPITAL LLP | E191: BUY | F191: 110,983 | G191: 250.85 | H191: NSE
A192: 2022-01-10 | B192: SANCO | C192: Sanco Industries Ltd. | D192: MANSI SHARES & STOCK ADVISORS PVT LTD | E192: BUY | F192: 69,819 | G192: 21.5 | H192: NSE
A193: 2022-01-10 | B193: SHRENIK | C193: Shrenik Limited | D193: ADROIT FINANCIAL SERVICES PVT LTD | E193: BUY | F193: 5,896,737 | G193: 4.02 | H193: NSE
A194: 2022-01-10 | B194: SILGO | C194: Silgo Retail Limited | D194: QE SECURITIES | E194: BUY | F194: 58,686 | G194: 36.15 | H194: NSE
A195: 2022-01-10 | B195: SILGO | C195: Silgo Retail Limited | D195: ADROIT FINANCIAL SERVICES PVT LTD | E195: BUY | F195: 111,385 | G195: 35.89 | H195: NSE
A196: 2022-01-10 | B196: SINTEX | C196: Sintex Industries Ltd. | D196: SHAH CHETAN RASIKLAL | E196: BUY | F196: 3,934,954 | G196: 16.65 | H196: NSE
A197: 2022-01-10 | B197: VECOPP | C197: Vikas Eco Re. 0.50 ppd up | D197: ALANKIT IMAGINATIONS LIMITED | E197: BUY | F197: 2,000,000 | G197: 2.7 | H197: NSE
A198: 2022-01-10 | B198: 20MICRONS | C198: 20 Microns Limited | D198: GRAVITON RESEARCH CAPITAL LLP | E198: SELL | F198: 238,095 | G198: 83.6 | H198: NSE
A199: 2022-01-10 | B199: 20MICRONS | C199: 20 Microns Limited | D199: QE SECURITIES | E199: SELL | F199: 210,248 | G199: 85.39 | H199: NSE
A200: 2022-01-10 | B200: 20MICRONS | C200: 20 Microns Limited | D200: XTX MARKETS LLP | E200: SELL | F200: 196,763 | G200: 83.89 | H200: NSE
A201: 2022-01-10 | B201: ABINFRA | C201: A B Infrabuild Limited | D201: MARK CORPORATE ADVIOSRS PVT LTD | E201: SELL | F201: 604,000 | G201: 8 | H201: NSE
A202: 2022-01-10 | B202: AIRAN | C202: Airan Limited | D202: OLGA TRADING PRIVATE LIMITED | E202: SELL | F202: 706,344 | G202: 24.96 | H202: NSE
A203: 2022-01-10 | B203: AJOONI | C203: Ajooni Biotech Limited | D203: OLGA TRADING PRIVATE LIMITED | E203: SELL | F203: 102,259 | G203: 72.9 | H203: NSE
A204: 2022-01-10 | B204: ALANKIT | C204: Alankit Limited | D204: ADROIT FINANCIAL SERVICES PVT LTD | E204: SELL | F204: 839,790 | G204: 19.75 | H204: NSE
A205: 2022-01-10 | B205: AMJUMBO | C205: A and M Jumbo Bags Ltd | D205: PARESH BHIKHUBHAI PATEL | E205: SELL | F205: 64,000 | G205: 6.54 | H205: NSE
A206: 2022-01-10 | B206: AMJUMBO | C206: A and M Jumbo Bags Ltd | D206: ALPHA LEON ENTERPRISES LLP | E206: SELL | F206: 104,000 | G206: 6.95 | H206: NSE
... 47 more rows

Sheet Call Tracker (Equity & F&O)
M5: Back To Main Page
A6: Retail Research Technical Calls & Fundamental Performance Report for the month of Jan-2022
M7: =Main!B10 -> 2022-01-11
B8: Positional Call
A9: Sr.no | B9: Date | D9: Company | E9: Rec | F9: Rec Price | G9: Stop Loss*** | H9: Call Closed At | I9: Target | J9: Remark | K9: Profit / Loss per Share | L9: All charges | M9: Net Gain / Loss % | N9: Status | O9: Closed Date | P9: Market Closing Price
A10: 1 | B10: 2021-12-02 | D10: CROMPTON | E10: Buy | F10: 435-440 | G10: 414 | I10: 465-475 | J10: Open | P10: =VLOOKUP(D10,'MidCap Intra'!B42:C535,2,0) -> 445.05 | R10: H
A11: 2 | B11: 2021-12-02 | D11: IOC | E11: Buy | F11: 118-120 | G11: 109 | I11: 130-135 | J11: Open | P11: =VLOOKUP(D11,'MidCap Intra'!B43:C536,2,0) -> 119.7 | R11: H
A12: 3 | B12: 2021-12-14 | D12: HDFCLIFE | E12: Buy | F12: 663-668 | G12: 635 | I12: 700-730 | J12: Open | P12: =VLOOKUP(D12,'MidCap Intra'!B45:C538,2,0) -> 662.95 | R12: H
A13: 4 | B13: 2021-12-17 | D13: BEL | E13: Buy | F13: 201.5 | G13: 188 | H13: 214.50 | I13: 220-230 | J13: Profit of Rs.13/- | K13: =H13-F13 -> 13 | L13: =(F13*-0.7)/100 -> -1.41 | M13: =(K13+L13)/F13 -> 5.75% | N13: Successful | O13: 2021-01-04 | P13: =VLOOKUP(D13,'MidCap Intra'!B46:C539,2,0) -> 210.85 | R13: H
A14: 5 | B14: 2021-12-17 | D14: ICICIBANK | E14: Buy | F14: 730 | G14: 687 | H14: 774.00 | I14: 780-820 | J14: Profit of Rs.44/- | K14: 44 | L14: -5.11 | M14: 5.33% | N14: Successful | O14: 2021-01-04 | P14: =VLOOKUP(D14,'MidCap Intra'!B47:C540,2,0) -> 810.75 | R14: H
A15: 6 | B15: 2021-12-22 | D15: ACC | E15: Buy | F15: 2140 | G15: 1995 | H15: 2,280.00 | I15: 2350-2450 | J15: Profit of Rs.140/- | K15: =H15-F15 -> 140 | L15: =(F15*-0.7)/100 -> -14.98 | M15: =(K15+L15)/F15 -> 5.84% | N15: Successful | O15: 2021-01-07 | P15: =VLOOKUP(D15,'MidCap Intra'!B2:C541,2,0) -> 2320.15 | R15: H
A16: 7 | B16: 2021-12-27 | D16: SUPREMEIND | E16: Buy | F16: 2200-2230 | G16: 2035 | I16: 2400-2500 | J16: Open | P16: =VLOOKUP(D16,'MidCap Intra'!B12:M512,2,0) -> 2198.35 | R16: H
A17: 8 | B17: 2021-12-29 | D17: ROUTE | E17: Buy | F17: 1730 | G17: 1640 | H17: 1,810.00 | I17: 1900-2000 | J17: Part Profit of Rs.80/- | K17: =H17-F17 -> 80 | L17: =(F17*-0.7)/100 -> -12.11 | M17: =(K17+L17)/F17 -> 3.92% | N17: Successful | O17: 2021-12-31 | P17: =VLOOKUP(D17,'MidCap Intra'!B50:C543,2,0) -> 1813.25 | R17: H
A18: 9 | B18: 2021-12-31 | D18: PIIND | E18: Buy | F18: 2980 | G18: 2790 | H18: 3,105.00 | I18: 3200-3400 | J18: Part Profit of Rs.125/- | K18: =H18-F18 -> 125 | L18: =(F18*-0.7)/100 -> -20.86 | M18: =(K18+L18)/F18 -> 3.49% | N18: Successful | O18: 2022-01-03 | P18: =VLOOKUP(D18,'MidCap Intra'!B51:C544,2,0) -> 2887.35 | R18: H
A19: 10 | B19: 2022-01-10 | D19: IBREALEST | E19: Buy | F19: 169-171 | G19: 160 | I19: 185-190 | J19: Open | R19: N
A23: CLBS = Closing Basis ***
A24: Dividend adjusted <> | F24: Reinitiated $
A25: Part book {} | D25: s | F25: Revised stoploss #
B27: Momentum Call
A28: Sr.no | B28: Date | D28: Company | E28: Rec | F28: Rec Price | G28: Stop Loss | H28: Call Closed At | I28: Target | J28: Remark | K28: Profit / Loss per Share/Lot | L28: All charges | M28: Net Gain / Loss % | N28: Status | O28: Closed Date
A29: 1 | B29: 2021-12-29 | D29: TATAMOTORS | E29: Buy | F29: 476 | G29: 463 | H29: 496 | I29: 490-500 | J29: Profit of Rs.20/- | K29: =H29-F29 -> 20 | L29: =(F29*-0.7)/100 -> -3.33 | M29: =(K29+L29)/F29 -> 3.50% | N29: Successful | O29: 2022-01-03 | R29: H
A30: 2 | B30: 2021-12-29 | D30: MASTEK | E30: Buy | F30: 3000-3020 | G30: 2930 | I30: 3140-3200 | J30: Open | R30: H
A31: 3 | B31: 2021-12-29 | D31: HINDCOPPER | E31: Buy | F31: 126 | G31: 122 | H31: 131.5 | I31: 130-134 | J31: Profit of Rs.5.5/- | K31: =H31-F31 -> 5.5 | L31: =(F31*-0.7)/100 -> -0.88 | M31: =(K31+L31)/F31 -> 3.67% | N31: Successful | O31: 2022-01-04 | R31: N
A32: 4 | B32: 2021-12-31 | D32: GNFC | E32: Buy | F32: 443.5 | G32: 430 | H32: 459 | I32: 460-475 | J32: Profit of Rs.15.5/- | K32: =H32-F32 -> 15.5 | L32: =(F32*-0.7)/100 -> -3.10 | M32: =(K32+L32)/F32 -> 2.79% | N32: Successful | O32: 2022-01-04 | R32: N
A33: 5 | B33: 2021-12-31 | D33: AXISBANK | E33: Buy | F33: 677.5 | G33: 659 | H33: 696 | I33: 700-720 | J33: Profit of Rs.18.5/- | K33: =H33-F33 -> 18.5 | L33: =(F33*-0.7)/100 -> -4.74 | M33: =(K33+L33)/F33 -> 2.03% | N33: Successful | O33: 2022-01-03 | R33: H
A34: 6 | B34: 2022-01-06 | D34: BIOCON | E34: Buy | F34: 361-363 | G34: 350 | I34: 380-390 | J34: Open | R34: N
A35: 7 | B35: 2022-01-07 | D35: JBCHEPHARM | E35: Buy | F35: 1668 | G35: 1618 | H35: 1715 | I35: 1720-1770 | J35: Profit of Rs.47/- | K35: =H35-F35 -> 47 | L35: =(F35*-0.7)/100 -> -11.68 | M35: =(K35+L35)/F35 -> 2.12% | N35: Successful | O35: 2022-01-03 | R35: H
A38: CLBS = Closing Basis *** | H38: *
A39: Dividend adjusted <> | F39: Reinitiated $
F40: Revised stoploss #
A42: Master Trade High Risk
A43: Sr.no | B43: Date | D43: Company | E43: Rec | F43: Rec Price | G43: Stop Loss | H43: Call Closed At | I43: Target | J43: Remark | K43: Profit / Loss per share | L43: All charges | M43: Gain / Loss per Lot | N43: Lot | O43: Status | P43: Closed Date
A44: 1 | B44: 2021-12-31 | D44: SRF JAN FUT | E44: Buy | F44: 2432.5 | G44: 2398 | H44: 2398 | I44: 2470-2490 | J44: Loss of Rs.34.5/- | K44: =H44-F44 -> -34.5 | L44: =(H44*N44)*0.07% -> 629.48 | M44: =(K44*N44)-L44 -> -13567.0 | N44: 375 | O44: Unsuccessful | P44: 2021-01-04 | R44: N
A45: 2 | B45: 2022-01-04 | D45: NIFTY JAN FUT | E45: Sell | F45: 17770 | G45: 17875 | H45: 17875 | I45: 17650-17550 | J45: Loss of Rs.105/- | K45: =F45-H45 -> -105 | L45: =(H45*N45)*0.07% -> 625.63 | M45: =(K45*N45)-L45 -> -5875.6 | N45: 50 | O45: Unsuccessful | P45: 2021-01-05 | R45: H
A46: 3 | B46: 2022-01-07 | D46: COLPAL JAN FUT | E46: Buy | F46: 1468-1472 | G46: 1432 | I46: 1510-1530 | J46: Open | R46: N
A52: Master Trade Medium Risk
A53: Sr.no | B53: Date | D53: Company | E53: Rec | F53: Rec Price | G53: Stop Loss | H53: Call Closed At | I53: Target | J53: Remark | K53: Profit/ Loss per lot | L53: All charges | M53: Gain / Loss per Lot | N53: Lot | O53: Status | P53: Closed Date
A54: 1 | B54: 2021-12-31 | D54: NIFTY 17200 PE 06-JAN | E54: Buy | F54: 81.5 | G54: 40 | H54: 40 | I54: 120-150 | J54: Loss of Rs.41.50/- | K54: =H54-F54 -> -41.50 | L54: 100.00 | M54: =(K54*N54)-100 -> -2175 | N54: 50 | O54: Unsuccessful | P54: 2022-01-03 | R54: N
A55: 2 | B55: 2022-01-04 | D55: NIFTY 17600 PE 06-JAN | E55: Buy | F55: 65.5 | G55: 20 | H55: 24.5 | I55: 120 | J55: Loss of Rs.41/- | K55: =H55-F55 -> -41.00 | L55: 100.00 | M55: =(K55*N55)-100 -> -2150 | N55: 50 | O55: Unsuccessful | P55: 2022-01-04 | R55: N
A56: 3 | B56: 2022-01-05 | D56: POWERGRID 215 CE JAN | E56: Buy | F56: 3.8 | G56: 2.9 | H56: 2.9 | I56: 5.0-6 | J56: Loss of Rs.0.90/- | K56: =H56-F56 -> -0.90 | L56: 100.00 | M56: =(K56*N56)-100 -> -4899.7 | N56: 5333 | O56: Unsuccessful | P56: 2022-01-04 | R56: N
A57: 4 | B57: 2022-01-05 | D57: SBIN 500 CE JAN | E57: Buy | F57: 9.75 | G57: 7 | H57: 12 | I57: 15-18 | J57: Profit of Rs.2.25/- | K57: =H57-F57 -> 2.25 | L57: 100.00 | M57: =(K57*N57)-100 -> 3275 | N57: 1500 | O57: Successful | P57: 2022-01-05 | R57: N
A58: 5 | B58: 2022-01-06 | D58: HDFCBANK 1550 CE JAN | E58: Buy | F58: 26.5 | G58: 17 | H58: 32.25 | I58: 40-45 | J58: Profit of Rs.5.75/- | K58: =H58-F58 -> 5.75 | L58: 100.00 | M58: =(K58*N58)-100 -> 3062.5 | N58: 550 | O58: Successful | P58: 2022-01-06 | R58: N
A59: 6 | B59: 2022-01-06 | D59: NIFTY 17750 CE 6-JAN | E59: Buy | F59: 29 | H59: 45 | I59: 60-80 | J59: Profit of Rs.16/- | K59: =H59-F59 -> 16.00 | L59: 100.00 | M59: =(K59*N59)-100 -> 700 | N59: 50 | O59: Successful | P59: 2022-01-06 | R59: H
A60: 7 | B60: 2022-01-07 | D60: NIFTY 17750 PE 13-JAN | E60: Buy | F60: 98 | G60: 60 | H60: 113.5 | I60: 140-160 | J60: Profit of Rs.15.5/- | K60: =H60-F60 -> 15.50 | L60: 100.00 | M60: =(K60*N60)-100 -> 675 | N60: 50 | O60: Successful | P60: 2022-01-07 | R60: H
A61: 8 | B61: 2022-01-07 | D61: NIFTY 17900 CE 13-JAN | E61: Buy | F61: 94.5 | G61: 58 | H61: 107.5 | I61: 140-160 | J61: Profit of Rs.13/- | K61: 13.00 | L61: 100.00 | M61: 550 | N61: 50 | O61: Successful | P61: 2022-01-07 | R61: N
A62: 9 | B62: 2022-01-07 | D62: BANKNIFTY 37200 PE 13-JAN | E62: Buy | F62: 235 | G62: 180 | H62: 190 | I62: 320-400 | J62: Loss of Rs.45/- | K62: -45.00 | L62: 100.00 | M62: -1225 | N62: 25 | O62: Unsuccessful | P62: 2022-01-07 | R62: H
A63: 10 | B63: 2022-01-10 | D63: NIFTY 17800 PE 13-JAN | E63: Buy | F63: 59 | G63: 25 | H63: 69 | I63: 100-120 | J63: Profit of Rs.10/- | K63: =H63-F63 -> 10.00 | L63: 100.00 | M63: =(K63*N63)-100 -> 400 | N63: 50 | O63: Successful | P63: 2022-01-10 | R63: H
A64: 11 | B64: 2022-01-10 | D64: POWERGRID 210 CE JAN | E64: Buy | F64: 3.70-3.90 | G64: 2.9 | I64: 5.0-6 | J64: Open | R64: N
A68: Techno -Funda (positional)
A69: Sr.no | B69: Date | D69: Company | E69: Rec | F69: Rec Price | G69: Stop Loss*** | H69: Call Closed At | I69: Target | J69: Remark | K69: Profit / Loss per Share/Lot | L69: All charges | M69: Net Gain / Loss % | N69: Status | O69: Closed Date | P69: Market Closing Price
A70: 1 | B70: 2021-10-19 | D70: ITC | E70: Buy | F70: 230-251 | G70: 198 | I70: 320-340 | J70: Open | R70: H
A71: 2 | B71: 2021-10-21 | D71: OFSS | E71: Buy | F71: 4150-4550 | G71: 3700 | I71: 5400-6000 | J71: Open | R71: H
A72: 3 | B72: 2021-12-21 | D72: HEIDELBERG | E72: Buy | F72: 215 | G72: 198 | H72: 240.00 | I72: 240-250 | J72: Profit of Rs.25/- | K72: =H72-F72 -> 25 | L72: =(F72*-0.7)/100 -> -1.51 | M72: =(K72+L72)/F72 -> 10.93% | N72: Successful | O72: 2021-01-10 | R72: H
A75: CLBS = Closing Basis *** | F75: Reinitiated $
A76: Dividend adjusted <> | F76: Revised stoploss # | H76: .................
B78: Intrday Call
A79: Sr.no | B79: Date | D79: Company | E79: Rec | F79: Rec Price | G79: Stop Loss | H79: Call Closed At | I79: Target | J79: Remark | K79: Profit / Loss per Share/Lot | L79: Gain / Loss per Lot | M79: Lot | N79: All charges | O79: Net Gain / Loss % | P79: Status | Q79: Closed Date
B92: Investment Idea
A93: Sr.no | B93: Date | D93: Company | E93: Rec | F93: Rec Price | G93: Point of Review | H93: Close Rate | I93: Target | J93: Remark | K93: Profit / Loss per Share | L93: Gain / Loss % | M93: Status | N93: Closed Date
A94: 1 | B94: 2013-11-01 | D94: L&T Finance Holding | E94: Accu | F94: 82.00 | G94: - | H94: 100 | I94: 100.00 | J94: Target Achieved | K94: =H94-F94 -> 18.00 | L94: =K94/F94 -> 21.95% | M94: Successful | N94: 2016-10-14
A95: 2 | B95: 2014-06-04 | D95: Finolex Inds | E95: Buy | F95: 257.00 | G95: - | H95: 300 | I95: 300.00 | J95: Target Achieved | K95: 43.00 | L95: 16.73% | M95: Successful | N95: 2014-07-02
A96: 3 | B96: 2014-07-08 | D96: JK Cement | E96: Buy | F96: 393.00 | G96: - | H96: 468 | I96: 468.00 | J96: Target Achieved | K96: 75.00 | L96: 19.08% | M96: Successful | N96: 2014-08-12
A97: 4 | B97: 2014-08-06 | D97: Finolex Cables | E97: Buy | F97: 205.00 | G97: - | H97: 275 | I97: 250.00 | J97: Target Achieved | K97: 70.00 | L97: 34.15% | M97: Successful | N97: 2014-11-19
A98: 5 | B98: 2014-09-04 | D98: Exide Inds | E98: Buy | F98: 162.00 | G98: - | H98: 190 | I98: 190.00 | J98: Target Achieved | K98: 28.00 | L98: 17.28% | M98: Successful | N98: 2015-01-02
A99: 6 | B99: 2014-09-04 | D99: Deepak Nitrite | E99: Buy | F99: 75.00 | G99: - | H99: 91.5 | I99: 95-100 | J99: Profit of Rs.16.50/- | K99: 16.50 | L99: 22.00% | M99: Successful | N99: 2014-11-11
A100: 7 | B100: 2014-10-01 | D100: Mercks | E100: Buy | F100: 850.00 | G100: - | H100: 982.5 | I100: 1050.00 | J100: Profit of Rs.132.50/- | K100: 132.50 | L100: 15.59% | M100: Successful | N100: 2015-02-04
A101: 8 | B101: 2014-10-01 | D101: Grindwell Norton | E101: Buy | F101: 475.00 | G101: - | H101: 515 | I101: 600.00 | J101: Profit of Rs.40/- | K101: 40.00 | L101: 8.42% | M101: Successful | N101: 2014-10-27
A102: 9 | B102: 2014-10-01 | D102: Snowman Logistics | E102: Buy | F102: 86.00 | G102: - | H102: 99 | I102: 140.00 | J102: Profit of Rs.13.00/- | K102: 13.00 | L102: 15.12% | M102: Successful | N102: 2014-10-27
A103: 10 | B103: 2014-10-14 | D103: Birla Corp | E103: Buy | F103: 496.60 | G103: - | H103: 621 | I103: 580.00 | J103: Target Achieved | K103: 124.40 | L103: 25.05% | M103: Successful | N103: 2016-08-23
A104: 11 | B104: 2014-10-14 | D104: Ultratech Cem | E104: Buy | F104: 2481.90 | G104: - | H104: 2840 | I104: 2870.00 | J104: Profit of Rs.358.10/- | K104: 358.10 | L104: 14.43% | M104: Successful | N104: 2015-01-13
A105: 12 | B105: 2014-10-16 | D105: Sintex Inds | E105: Buy | F105: 84.50 | G105: - | H105: 93 | I105: 110.00 | J105: Profit of Rs.8.50/- | K105: 8.50 | L105: 10.06% | M105: Successful | N105: 2014-10-27
A106: 13 | B106: 2014-10-16 | D106: HSIL | E106: Buy | F106: 401.00 | G106: - | H106: 428 | I106: 450.00 | J106: Profit of Rs.27.00/- | K106: 27.00 | L106: 6.73% | M106: Successful | N106: 2015-01-16
A107: 14 | B107: 2014-10-16 | D107: Eveready Inds | E107: Buy | F107: 101.00 | G107: - | H107: 112 | I107: 120.00 | J107: Profit of Rs.11.00/- | K107: 11.00 | L107: 10.89% | M107: Successful | N107: 2014-10-27
A108: 15 | B108: 2014-11-11 | D108: Pennar Inds | E108: Buy | F108: 59.00 | G108: - | H108: 76 | I108: 76.00 | J108: Target Achieved | K108: 17.00 | L108: 28.81% | M108: Successful | N108: 2017-10-24
A109: 16 | B109: 2014-11-11 | D109: Snowman Logistics | E109: Buy | F109: 99.00 | G109: - | H109: 120 | I109: 120.00 | J109: Profit of Rs.21/- | K109: 21.00 | L109: 21.21% | M109: Successful | N109: 2014-11-17
A110: 17 | B110: 2014-11-13 | D110: Dharamsi Morarji Chem | E110: Buy | F110: 22.00 | G110: - | H110: 33.55 | I110: 32.00 | J110: Profit of Rs 11.55/- | K110: 11.55 | L110: 52.50% | M110: Successful | N110: 2015-07-03
A111: 18 | B111: 2014-12-03 | D111: Tatachem | E111: Buy | F111: 440.00 | G111: - | H111: 520 | I111: 520.00 | J111: Profit of Rs 80.00/- | K111: 80.00 | L111: 18.18% | M111: Successful | N111: 2015-07-23
A112: 19 | B112: 2014-12-03 | D112: Advanta | E112: Buy | F112: 360.00 | G112: - | H112: 427 | I112: 425.00 | J112: Profit of Rs.67.00/- | K112: 67.00 | L112: 18.61% | M112: Successful | N112: 2015-02-23
A113: 20 | B113: 2015-01-08 | D113: GDL | E113: Buy | F113: 360.00 | G113: - | H113: 455 | I113: 420.00 | J113: Profit of Rs.95.00/- | K113: 95.00 | L113: 26.39% | M113: Successful | N113: 2015-01-20
A114: 21 | B114: 2015-01-08 | D114: NRB Bearing | E114: Buy | F114: 130.00 | H114: 175.5 | I114: 165.00 | J114: Profit of Rs 45.50/- | K114: 45.50 | L114: 35.00% | M114: Successful | N114: 2017-12-19
A115: 22 | B115: 2015-02-05 | D115: GSFC | E115: Accu | F115: 98.00 | H115: 120 | I115: 120.00 | J115: Target Achieved | K115: 22.00 | L115: 22.45% | M115: Successful | N115: 2017-01-18
A116: 23 | B116: 2015-02-05 | D116: Sundrmfast | E116: Accu | F116: 196.00 | H116: 262 | I116: 255.00 | J116: Target Achieved | K116: 66.00 | L116: 33.67% | M116: Successful | N116: 2016-08-17
A117: 24 | B117: 2015-03-04 | D117: GPPL | E117: Accu | F117: 235 | H117: 77.00 | I117: 280-285 | J117: Loss of Rs.158/- | K117: -158.00 | L117: -67.23% | M117: Unsuccessful | N117: 2019-02-26
A118: 25 | B118: 2015-03-04 | D118: ORIENTCEM | E118: Accu | F118: 185.00 | H118: 224 | I118: 220-225 | J118: Target Achieved | K118: 39.00 | L118: 21.08% | M118: Successful | N118: 2016-10-04
A119: 26 | B119: 2015-03-27 | D119: PFS | E119: Accu | F119: 49.5 | H119: 15.85 | I119: 67.00 | J119: Loss of Rs.33.65/- | K119: -33.65 | L119: -68% | M119: Unsuccessful | N119: 2019-06-11
A120: 27 | B120: 2015-03-30 | D120: Walchandnagar Ind Ltd | E120: Accu | F120: 183.50 | H120: 219 | I120: 218.00 | J120: Profit of Rs.35.50/- | K120: 35.50 | L120: 19.35% | M120: Successful | N120: 2015-04-09
A121: 28 | B121: 2015-04-20 | D121: Kalpataru Power Transmission Ltd | E121: Accu | F121: =(227+237)/2 -> 232.00 | H121: 298 | I121: 298.00 | J121: Target Achieved | K121: 66.00 | L121: 28.45% | M121: Successful | N121: 2017-03-29
A122: 29 | B122: 2015-05-04 | D122: Mastek Ltd | E122: Buy | F122: 385.00 | H122: =212.5+331 -> 543.5 | I122: 510.00 | J122: Profit of Rs 158.50/- | K122: 158.50 | L122: 41.17% | M122: Successful | N122: 2015-08-19
A123: 30 | B123: 2015-05-04 | D123: Suprajit Eng | E123: Buy | F123: 115.50 | H123: 146 | I123: 142.00 | J123: Profit of Rs 30.50/- | K123: 30.50 | L123: 26.41% | M123: Successful | N123: 2015-07-17
A124: 31 | B124: 2015-05-27 | D124: TCI | E124: Buy | F124: 237.50 | H124: 279.5 | I124: 278.00 | J124: Target Achieved | K124: 42.00 | L124: 17.68% | M124: Successful | N124: 2015-08-06
A125: 32 | B125: 2015-06-19 | D125: HSIL | E125: Accu | F125: 340.00 | H125: 448 | I125: 448.00 | J125: Target Achieved | K125: 108.00 | L125: 31.76% | M125: Successful | N125: 2017-10-10
A126: 33 | B126: 2015-07-06 | D126: Capital First | E126: Accu | F126: 390.00 | H126: 460 | I126: 460.00 | J126: Target Achieved | K126: 70.00 | L126: 17.95% | M126: Successful | N126: 2016-04-18
A127: 34 | B127: 2015-07-10 | D127: Dolphin OffShore | E127: Accu | F127: 122.5 | H127: 61.00 | I127: 172.00 | J127: Loss of Rs.61.50/- | K127: -61.50 | L127: -50.20% | M127: Unsuccessful | N127: 2018-08-21
A128: 35 | B128: 2015-08-03 | D128: Allcargo logistics | E128: Accu | F128: 297.50 | H128: 350 | I128: 360.00 | J128: Profit of Rs 52.50/- | K128: 52.50 | L128: 17.65% | M128: Successful | N128: 2015-08-16
A129: 36 | B129: 2015-08-03 | D129: Camline Fine | E129: Accu | F129: 115.50 | H129: 149 | I129: 140.00 | J129: Profit of Rs 33.50/- | K129: 33.50 | L129: 29.00% | M129: Successful | N129: 2017-01-05
A130: 37 | B130: 2015-09-04 | D130: TCI | E130: Accu | F130: 226.00 | H130: 292 | I130: 292.00 | J130: Target Achieved | K130: 66.00 | L130: 29.20% | M130: Successful | N130: 2015-10-09
A131: 38 | B131: 2015-09-07 | D131: Kalpataru Power Transmission Ltd | E131: Accu | F131: 232.50 | H131: 312.5 | I131: 310.00 | J131: Target Achieved | K131: 80.00 | L131: 34.41% | M131: Successful | N131: 2017-03-29
A132: 39 | B132: 2015-09-21 | D132: LLOYD ELECTRIC & ENG LTD | E132: Accu | F132: 196.50 | H132: 238 | I132: 238.00 | J132: Target Achieved | K132: 41.50 | L132: 21.12% | M132: Successful | N132: 2015-10-14
A133: 40 | B133: 2015-09-24 | D133: L&T Finance Holding | E133: Accu | F133: 65.00 | H133: 82 | I133: 82.00 | J133: Target Achieved | K133: 17.00 | L133: 26.15% | M133: Successful | N133: 2016-07-27
A134: 41 | B134: 2015-10-14 | D134: KEC International ltd | E134: Accu | F134: 144.00 | H134: 182.5 | I134: 181.00 | J134: Target Achieved | K134: 38.50 | L134: 26.74% | M134: Successful | N134: 2017-03-23
A135: 42 | B135: 2015-10-14 | D135: Gruh Finance | E135: Accu | F135: 264.00 | H135: 311 | I135: 311.00 | J135: Target Achieved | K135: 47.00 | L135: 17.80% | M135: Successful | N135: 2016-08-22
A136: 43 | B136: 2015-11-10 | D136: Pidilitind | E136: Buy | F136: 549.50 | H136: 630 | I136: 630.00 | J136: Target Achieved | K136: 80.50 | L136: 14.65% | M136: Successful | N136: 2016-02-19
A137: 44 | B137: 2015-12-04 | D137: Zensar Technology | E137: Accu | F137: 1027.50 | H137: 1315 | I137: 1250.00 | J137: Target Achieved | K137: 287.50 | L137: 27.98% | M137: Successful | N137: 2018-05-24
A138: 45 | B138: 2015-12-29 | D138: Vinati Organics Ltd | E138: Accu | F138: 465.00 | H138: 540 | I138: 540.00 | J138: Target Achieved | K138: 75.00 | L138: 16.13% | M138: Successful | N138: 2016-06-09
A139: 46 | B139: 2016-01-11 | D139: GSFC | E139: Buy | F139: 81.00 | H139: 110 | I139: 110.00 | J139: Target Achieved | K139: 29.00 | L139: 35.80% | M139: Successful | N139: 2017-01-10
A140: 47 | B140: 2016-01-13 | D140: SSWL | E140: Buy | F140: 417.50 | H140: 547 | I140: 535.00 | J140: Target Achieved | K140: 129.50 | L140: 31.02% | M140: Successful | N140: 2016-07-27
A141: 48 | B141: 2016-02-08 | D141: Persistent System Ltd | E141: Accu | F141: 650.00 | H141: 800 | I141: 800.00 | J141: Target Achieved | K141: 150.00 | L141: 23.08% | M141: Successful | N141: 2018-02-23
A142: 49 | B142: 2016-03-04 | D142: UPL | E142: Accu | F142: 437.50 | H142: 504.5 | I142: 522.00 | J142: Profit of Rs.67/- | K142: 67.00 | L142: 15.31% | M142: Successful | N142: 2016-04-20
A143: 50 | B143: 2016-03-09 | D143: Ashoka Buildcon Ltd | E143: Accu | F143: 189.50 | H143: 218 | I143: 218.00 | J143: Target Achieved | K143: 28.50 | L143: 15.04% | M143: Successful | N143: 2017-10-26
A144: 51 | B144: 2016-04-11 | D144: PTC INDIA FIN SERV LTD | E144: Accu | F144: 36.5 | H144: 15.85 | I144: 60.00 | J144: Loss of Rs.20.65/- | K144: -20.65 | L144: -56.58% | M144: Unsuccessful | N144: 2019-06-11
A145: 52 | B145: 2016-04-12 | D145: CAMLINFINE $ | E145: Accu | F145: 93.00 | H145: 149 | I145: 140.00 | J145: Profit of Rs 56/- | K145: 56.00 | L145: 60.22% | M145: Successful | N145: 2017-01-05
A146: 53 | B146: 2016-04-12 | D146: Greaves Cotton Ltd. | E146: Accu | F146: 130.00 | H146: 150 | I146: 150-155 | J146: Target Achieved | K146: 20.00 | L146: 15.38% | M146: Successful | N146: 2016-07-13
A147: 54 | B147: 2016-04-13 | D147: DHFL | E147: Accu | F147: 196.00 | H147: 299 | I147: 299.00 | J147: Target Achieved | K147: 103.00 | L147: 52.55% | M147: Successful | N147: 2016-09-07
A148: 55 | B148: 2016-04-13 | D148: Magma | E148: Accu | F148: 88.00 | H148: 103 | I148: 103.00 | J148: Target Achieved | K148: 15.00 | L148: 17.05% | M148: Successful | N148: 2016-06-09
A149: 56 | B149: 2016-05-02 | D149: KEC International ltd $ | E149: Accu | F149: 127.50 | H149: 148 | I149: 148-150 | J149: Target Achieved | K149: =H149-F149 -> 20.50 | L149: =K149/F149 -> 16.08% | M149: Successful | N149: 2016-07-13
A150: 57 | B150: 2016-05-03 | D150: Mindtree | E150: Accu | F150: 675.00 | H150: 815 | I150: 790-800 | J150: Target Achieved | K150: 140.00 | L150: 20.74% | M150: Successful | N150: 2018-02-23
A151: 58 | B151: 2016-06-01 | D151: Atulauto | E151: Accu | F151: 500 | H151: 232.50 | I151: 565-570 | J151: Loss of Rs.267.50 /- | K151: -267.50 | L151: -53.50% | M151: Unsuccessful | N151: 2019-09-27
A152: 59 | B152: 2016-06-06 | D152: TRITURBINE | E152: Accu | F152: 110.00 | H152: 126.5 | I152: 125.00 | J152: Profit of Rs.16.50/- | K152: 16.50 | L152: 15.00% | M152: Successful | N152: 2016-07-01
A153: 60 | B153: 2016-06-17 | D153: Pennar Industries Ltd | E153: Accu | F153: 44.00 | H153: 69.5 | I153: 69.50 | J153: Profit of Rs.25.50/- | K153: 25.50 | L153: 57.95% | M153: Successful | N153: 2017-08-30
A154: 61 | B154: 2016-06-28 | D154: EVEREADY | E154: Accu | F154: 262.50 | H154: 340 | I154: 333.00 | J154: Profit of Rs.77.50/- | K154: 77.50 | L154: 29.52% | M154: Successful | N154: 2017-10-09
A155: 62 | B155: 2016-06-28 | D155: FIEMIND | E155: Accu | F155: 840.00 | H155: 1230 | I155: 1230.00 | J155: Target Achieved | K155: 390.00 | L155: 46.43% | M155: Successful | N155: 2016-10-06
A156: 63 | B156: 2016-07-05 | D156: Bajaj Corp Ltd | E156: Accu | F156: 395 | H156: =(468.5+342.5)/2 -> 405.50 | I156: 510.00 | J156: Profit of Rs.10.50/- | K156: =H156-F156 -> 10.50 | L156: =K156/F156 -> 3% | M156: Neutral | N156: 2019-05-21
A157: 64 | B157: 2016-08-02 | D157: GPPL $ | E157: Buy | F157: =169.5-12.8 -> 156.7 | H157: 77.00 | I157: 198-200 | J157: Loss of Rs.79.7/- | K157: -79.70 | L157: -50.86% | M157: Unsuccessful | N157: 2019-02-26
A158: 65 | B158: 2016-08-04 | D158: WONDERLA HOLIDAYS LTD | E158: Accu | F158: 400 | H158: 305.00 | I158: 475.00 | J158: Loss of Rs.95/- | K158: -95.00 | L158: -23.75% | M158: Unsuccessful | N158: 2019-05-21
A159: 66 | B159: 2016-08-11 | D159: CAMLINFINE | E159: Accu | F159: 86.50 | H159: 130 | I159: 130.00 | J159: Profit of Rs.43.50/- | K159: 43.50 | L159: 50.29% | M159: Successful | N159: 2017-12-22
A160: 67 | B160: 2016-08-18 | D160: GRANULES | E160: Accu | F160: 133.5 | H160: 126.50 | I160: 178.00 | J160: Exit | K160: -7.00 | L160: -5.24% | M160: Unsuccessful | N160: 2016-09-02
A161: 68 | B161: 2016-08-31 | D161: VA TECH WABAG | E161: Accu | F161: 560.00 | H161: 725 | I161: 725.00 | J161: Target Achieved | K161: 165.00 | L161: 29.46% | M161: Successful | N161: 2016-03-27
A162: 69 | B162: 2016-09-01 | D162: SKIPPER LIMITED | E162: Accu | F162: 160.50 | H162: 210 | I162: 210.00 | J162: Target Achieved | K162: 49.50 | L162: 30.84% | M162: Successful | N162: 2017-05-16
A163: 70 | B163: 2016-10-03 | D163: IFBIND | E163: Accu | F163: 430.00 | H163: 596 | I163: 575.00 | J163: Profit of Rs.166/- | K163: 166.00 | L163: 38.60% | M163: Successful | N163: 2017-02-03
A164: 71 | B164: 2016-10-14 | D164: ASIANTILES | E164: Accu | F164: 280.00 | H164: 345 | I164: 345.00 | J164: Target Achieved | K164: =H164-F164 -> 65.00 | L164: =K164/F164 -> 23.21% | M164: Successful | N164: 2017-03-20
A165: 72 | B165: 2016-10-14 | D165: DEEPIND | E165: Accu | F165: 245.00 | H165: 325.5 | I165: 330.00 | J165: Profit of Rs.80.5/- | K165: 80.50 | L165: 32.86% | M165: Successful | N165: 2017-02-03
A166: 73 | B166: 2016-10-17 | D166: DCBBANK | E166: Accu | F166: 125.00 | H166: 160 | I166: 160.00 | J166: Target Achieved | K166: 35.00 | L166: 28.00% | M166: Successful | N166: 2017-03-09
A167: 74 | B167: 2016-10-17 | D167: ORIENTREF | E167: Accu | F167: 114.00 | H167: 145 | I167: 145.00 | J167: Target Achieved | K167: 31.00 | L167: =K167/F167 -> 27.19% | M167: Successful | N167: 2017-05-04
A168: 75 | B168: 2016-10-17 | D168: GANECOS | E168: Accu | F168: 212.00 | H168: 280 | I168: 276.00 | J168: Profit of Rs.68/- | K168: 68.00 | L168: 32.08% | M168: Successful | N168: 2017-05-03
A169: 76 | B169: 2016-11-04 | D169: NBCC | E169: Accu | F169: 155.00 | H169: 210 | I169: 210.00 | J169: Profit of Rs.55/- | K169: 55.00 | L169: 35.48% | M169: Successful | N169: 2017-07-28
A170: 77 | B170: 2016-12-06 | D170: PRECAM | E170: Accu | F170: 150.5 | H170: 72.50 | I170: 174.00 | J170: Loss of Rs.78/- | K170: -78.00 | L170: -51.83% | M170: Unsuccessful | N170: 2018-08-21
A171: 78 | B171: 2016-12-08 | D171: INFRATEL | E171: Accu | F171: 380.00 | H171: 478 | I171: 468.00 | J171: Target Achieved | K171: =H171-F171 -> 98.00 | L171: =K171/F171 -> 25.79% | M171: Successful | N171: 2017-10-17
A172: 79 | B172: 2016-12-30 | D172: GODREJPROP | E172: Accu | F172: 305.00 | H172: 375 | I172: 375.00 | J172: Target Achieved | K172: 70.00 | L172: 22.95% | M172: Successful | N172: 2017-02-02
A173: 80 | B173: 2017-01-04 | D173: DEEPAKNTR | E173: Accu | F173: 99.50 | H173: 158 | I173: 158.00 | J173: Target Achieved | K173: 58.50 | L173: 58.79% | M173: Successful | N173: 2017-06-12
A174: 81 | B174: 2017-01-04 | D174: DEEPAKNTR | E174: Accu | F174: 99.50 | H174: 158 | I174: 158.00 | J174: Target Achieved | K174: 58.50 | L174: 58.79% | M174: Successful | N174: 2017-06-12
A175: 82 | B175: 2017-02-20 | D175: RECLTD | E175: Accu | F175: 140.50 | H175: 220 | I175: 220.00 | J175: Target Achieved | K175: =H175-F175 -> 79.50 | L175: =K175/F175 -> 56.58% | M175: Successful | N175: 2017-05-09
A176: 83 | B176: 2017-02-20 | D176: SUBROS | E176: Accu | F176: 202.50 | H176: 234 | I176: 234.00 | J176: Target Achieved | K176: 31.50 | L176: 15.56% | M176: Successful | N176: 2017-04-11
A177: 84 | B177: 2017-03-24 | D177: VRLLOG | E177: Accu | F177: 300.50 | H177: 417.5 | I177: 420.00 | J177: Profit of Rs.117/- | K177: =H177-F177 -> 117.00 | L177: =K177/F177 -> 38.94% | M177: Successful | N177: 2017-12-01
A178: 85 | B178: 2017-03-24 | D178: FIEMIND | E178: Accu | F178: 850.00 | H178: 1042.5 | I178: 1023.00 | J178: Profit of Rs 192.50/- | K178: 192.50 | L178: 22.65% | M178: Successful | N178: 2017-04-05
A179: 86 | B179: 2017-04-05 | D179: RATNAMANI | E179: Accu | F179: 785.00 | H179: 930 | I179: 920.00 | J179: Profit of Rs.145/- | K179: =H179-F179 -> 145.00 | L179: =K179/F179 -> 18.47% | M179: Successful | N179: 2017-08-29
A180: 87 | B180: 2017-04-06 | D180: ZEEMEDIA | E180: Accu | F180: 40 | H180: 13.10 | I180: 60.00 | J180: Loss of Rs.26.9/- | K180: -26.90 | L180: -67.25% | M180: Unsuccessful | N180: 2018-02-07
A181: 88 | B181: 2017-04-12 | D181: DABUR | E181: Accu | F181: 289.50 | H181: 354 | I181: 360.00 | J181: Profit of Rs.64.5/- | K181: =H181-F181 -> 64.50 | L181: =K181/F181 -> 22.28% | M181: Successful | N181: 2017-11-01
A182: 89 | B182: 2017-04-20 | D182: KPRMILL | E182: Accu | F182: 700.00 | H182: 840 | I182: 840.00 | J182: Profit of Rs.140/- | K182: 140.00 | L182: 20.00% | M182: Successful | N182: 2017-06-07
A183: 90 | B183: 2017-06-01 | D183: ESSELPACK | E183: Accu | F183: 130.00 | H183: 144.25 | I183: 170.00 | J183: Profit of Rs.14.25/- | K183: 14.25 | L183: 10.96% | M183: Successful | N183: 2019-07-29
A184: 91 | B184: 2017-06-15 | D184: KEI | E184: Accu | F184: 214.50 | H184: 262 | I184: 262.00 | J184: Profit of Rs.47.5/- | K184: 47.50 | L184: 22.14% | M184: Successful | N184: 2017-08-30
A185: 92 | B185: 2017-07-17 | D185: MAYURUNIQ | E185: Accu | F185: 370.00 | H185: 447.5 | I185: 450.00 | J185: Target Achieved | K185: 77.50 | L185: 20.95% | M185: Successful | N185: 2017-10-27
A186: 93 | B186: 2017-07-27 | D186: RAMCOCEM | E186: Accu | F186: 657.50 | H186: 825 | I186: 820.00 | J186: Target Achieved | K186: 167.50 | L186: 25.48% | M186: Successful | N186: 2017-12-21
A187: 94 | B187: 2017-08-17 | D187: FINPIPE | E187: Accu | F187: 605.00 | H187: 750 | I187: 750.00 | J187: Profit of Rs.145/- | K187: 145.00 | L187: 23.97% | M187: Successful | N187: 2017-10-19
A188: 95 | B188: 2017-09-01 | D188: SHK | E188: Accu | F188: 255 | H188: 217.25 | I188: 320.00 | J188: Loss of Rs.37.75/- | K188: -37.75 | L188: -15% | M188: Unsuccessful | N188: 2019-07-15
A189: 96 | B189: 2017-09-19 | D189: SKIPPER | E189: Accu | F189: 215.00 | H189: 258 | I189: 258.00 | J189: Target Achieved | K189: 43.00 | L189: 20.00% | M189: Successful | N189: 2017-11-01
A190: 97 | B190: 2017-09-19 | D190: SKIPPER | E190: Accu | F190: 215.00 | H190: 258 | I190: 258.00 | J190: Target Achieved | K190: 43.00 | L190: 20.00% | M190: Successful | N190: 2017-11-01
A191: 98 | B191: 2017-09-20 | D191: CAMLINFINE$ | E191: Accu | F191: 75.00 | H191: 90 | I191: 90.00 | J191: Profit of Rs.15.00/- | K191: =H191-F191 -> 15.00 | L191: =K191/F191 -> 20.00% | M191: Successful | N191: 2017-10-11
A192: 99 | B192: 2017-10-03 | D192: GNA | E192: Accu | F192: 315.00 | H192: 392 | I192: 384.00 | J192: Profit of Rs.77/- | K192: 77.00 | L192: 24.44% | M192: Successful | N192: 2017-10-09
A193: 100 | B193: 2017-10-05 | D193: NOCIL | E193: Accu | F193: 145.00 | H193: 179 | I193: 180.00 | J193: Profit of Rs.34/- | K193: 34.00 | L193: 23.45% | M193: Successful | N193: 2017-10-17
A194: 101 | B194: 2017-10-06 | D194: CENTURYPLY | E194: Accu | F194: 256.00 | H194: 323 | I194: 320.00 | J194: Target Achieved | K194: 67.00 | L194: 26.17% | M194: Successful | N194: 2017-11-28
A195: 102 | B195: 2017-10-09 | D195: EIHOTEL | E195: Accu | F195: 137.50 | H195: 184 | I195: 183.00 | J195: Profit of Rs.46.5/- | K195: 46.50 | L195: 33.82% | M195: Successful | N195: 2018-01-08
A196: 103 | B196: 2017-10-10 | D196: NRBBEARING | E196: Accu | F196: 125.50 | H196: 158 | I196: 155.00 | J196: Profit of Rs.32.5/- | K196: 32.50 | L196: 25.90% | M196: Successful | N196: 2017-11-28
A197: 104 | B197: 2017-10-10 | D197: BOROSIL | E197: Accu | F197: 895.00 | H197: 1122.5 | I197: 1078.00 | J197: Profit of Rs.227.5/- | K197: 227.50 | L197: 25.42% | M197: Successful | N197: 2018-01-17
A198: 105 | B198: 2017-10-12 | D198: CYIENT | E198: Accu | F198: 525.00 | H198: 629 | I198: 629.00 | J198: Target Achieved | K198: 104.00 | L198: 19.81% | M198: Successful | N198: 2018-01-19
A199: 106 | B199: 2017-11-07 | D199: HATSUN | E199: Accu | F199: 740.00 | H199: 892.5 | I199: 900.00 | J199: Profit of Rs.152.5/- | K199: =H199-F199 -> 152.50 | L199: =K199/F199 -> 20.61% | M199: Successful | N199: 2017-11-13
A200: 107 | B200: 2017-12-04 | D200: SANGHIIND | E200: Accu | F200: 118.50 | H200: 143.5 | I200: 145.00 | J200: Profit of Rs.25/- | K200: 25.00 | L200: 21.10% | M200: Successful | N200: 2017-12-28
A201: 108 | B201: 2017-12-21 | D201: KAJARIACER | E201: Accu | F201: 715 | H201: 500.00 | I201: 872.00 | J201: Loss of Rs.215/- | K201: -215.00 | L201: -30.07% | M201: Unsuccessful | N201: 2019-07-24
A202: 109 | B202: 2017-12-29 | D202: GNA | E202: Accu | F202: 435.00 | H202: 542.5 | I202: 539.00 | J202: Target Achieved | K202: 107.50 | L202: 24.71% | M202: Successful | N202: 2018-04-16
A203: 110 | B203: 2017-12-29 | D203: ZENSARTECH | E203: Accu | F203: 885.00 | H203: 1090 | I203: 1084.00 | J203: Target Achieved | K203: 205.00 | L203: 23.16% | M203: Successful | N203: 2018-04-23
A204: 111 | B204: 2018-04-02 | D204: EVERESTIND | E204: Accu | F204: 478.50 | H204: 442 | I204: 613.00 | J204: Loss of Rs.36.50 /- | K204: =H204-F204 -> -36.50 | L204: =K204/F204 -> -7.63% | M204: Unsuccessful | N204: 2019-10-24
A205: 112 | B205: 2018-04-04 | D205: GPPL$ | E205: Accu | F205: =141.5-7.3 -> 134.2 | H205: 77.00 | I205: 180.00 | J205: Loss of Rs.57.2/- | K205: -57.20 | L205: -42.62% | M205: Unsuccessful | N205: 2019-02-26
A206: 113 | B206: 2018-04-19 | D206: MANPASAND | E206: Accu | F206: 430 | H206: 220.00 | I206: 537.00 | J206: Loss of Rs.210/- | K206: -210.00 | L206: -48.84% | M206: Unsuccessful | N206: 2018-06-01
A207: 114 | B207: 2018-04-30 | D207: HEIDELBERG | E207: Accu | F207: 153.5 | H207: 196 | I207: 196.00 | J207: Profit of Rs.42.50/- | K207: 42.50 | L207: 27.69% | M207: Successful | N207: 2019-05-20
A208: 115 | B208: 2018-07-25 | D208: ZEEMEDIA | E208: Accu | F208: 27.5 | H208: 13.10 | I208: 60.00 | J208: Loss of Rs.14.40/- | K208: -14.40 | L208: -52.36% | M208: Unsuccessful | N208: 2018-02-07
A209: 116 | B209: 2018-08-06 | D209: GABRIEL | E209: Accu | F209: 148.5 | H209: 102 | I209: 182.00 | J209: Loss of Rs.46.50/- | K209: =H209-F209 -> -46.50 | L209: =K209/F209 -> -31.31% | M209: Unsuccessful | N209: 2019-07-15
A210: 117 | B210: 2018-08-23 | D210: INDIANHUME | E210: Accu | F210: 285 | H210: 355 | I210: 364.00 | J210: Profit of Rs.70/- | K210: 70.00 | L210: 24.56% | M210: Successful | N210: 2018-12-21
A211: 118 | B211: 2018-08-29 | D211: GRINDWELL | E211: Accu | F211: 525 | H211: 585 | I211: 635.00 | J211: Profit of Rs.60- | K211: =H211-F211 -> 60.00 | L211: =K211/F211 -> 11.43% | M211: Successful | N211: 2019-07-16
A212: 119 | B212: 2018-10-22 | D212: FINPIPE | E212: Accu | F212: 475 | H212: 574 | I212: 570.00 | J212: Target Achieved | K212: 99.00 | L212: 20.84% | M212: Successful | N212: 2018-10-30
A213: 120 | B213: 2018-10-24 | D213: GULFOILLUB | E213: Accu | F213: 707.5 | H213: 872 | I213: 872.00 | J213: Target Achieved | K213: 164.50 | L213: 23.25% | M213: Successful | N213: 2019-01-17
A214: 121 | B214: 2018-10-25 | D214: DBCORP | E214: Accu | F214: 162 | H214: 204 | I214: 209.00 | J214: Profit of Rs.42/- | K214: 42.00 | L214: 25.93% | M214: Successful | N214: 2019-03-15
A215: 122 | B215: 2018-10-26 | D215: RITES | E215: Accu | F215: 240 | H215: 297 | I215: 297.00 | J215: Target Achieved | K215: 57.00 | L215: 23.75% | M215: Successful | N215: 2018-11-13
A216: 123 | B216: 2018-12-05 | D216: BRIGADE | E216: Accu | F216: 202.5 | H216: 255 | I216: 252.00 | J216: Target Achieved | K216: 52.50 | L216: 25.93% | M216: Successful | N216: 2019-03-18 | R216: V
A217: 124 | B217: 2018-12-31 | D217: JKCEMENT | E217: Accu | F217: 710 | H217: 866 | I217: 866.00 | J217: Target Achieved | K217: 156.00 | L217: 21.97% | M217: Successful | N217: 2019-03-29 | R217: V
A218: 125 | B218: 2019-02-26 | D218: MARICO | E218: Accu | F218: 337.25 | H218: 398.5 | I218: 411.00 | J218: Profit of Rs.61.25/- | K218: 61.25 | L218: 18.16% | M218: Successful | N218: 2019-10-22 | R218: V
A219: 126 | B219: 2019-04-04 | D219: ITDCEM | E219: Accu | F219: 130 | H219: 65 | I219: 158.00 | J219: Loss of Rs.65 /- | K219: -65.00 | L219: -50.00% | M219: Unsuccessful | N219: 2019-09-18 | R219: K
A220: 127 | B220: 2017-10-09 | D220: RECLTD | E220: Accu | F220: 141.5 | H220: 183.5 | I220: 210.00 | J220: Profit of Rs.42/- | K220: 42.00 | L220: 29.68% | M220: Successful | N220: 2017-11-03 | R220: K
A221: 128 | B221: 2017-12-05 | D221: ALLCARGO | E221: Accu | F221: 172.00 | H221: 155.25 | I221: 230.00 | J221: Loss of Rs.16.75/- | K221: -16.75 | L221: -9.74% | M221: Unsuccessful | N221: 2019-11-18 | R221: K
A222: 129 | B222: 2018-10-25 | D222: GODREJCP | E222: Accu | F222: 698.5 | H222: 890 | I222: 890.00 | J222: Profit of Rs.191.50/- | K222: 191.50 | L222: 27.42% | M222: Successful | N222: 2021-05-12 | R222: V
A223: 130 | B223: 2017-05-22 | D223: GREAVESCOT | E223: Accu | F223: 127.6 | H223: 138 | I223: 190.00 | J223: Profit of Rs.10.40 | K223: 10.40 | L223: 8.15% | M223: Successful | N223: 2019-11-05 | R223: K
A224: 131 | B224: 2018-02-27 | D224: MOLDTKPAC | E224: Accu | F224: 317 | H224: 382.5 | I224: 398.00 | J224: Profit of Rs.65.5 | K224: 65.50 | L224: 20.66% | M224: Successful | N224: 2021-02-11 | R224: K
A225: 132 | B225: 2018-03-05 | D225: LICHSGFIN | E225: Accu | F225: =510-14.4 -> 495.60 | H225: 350 | I225: 672.00 | J225: Loss of Rs.145.60/- | K225: -145.60 | L225: -29.38% | M225: Unsuccessful | N225: 2020-02-26 | R225: V
A226: 133 | B226: 2018-05-17 | D226: PHILIPCARB | E226: Accu | F226: 230.30 | H226: 102.5 | I226: 348.00 | J226: Loss of Rs.127.80/- | K226: -127.80 | L226: -55.49% | M226: Unsuccessful | N226: 2020-03-06 | R226: V
A227: 134 | B227: 2018-06-07 | D227: KEC | E227: Accu | F227: =342.5-5.1 -> 337.4 | H227: 412.5 | I227: 439.00 | J227: Profit of Rs.75.10 | K227: 75.10 | L227: 22.26% | M227: Successful | N227: 2021-02-03 | R227: K
A228: 135 | B228: 2018-07-04 | D228: ASHOKLEY | E228: Accu | F228: =127.5-5.53 -> 121.97 | H228: 122.50 | I228: 170.00 | J228: Profit of Rs.0.53/- | K228: 0.53 | L228: 0% | M228: Neutral | N228: 2021-08-23 | R228: V
A229: 136 | B229: 2018-07-13 | D229: FCONSUMER | E229: Accu | F229: 46.50 | H229: 17 | I229: 59.00 | J229: Loss of Rs.29.50/- | K229: =H229-F229 -> -29.50 | L229: =K229/F229 -> -63.44% | M229: Unsuccessful | N229: 2020-02-26 | R229: V
A230: 137 | B230: 2018-10-23 | D230: JKPAPER | E230: Accu | F230: 156.5 | H230: 207.5 | I230: 191.00 | J230: Target Achieved | K230: 51.00 | L230: 32.59% | M230: Successful | N230: 2021-06-22 | R230: V
A231: 138 | B231: 2018-12-05 | D231: CCL | E231: Accu | F231: 259.5 | H231: 320 | I231: 320.00 | J231: Target Achieved | K231: 60.50 | L231: 23.31% | M231: Successful | N231: 2021-05-07 | R231: V
A232: 139 | B232: 2018-12-05 | D232: VARROC | E232: Accu | F232: 715 | H232: 445 | I232: 840.00 | J232: Loss of Rs.270/- | K232: -270.00 | L232: -37.76% | M232: Unsuccessful | N232: 2019-12-01 | R232: V
A233: 140 | B233: 2019-01-04 | D233: MGL | E233: Accu | F233: 875 | H233: 1165 | I233: 1185.00 | J233: Profit of Rs.290/- | K233: 290.00 | L233: 33.14% | M233: Successful | N233: 2020-01-17 | R233: V
A234: 141 | B234: 2019-04-04 | D234: COCHINSHIP | E234: Accu | F234: =387-14.63 -> 372.37 | H234: 490 | I234: 490.00 | J234: Target Achieved | K234: 117.63 | L234: 31.59% | M234: Successful | N234: 2020-01-20 | R234: V
... 33 more rows
